Workbook

Sheet dashboard
B2: European Union Unemployment Rates | X2: 1 | Z2: Robert Mundigl & Pedro Wave
K3: Age group | P3: Country | U3: Year | Z3: www.clearlyandsimply.com
Z4: pedrowave.blogspot.com
D7: Band Chart | H7: Line Chart | N7: ="Sorted Bar Chart ("&YEAR(calcs!$D$40)&")" -> Sorted Bar Chart (2019) | U7: ="Choropleth Map ("&YEAR(calcs!$D$40)&")" -> Choropleth Map (2019) | Y7: Color scale
P9: Click on a Country to select | V9: Click on a Country to select
O11: =calcs!B45 -> 1 | P11: =calcs!H45 -> Greece
O12: =calcs!B46 -> 2 | P12: =calcs!H46 -> Spain
O13: =calcs!B47 -> 3 | P13: =calcs!H47 -> Italy
O14: =calcs!B48 -> 4 | P14: =calcs!H48 -> France
O15: =calcs!B49 -> 5 | P15: =calcs!H49 -> Cyprus
O16: =calcs!B50 -> 6 | P16: =calcs!H50 -> Latvia
O17: =calcs!B51 -> 7 | P17: =calcs!H51 -> Lithuania
O18: =calcs!B52 -> 8 | P18: =calcs!H52 -> Croatia
O19: =calcs!B53 -> 9 | P19: =calcs!H53 -> Portugal
O20: =calcs!B54 -> 10 | P20: =calcs!H54 -> Finland
O21: =calcs!B55 -> 11 | P21: =calcs!H55 -> Sweden
O22: =calcs!B56 -> 12 | P22: =calcs!H56 -> Slovakia
O23: =calcs!B57 -> 13 | P23: =calcs!H57 -> Luxembourg
O24: =calcs!B58 -> 14 | P24: =calcs!H58 -> Belgium
O25: =calcs!B59 -> 15 | P25: =calcs!H59 -> Slovenia
B26: Scrollable Data Table | O26: =calcs!B60 -> 16 | P26: =calcs!H60 -> Denmark
E27: Click on a Country or Year to select | O27: =calcs!B61 -> 17 | P27: =calcs!H61 -> Ireland
B28: =calcs!C123 -> Country | C28: =calcs!D123 -> 2011-01-01 | D28: =calcs!E123 -> 2012-01-01 | E28: =calcs!F123 -> 2013-01-01 | F28: =calcs!G123 -> 2014-01-01 | G28: =calcs!H123 -> 2015-01-01 | H28: =calcs!I123 -> 2016-01-01 | I28: =calcs!J123 -> 2017-01-01 | J28: =calcs!K123 -> 2018-01-01 | K28: =calcs!L123 -> 2019-01-01 | L28: =calcs!M123 -> 2020-01-01 | O28: =calcs!B62 -> 18 | P28: =calcs!H62 -> Bulgaria
B29: =calcs!C124 -> Malta | C29: =calcs!D124 -> 0.05 | D29: =calcs!E124 -> 0.048 | E29: =calcs!F124 -> 0.049 | F29: =calcs!G124 -> 0.047 | G29: =calcs!H124 -> 0.044 | H29: =calcs!I124 -> 0.038 | I29: =calcs!J124 -> 0.031 | J29: =calcs!K124 -> 0.029 | K29: =calcs!L124 -> 0.026 | L29: =calcs!M124 -> 0.027 | O29: =calcs!B63 -> 19 | P29: =calcs!H63 -> Austria | AC29: not EU
B30: =calcs!C125 -> Netherlands | C30: =calcs!D125 -> 0.04 | D30: =calcs!E125 -> 0.047 | E30: =calcs!F125 -> 0.061 | F30: =calcs!G125 -> 0.065 | G30: =calcs!H125 -> 0.061 | H30: =calcs!I125 -> 0.051 | I30: =calcs!J125 -> 0.041 | J30: =calcs!K125 -> 0.032 | K30: =calcs!L125 -> 0.028 | L30: =calcs!M125 -> 0.025 | O30: =calcs!B64 -> 20 | P30: =calcs!H64 -> Estonia | AB30: =IF(AC30=calcs!$D$171,"t","") ->  | AC30: =control!E54 -> no data
B31: =calcs!C126 -> Poland | C31: =calcs!D126 -> 0.08 | D31: =calcs!E126 -> 0.085 | E31: =calcs!F126 -> 0.088 | F31: =calcs!G126 -> 0.077 | G31: =calcs!H126 -> 0.064 | H31: =calcs!I126 -> 0.052 | I31: =calcs!J126 -> 0.041 | J31: =calcs!K126 -> 0.032 | K31: =calcs!L126 -> 0.028 | L31: =calcs!M126 -> 0.028 | O31: =calcs!B65 -> 21 | P31: =calcs!H65 -> Romania | AB31: =IF(AC31=calcs!$D$171,"t","") ->  | AC31: =control!E55 -> 0% to 2%
B32: =calcs!C127 -> Portugal | C32: =calcs!D127 -> 0.113 | D32: =calcs!E127 -> 0.139 | E32: =calcs!F127 -> 0.147 | F32: =calcs!G127 -> 0.125 | G32: =calcs!H127 -> 0.111 | H32: =calcs!I127 -> 0.099 | I32: =calcs!J127 -> 0.078 | J32: =calcs!K127 -> 0.061 | K32: =calcs!L127 -> 0.056 | L32: =calcs!M127 -> 0.058 | O32: =calcs!B66 -> 22 | P32: =calcs!H66 -> Germany | AB32: =IF(AC32=calcs!$D$171,"t","") ->  | AC32: =control!E56 -> 2% to 4%
B33: =calcs!C128 -> Romania | C33: =calcs!D128 -> 0.057 | D33: =calcs!E128 -> 0.054 | E33: =calcs!F128 -> 0.057 | F33: =calcs!G128 -> 0.055 | G33: =calcs!H128 -> 0.056 | H33: =calcs!I128 -> 0.048 | I33: =calcs!J128 -> 0.039 | J33: =calcs!K128 -> 0.033 | K33: =calcs!L128 -> 0.03 | L33: =calcs!M128 -> 0.038 | O33: =calcs!B67 -> 23 | P33: =calcs!H67 -> Poland | AB33: =IF(AC33=calcs!$D$171,"t","") ->  | AC33: =control!E57 -> 4% to 6%
B34: =calcs!C129 -> Slovakia | C34: =calcs!D129 -> 0.118 | D34: =calcs!E129 -> 0.122 | E34: =calcs!F129 -> 0.125 | F34: =calcs!G129 -> 0.118 | G34: =calcs!H129 -> 0.102 | H34: =calcs!I129 -> 0.087 | I34: =calcs!J129 -> 0.073 | J34: =calcs!K129 -> 0.059 | K34: =calcs!L129 -> 0.051 | L34: =calcs!M129 -> 0.049 | O34: =calcs!B68 -> 24 | P34: =calcs!H68 -> Netherlands | AB34: =IF(AC34=calcs!$D$171,"t","") ->  | AC34: =control!E58 -> 6% to 8%
B35: =calcs!C130 -> Slovenia | C35: =calcs!D130 -> 0.075 | D35: =calcs!E130 -> 0.079 | E35: =calcs!F130 -> 0.092 | F35: =calcs!G130 -> 0.09 | G35: =calcs!H130 -> 0.084 | H35: =calcs!I130 -> 0.075 | I35: =calcs!J130 -> 0.062 | J35: =calcs!K130 -> 0.048 | K35: =calcs!L130 -> 0.042 | L35: =calcs!M130 -> 0.036 | O35: =calcs!B69 -> 25 | P35: =calcs!H69 -> Hungary | AB35: =IF(AC35=calcs!$D$171,"t","") ->  | AC35: =control!E59 -> 8% to 10%
B36: =calcs!C131 -> Spain | C36: =calcs!D131 -> 0.192 | D36: =calcs!E131 -> 0.225 | E36: =calcs!F131 -> 0.238 | F36: =calcs!G131 -> 0.223 | G36: =calcs!H131 -> 0.202 | H36: =calcs!I131 -> 0.179 | I36: =calcs!J131 -> 0.157 | J36: =calcs!K131 -> 0.139 | K36: =calcs!L131 -> 0.128 | L36: =calcs!M131 -> 0.136 | O36: =calcs!B70 -> 26 | P36: =calcs!H70 -> United Kingdom | AB36: =IF(AC36=calcs!$D$171,"t","") ->  | AC36: =control!E60 -> 10% to 12%
B37: =calcs!C132 -> Sweden | C37: =calcs!D132 -> 0.055 | D37: =calcs!E132 -> 0.057 | E37: =calcs!F132 -> 0.057 | F37: =calcs!G132 -> 0.057 | G37: =calcs!H132 -> 0.056 | H37: =calcs!I132 -> 0.053 | I37: =calcs!J132 -> 0.052 | J37: =calcs!K132 -> 0.049 | K37: =calcs!L132 -> 0.051 | L37: =calcs!M132 -> 0.054 | O37: =calcs!B71 -> 27 | P37: =calcs!H71 -> Malta | AB37: =IF(AC37=calcs!$D$171,"t","") -> t | AC37: =control!E61 -> 12% to 14%
B38: =calcs!C133 -> United Kingdom | C38: =calcs!D133 -> 0.058 | D38: =calcs!E133 -> 0.057 | E38: =calcs!F133 -> 0.054 | F38: =calcs!G133 -> 0.044 | G38: =calcs!H133 -> 0.038 | H38: =calcs!I133 -> 0.036 | I38: =calcs!J133 -> 0.032 | J38: =calcs!K133 -> 0.03 | K38: =calcs!L133 -> 0.027 | L38: =calcs!M133 -> 0.028 | O38: =calcs!B72 -> 28 | P38: =calcs!H72 -> Czech Republic | AB38: =IF(AC38=calcs!$D$171,"t","") ->  | AC38: =control!E62 -> 14% to 16%
AB39: =IF(AC39=calcs!$D$171,"t","") ->  | AC39: =control!E63 -> 16% or more
B41: =data!U2 -> Source: EuroStat | C41: https://ec.europa.eu/eurostat/en/home | H41: ILOSTAT | I41: https://ilostat.ilo.org/
B42: Original Post | C42: www.clearlyandsimply.com/clearly_and_simply/2015/03/highlighting-across-excel-dashboards.html
B43: New Post | C43: https://pedrowave.blogspot.com/2020/06/tasas-de-desempleo-de-la-ue.html
B44: COPYRIGHT | C44: https://creativecommons.org/licenses/by-nc-sa/3.0/deed.en

Sheet data
B2: EU Unemployment Rates by Country | U2: Source: EuroStat | V2: https://ec.europa.eu/eurostat/web/products-datasets/-/tipsun20
B4: Age group 15 to 74 | U4: ILOSTAT Monthly | V4: https://www.ilo.org/shinyapps/bulkexplorer9/?lang=en&segment=indicator&id=UNE_DEAP_SEX_AGE_RT_M
B6: Country | D6: 1990-01-01 | E6: 1991-01-01 | F6: 1992-01-01 | G6: 1993-01-01 | H6: 1994-01-01 | I6: 1995-01-01 | J6: 1996-01-01 | K6: 1997-01-01 | L6: 1998-01-01 | M6: 1999-01-01 | N6: 2000-01-01 | O6: 2001-01-01 | P6: 2002-01-01 | Q6: 2003-01-01 | R6: 2004-01-01 | S6: 2005-01-01 | T6: 2006-01-01 | U6: 2007-01-01 | V6: 2008-01-01 | W6: 2009-01-01 | X6: 2010-01-01 | Y6: 2011-01-01 | Z6: 2012-01-01 | AA6: 2013-01-01 | AB6: 2014-01-01 | AC6: 2015-01-01 | AD6: 2016-01-01 | AE6: 2017-01-01 | AF6: 2018-01-01 | AG6: 2019-01-01 | AH6: 2020-01-01
B7: Austria | I7: 0.042 | J7: 0.046 | K7: 0.046 | L7: 0.044 | M7: 0.037 | N7: 0.035 | O7: 0.036 | P7: 0.04 | Q7: 0.043 | R7: 0.055 | S7: 0.056 | T7: 0.053 | U7: 0.049 | V7: 0.041 | W7: 0.053 | X7: 0.048 | Y7: 0.046 | Z7: 0.049 | AA7: 0.054 | AB7: 0.056 | AC7: 0.057 | AD7: 0.06 | AE7: 0.055 | AF7: 0.049 | AG7: 0.045
B8: Belgium | I8: 0.095 | J8: 0.095 | K8: 0.093 | L8: 0.093 | M8: 0.086 | N8: 0.07 | O8: 0.066 | P8: 0.075 | Q8: 0.082 | R8: 0.084 | S8: 0.085 | T8: 0.083 | U8: 0.075 | V8: 0.07 | W8: 0.079 | X8: 0.083 | Y8: 0.072 | Z8: 0.076 | AA8: 0.084 | AB8: 0.085 | AC8: 0.085 | AD8: 0.078 | AE8: 0.071 | AF8: 0.06 | AG8: 0.054
B9: Bulgaria | N9: 0.169 | O9: 0.203 | P9: 0.182 | Q9: 0.137 | R9: 0.121 | S9: 0.101 | T9: 0.09 | U9: 0.069 | V9: 0.056 | W9: 0.068 | X9: 0.103 | Y9: 0.113 | Z9: 0.123 | AA9: 0.13 | AB9: 0.114 | AC9: 0.092 | AD9: 0.076 | AE9: 0.062 | AF9: 0.052 | AG9: 0.042
B10: Croatia | N10: 0.156 | O10: 0.16 | P10: 0.15 | Q10: 0.142 | R10: 0.137 | S10: 0.127 | T10: 0.113 | U10: 0.099 | V10: 0.086 | W10: 0.092 | X10: 0.117 | Y10: 0.137 | Z10: 0.16 | AA10: 0.173 | AB10: 0.173 | AC10: 0.162 | AD10: 0.131 | AE10: 0.112 | AF10: 0.085 | AG10: 0.066
B11: Cyprus | K11: 0.05 | L11: 0.05 | M11: 0.052 | N11: 0.049 | O11: 0.039 | P11: 0.036 | Q11: 0.043 | R11: 0.047 | S11: 0.053 | T11: 0.046 | U11: 0.039 | V11: 0.037 | W11: 0.054 | X11: 0.063 | Y11: 0.079 | Z11: 0.119 | AA11: 0.159 | AB11: 0.161 | AC11: 0.15 | AD11: 0.13 | AE11: 0.111 | AF11: 0.084 | AG11: 0.071
B12: Czech Republic | L12: 0.065 | M12: 0.088 | N12: 0.088 | O12: 0.082 | P12: 0.073 | Q12: 0.078 | R12: 0.083 | S12: 0.079 | T12: 0.072 | U12: 0.053 | V12: 0.044 | W12: 0.067 | X12: 0.073 | Y12: 0.067 | Z12: 0.07 | AA12: 0.07 | AB12: 0.061 | AC12: 0.051 | AD12: 0.04 | AE12: 0.029 | AF12: 0.022 | AG12: 0.02
B13: Denmark | I13: 0.073 | J13: 0.068 | K13: 0.057 | L13: 0.054 | M13: 0.056 | N13: 0.046 | O13: 0.046 | P13: 0.046 | Q13: 0.054 | R13: 0.055 | S13: 0.048 | T13: 0.039 | U13: 0.038 | V13: 0.037 | W13: 0.064 | X13: 0.077 | Y13: 0.078 | Z13: 0.078 | AA13: 0.074 | AB13: 0.069 | AC13: 0.063 | AD13: 0.06 | AE13: 0.058 | AF13: 0.051 | AG13: 0.05
B14: Estonia | K14: 0.102 | L14: 0.1 | M14: 0.124 | N14: 0.146 | O14: 0.13 | P14: 0.112 | Q14: 0.103 | R14: 0.101 | S14: 0.08 | T14: 0.059 | U14: 0.046 | V14: 0.055 | W14: 0.135 | X14: 0.167 | Y14: 0.123 | Z14: 0.1 | AA14: 0.086 | AB14: 0.074 | AC14: 0.062 | AD14: 0.068 | AE14: 0.058 | AF14: 0.054 | AG14: 0.044
B15: Finland | J15: 0.139 | K15: 0.131 | L15: 0.114 | M15: 0.102 | N15: 0.098 | O15: 0.091 | P15: 0.091 | Q15: 0.09 | R15: 0.088 | S15: 0.084 | T15: 0.077 | U15: 0.069 | V15: 0.064 | W15: 0.082 | X15: 0.084 | Y15: 0.078 | Z15: 0.077 | AA15: 0.082 | AB15: 0.087 | AC15: 0.094 | AD15: 0.088 | AE15: 0.086 | AF15: 0.074 | AG15: 0.067
B16: France | Q16: 0.085 | R16: 0.089 | S16: 0.089 | T16: 0.088 | U16: 0.08 | V16: 0.074 | W16: 0.091 | X16: 0.093 | Y16: 0.092 | Z16: 0.098 | AA16: 0.103 | AB16: 0.103 | AC16: 0.104 | AD16: 0.1 | AE16: 0.094 | AF16: 0.09 | AG16: 0.085
B17: Germany | I17: 0.084 | J17: 0.091 | K17: 0.099 | L17: 0.096 | M17: 0.087 | N17: 0.079 | O17: 0.08 | P17: 0.088 | Q17: 0.099 | R17: 0.109 | S17: 0.112 | T17: 0.103 | U17: 0.087 | V17: 0.075 | W17: 0.078 | X17: 0.07 | Y17: 0.058 | Z17: 0.054 | AA17: 0.052 | AB17: 0.05 | AC17: 0.046 | AD17: 0.041 | AE17: 0.038 | AF17: 0.034 | AG17: 0.032
B18: Greece | I18: 0.094 | J18: 0.098 | K18: 0.102 | L18: 0.112 | M18: 0.121 | N18: 0.114 | O18: 0.108 | P18: 0.104 | Q18: 0.098 | R18: 0.106 | S18: 0.1 | T18: 0.09 | U18: 0.084 | V18: 0.078 | W18: 0.096 | X18: 0.127 | Y18: 0.179 | Z18: 0.245 | AA18: 0.275 | AB18: 0.265 | AC18: 0.249 | AD18: 0.236 | AE18: 0.215 | AF18: 0.193 | AG18: 0.173
B19: Hungary | K19: 0.091 | L19: 0.085 | M19: 0.07 | N19: 0.064 | O19: 0.057 | P19: 0.058 | Q19: 0.059 | R19: 0.061 | S19: 0.072 | T19: 0.075 | U19: 0.074 | V19: 0.078 | W19: 0.1 | X19: 0.112 | Y19: 0.11 | Z19: 0.11 | AA19: 0.102 | AB19: 0.077 | AC19: 0.068 | AD19: 0.051 | AE19: 0.042 | AF19: 0.037 | AG19: 0.034
B20: Ireland | I20: 0.121 | J20: 0.116 | K20: 0.099 | L20: 0.078 | M20: 0.059 | N20: 0.045 | O20: 0.042 | P20: 0.047 | Q20: 0.048 | R20: 0.047 | S20: 0.046 | T20: 0.048 | U20: 0.05 | V20: 0.068 | W20: 0.126 | X20: 0.146 | Y20: 0.154 | Z20: 0.155 | AA20: 0.138 | AB20: 0.119 | AC20: 0.1 | AD20: 0.084 | AE20: 0.067 | AF20: 0.058 | AG20: 0.05
B21: Italy | I21: 0.114 | J21: 0.117 | K21: 0.117 | L21: 0.119 | M21: 0.114 | N21: 0.106 | O21: 0.096 | P21: 0.09 | Q21: 0.087 | R21: 0.08 | S21: 0.077 | T21: 0.068 | U21: 0.061 | V21: 0.067 | W21: 0.078 | X21: 0.084 | Y21: 0.084 | Z21: 0.107 | AA21: 0.122 | AB21: 0.127 | AC21: 0.119 | AD21: 0.117 | AE21: 0.112 | AF21: 0.106 | AG21: 0.1
B22: Latvia | K22: 0.144 | L22: 0.14 | M22: 0.14 | N22: 0.143 | O22: 0.137 | P22: 0.125 | Q22: 0.116 | R22: 0.117 | S22: 0.1 | T22: 0.07 | U22: 0.061 | V22: 0.077 | W22: 0.175 | X22: 0.195 | Y22: 0.162 | Z22: 0.15 | AA22: 0.119 | AB22: 0.108 | AC22: 0.099 | AD22: 0.096 | AE22: 0.087 | AF22: 0.074 | AG22: 0.063
B23: Lithuania | K23: 0.131 | L23: 0.134 | M23: 0.144 | N23: 0.164 | O23: 0.173 | P23: 0.137 | Q23: 0.125 | R23: 0.109 | S23: 0.083 | T23: 0.058 | U23: 0.043 | V23: 0.058 | W23: 0.138 | X23: 0.178 | Y23: 0.154 | Z23: 0.134 | AA23: 0.118 | AB23: 0.107 | AC23: 0.091 | AD23: 0.079 | AE23: 0.071 | AF23: 0.062 | AG23: 0.063
B24: Luxembourg | I24: 0.029 | J24: 0.029 | K24: 0.025 | L24: 0.026 | M24: 0.024 | N24: 0.024 | O24: 0.023 | P24: 0.029 | Q24: 0.037 | R24: 0.051 | S24: 0.045 | T24: 0.047 | U24: 0.041 | V24: 0.051 | W24: 0.051 | X24: 0.044 | Y24: 0.049 | Z24: 0.051 | AA24: 0.059 | AB24: 0.059 | AC24: 0.067 | AD24: 0.063 | AE24: 0.055 | AF24: 0.056 | AG24: 0.056
B25: Malta | K25: 0.063 | L25: 0.064 | M25: 0.064 | N25: 0.066 | O25: 0.069 | P25: 0.069 | Q25: 0.076 | R25: 0.072 | S25: 0.069 | T25: 0.068 | U25: 0.065 | V25: 0.06 | W25: 0.069 | X25: 0.069 | Y25: 0.064 | Z25: 0.062 | AA25: 0.061 | AB25: 0.057 | AC25: 0.054 | AD25: 0.047 | AE25: 0.04 | AF25: 0.037 | AG25: 0.034
B26: Netherlands | I26: 0.071 | J26: 0.064 | K26: 0.055 | L26: 0.044 | M26: 0.036 | N26: 0.029 | O26: 0.023 | P26: 0.028 | Q26: 0.037 | R26: 0.046 | S26: 0.059 | T26: 0.05 | U26: 0.042 | V26: 0.037 | W26: 0.044 | X26: 0.05 | Y26: 0.05 | Z26: 0.058 | AA26: 0.073 | AB26: 0.074 | AC26: 0.069 | AD26: 0.06 | AE26: 0.049 | AF26: 0.038 | AG26: 0.034
B27: Poland | L27: 0.103 | M27: 0.132 | N27: 0.162 | O27: 0.183 | P27: 0.2 | Q27: 0.197 | R27: 0.19 | S27: 0.178 | T27: 0.139 | U27: 0.096 | V27: 0.071 | W27: 0.082 | X27: 0.097 | Y27: 0.097 | Z27: 0.101 | AA27: 0.103 | AB27: 0.09 | AC27: 0.075 | AD27: 0.062 | AE27: 0.049 | AF27: 0.039 | AG27: 0.033
B28: Portugal | I28: 0.074 | J28: 0.074 | K28: 0.069 | L28: 0.051 | M28: 0.046 | N28: 0.041 | O28: 0.041 | P28: 0.051 | Q28: 0.064 | R28: 0.067 | S28: 0.077 | T28: 0.078 | U28: 0.081 | V28: 0.077 | W28: 0.096 | X28: 0.11 | Y28: 0.129 | Z28: 0.158 | AA28: 0.164 | AB28: 0.141 | AC28: 0.126 | AD28: 0.112 | AE28: 0.09 | AF28: 0.071 | AG28: 0.065
B29: Romania | L29: 0.064 | M29: 0.071 | N29: 0.073 | O29: 0.068 | P29: 0.086 | Q29: 0.07 | R29: 0.081 | S29: 0.072 | T29: 0.073 | U29: 0.064 | V29: 0.058 | W29: 0.069 | X29: 0.07 | Y29: 0.072 | Z29: 0.068 | AA29: 0.071 | AB29: 0.068 | AC29: 0.068 | AD29: 0.059 | AE29: 0.049 | AF29: 0.042 | AG29: 0.039
B30: Slovakia | K30: 0.122 | L30: 0.126 | M30: 0.164 | N30: 0.188 | O30: 0.193 | P30: 0.187 | Q30: 0.176 | R30: 0.182 | S30: 0.163 | T30: 0.134 | U30: 0.111 | V30: 0.095 | W30: 0.12 | X30: 0.144 | Y30: 0.136 | Z30: 0.14 | AA30: 0.142 | AB30: 0.132 | AC30: 0.115 | AD30: 0.097 | AE30: 0.081 | AF30: 0.065 | AG30: 0.058
B31: Slovenia | K31: 0.069 | L31: 0.074 | M31: 0.074 | N31: 0.068 | O31: 0.062 | P31: 0.063 | Q31: 0.067 | R31: 0.063 | S31: 0.065 | T31: 0.06 | U31: 0.049 | V31: 0.044 | W31: 0.059 | X31: 0.073 | Y31: 0.082 | Z31: 0.089 | AA31: 0.101 | AB31: 0.097 | AC31: 0.09 | AD31: 0.08 | AE31: 0.066 | AF31: 0.051 | AG31: 0.045
B32: Spain | I32: 0.229 | J32: 0.221 | K32: 0.206 | L32: 0.186 | M32: 0.157 | N32: 0.139 | O32: 0.106 | P32: 0.115 | Q32: 0.115 | R32: 0.11 | S32: 0.092 | T32: 0.085 | U32: 0.082 | V32: 0.113 | W32: 0.179 | X32: 0.199 | Y32: 0.214 | Z32: 0.248 | AA32: 0.261 | AB32: 0.245 | AC32: 0.221 | AD32: 0.196 | AE32: 0.172 | AF32: 0.153 | AG32: 0.141
B33: Sweden | J33: 0.096 | K33: 0.101 | L33: 0.088 | M33: 0.073 | N33: 0.055 | O33: 0.049 | P33: 0.051 | Q33: 0.057 | R33: 0.065 | S33: 0.075 | T33: 0.071 | U33: 0.062 | V33: 0.062 | W33: 0.084 | X33: 0.086 | Y33: 0.078 | Z33: 0.08 | AA33: 0.081 | AB33: 0.08 | AC33: 0.074 | AD33: 0.07 | AE33: 0.067 | AF33: 0.064 | AG33: 0.068
B34: United Kingdom | I34: 0.088 | J34: 0.082 | K34: 0.071 | L34: 0.064 | M34: 0.061 | N34: 0.056 | O34: 0.05 | P34: 0.051 | Q34: 0.05 | R34: 0.047 | S34: 0.048 | T34: 0.054 | U34: 0.053 | V34: 0.056 | W34: 0.076 | X34: 0.078 | Y34: 0.081 | Z34: 0.079 | AA34: 0.075 | AB34: 0.061 | AC34: 0.053 | AD34: 0.048 | AE34: 0.043 | AF34: 0.04 | AG34: 0.038
B36: Age group 15 to 24
B38: Country | D38: 1990-01-01 | E38: 1991-01-01 | F38: 1992-01-01 | G38: 1993-01-01 | H38: 1994-01-01 | I38: 1995-01-01 | J38: 1996-01-01 | K38: 1997-01-01 | L38: 1998-01-01 | M38: 1999-01-01 | N38: 2000-01-01 | O38: 2001-01-01 | P38: 2002-01-01 | Q38: 2003-01-01 | R38: 2004-01-01 | S38: 2005-01-01 | T38: 2006-01-01 | U38: 2007-01-01 | V38: 2008-01-01 | W38: 2009-01-01 | X38: 2010-01-01 | Y38: 2011-01-01 | Z38: 2012-01-01 | AA38: 2013-01-01 | AB38: 2014-01-01 | AC38: 2015-01-01 | AD38: 2016-01-01 | AE38: 2017-01-01 | AF38: 2018-01-01 | AG38: 2019-01-01 | AH38: 2020-01-01
B39: Austria | H39: 0.057 | I39: 0.059 | J39: 0.065 | K39: 0.067 | L39: 0.062 | M39: 0.05 | N39: 0.051 | O39: 0.057 | P39: 0.062 | Q39: 0.07 | R39: 0.105 | S39: 0.11 | T39: 0.098 | U39: 0.094 | V39: 0.085 | W39: 0.107 | X39: 0.095 | Y39: 0.089 | Z39: 0.094 | AA39: 0.097 | AB39: 0.103 | AC39: 0.106 | AD39: 0.112 | AE39: 0.098 | AF39: 0.094 | AG39: 0.085 | AH39: 0.083
B40: Belgium | D40: 0.146 | E40: 0.142 | F40: 0.154 | G40: 0.207 | H40: 0.232 | I40: 0.215 | J40: 0.209 | K40: 0.211 | L40: 0.21 | M40: 0.21 | N40: 0.175 | O40: 0.17 | P40: 0.177 | Q40: 0.218 | R40: 0.212 | S40: 0.215 | T40: 0.205 | U40: 0.188 | V40: 0.18 | W40: 0.219 | X40: 0.224 | Y40: 0.187 | Z40: 0.198 | AA40: 0.237 | AB40: 0.232 | AC40: 0.221 | AD40: 0.201 | AE40: 0.193 | AF40: 0.158 | AG40: 0.142 | AH40: 0.152
B41: Bulgaria | N41: 0.355 | O41: 0.404 | P41: 0.372 | Q41: 0.282 | R41: 0.258 | S41: 0.223 | T41: 0.195 | U41: 0.151 | V41: 0.127 | W41: 0.162 | X41: 0.219 | Y41: 0.25 | Z41: 0.281 | AA41: 0.284 | AB41: 0.238 | AC41: 0.216 | AD41: 0.172 | AE41: 0.129 | AF41: 0.127 | AG41: 0.089 | AH41: 0.138
B42: Croatia | N42: 0.377 | O42: 0.383 | P42: 0.361 | Q42: 0.35 | R42: 0.328 | S42: 0.317 | T42: 0.287 | U42: 0.252 | V42: 0.237 | W42: 0.252 | X42: 0.324 | Y42: 0.367 | Z42: 0.421 | AA42: 0.5 | AB42: 0.455 | AC42: 0.423 | AD42: 0.313 | AE42: 0.274 | AF42: 0.237 | AG42: 0.166 | AH42: 0.189
B43: Cyprus | K43: 0.102 | L43: 0.102 | M43: 0.102 | N43: 0.097 | O43: 0.082 | P43: 0.079 | Q43: 0.088 | R43: 0.101 | S43: 0.139 | T43: 0.1 | U43: 0.102 | V43: 0.09 | W43: 0.138 | X43: 0.166 | Y43: 0.224 | Z43: 0.277 | AA43: 0.389 | AB43: 0.36 | AC43: 0.328 | AD43: 0.291 | AE43: 0.247 | AF43: 0.202 | AG43: 0.166 | AH43: 0.16
B44: Czech Republic | G44: 0.084 | H44: 0.087 | L44: 0.13 | M44: 0.18 | N44: 0.181 | O44: 0.176 | P44: 0.169 | Q44: 0.186 | R44: 0.21 | S44: 0.192 | T44: 0.175 | U44: 0.107 | V44: 0.099 | W44: 0.166 | X44: 0.183 | Y44: 0.181 | Z44: 0.195 | AA44: 0.19 | AB44: 0.159 | AC44: 0.126 | AD44: 0.105 | AE44: 0.079 | AF44: 0.067 | AG44: 0.056 | AH44: 0.049
B45: Denmark | D45: 0.105 | E45: 0.107 | F45: 0.117 | G45: 0.128 | H45: 0.102 | I45: 0.102 | J45: 0.101 | K45: 0.083 | L45: 0.081 | M45: 0.095 | N45: 0.067 | O45: 0.084 | P45: 0.074 | Q45: 0.092 | R45: 0.082 | S45: 0.086 | T45: 0.077 | U45: 0.075 | V45: 0.095 | W45: 0.135 | X45: 0.156 | Y45: 0.164 | Z45: 0.158 | AA45: 0.148 | AB45: 0.142 | AC45: 0.122 | AD45: 0.122 | AE45: 0.124 | AF45: 0.105 | AG45: 0.101 | AH45: 0.109
B46: Estonia | K46: 0.176 | L46: 0.16 | M46: 0.211 | N46: 0.239 | O46: 0.222 | P46: 0.179 | Q46: 0.209 | R46: 0.239 | S46: 0.151 | T46: 0.121 | U46: 0.101 | V46: 0.12 | W46: 0.274 | X46: 0.329 | Y46: 0.224 | Z46: 0.209 | AA46: 0.187 | AB46: 0.15 | AC46: 0.131 | AD46: 0.134 | AE46: 0.121 | AF46: 0.118 | AG46: 0.111 | AH46: 0.098
B47: Finland | D47: 0.093 | E47: 0.163 | F47: 0.264 | G47: 0.336 | H47: 0.34 | J47: 0.319 | K47: 0.269 | L47: 0.24 | M47: 0.215 | N47: 0.214 | O47: 0.198 | P47: 0.21 | Q47: 0.218 | R47: 0.207 | S47: 0.201 | T47: 0.187 | U47: 0.165 | V47: 0.165 | W47: 0.215 | X47: 0.214 | Y47: 0.201 | Z47: 0.19 | AA47: 0.199 | AB47: 0.205 | AC47: 0.224 | AD47: 0.201 | AE47: 0.201 | AF47: 0.17 | AG47: 0.172 | AH47: 0.258
B48: France | D48: 0.214 | E48: 0.236 | F48: 0.276 | G48: 0.33 | H48: 0.354 | Q48: 0.189 | R48: 0.204 | S48: 0.209 | T48: 0.22 | U48: 0.194 | V48: 0.19 | W48: 0.236 | X48: 0.233 | Y48: 0.227 | Z48: 0.244 | AA48: 0.249 | AB48: 0.242 | AC48: 0.247 | AD48: 0.245 | AE48: 0.221 | AF48: 0.208 | AG48: 0.196 | AH48: 0.2
B49: Germany | E49: 0.058 | F49: 0.065 | G49: 0.08 | H49: 0.089 | I49: 0.09 | J49: 0.101 | K49: 0.107 | L49: 0.098 | M49: 0.091 | N49: 0.086 | O49: 0.084 | P49: 0.098 | Q49: 0.116 | R49: 0.137 | S49: 0.155 | T49: 0.138 | U49: 0.119 | V49: 0.106 | W49: 0.112 | X49: 0.098 | Y49: 0.085 | Z49: 0.08 | AA49: 0.078 | AB49: 0.077 | AC49: 0.072 | AD49: 0.071 | AE49: 0.068 | AF49: 0.062 | AG49: 0.058 | AH49: 0.058
B50: Greece | I50: 0.287 | J50: 0.311 | K50: 0.314 | L50: 0.305 | M50: 0.316 | N50: 0.292 | O50: 0.28 | P50: 0.266 | Q50: 0.266 | R50: 0.265 | S50: 0.258 | T50: 0.25 | U50: 0.227 | V50: 0.219 | W50: 0.257 | X50: 0.33 | Y50: 0.447 | Z50: 0.553 | AA50: 0.583 | AB50: 0.524 | AC50: 0.498 | AD50: 0.473 | AE50: 0.436 | AF50: 0.399 | AG50: 0.352 | AH50: 0.393
B51: Hungary | K51: 0.171 | L51: 0.151 | M51: 0.128 | N51: 0.125 | O51: 0.113 | P51: 0.127 | Q51: 0.134 | R51: 0.155 | S51: 0.194 | T51: 0.191 | U51: 0.18 | V51: 0.195 | W51: 0.264 | X51: 0.264 | Y51: 0.26 | Z51: 0.282 | AA51: 0.266 | AB51: 0.204 | AC51: 0.173 | AD51: 0.129 | AE51: 0.107 | AF51: 0.102 | AG51: 0.114 | AH51: 0.114
B52: Ireland | D52: 0.194 | E52: 0.224 | F52: 0.244 | G52: 0.253 | H52: 0.23 | I52: 0.192 | J52: 0.179 | K52: 0.154 | L52: 0.113 | M52: 0.087 | N52: 0.069 | O52: 0.073 | P52: 0.085 | Q52: 0.089 | R52: 0.088 | S52: 0.087 | T52: 0.088 | U52: 0.092 | V52: 0.135 | W52: 0.245 | X52: 0.281 | Y52: 0.296 | Z52: 0.308 | AA52: 0.267 | AB52: 0.234 | AC52: 0.202 | AD52: 0.168 | AE52: 0.144 | AF52: 0.138 | AG52: 0.125 | AH52: 0.116
B53: Italy | F53: 0.264 | G53: 0.271 | H53: 0.287 | I53: 0.333 | J53: 0.344 | K53: 0.341 | L53: 0.338 | M53: 0.329 | N53: 0.311 | O53: 0.282 | P53: 0.272 | Q53: 0.271 | R53: 0.235 | S53: 0.241 | T53: 0.218 | U53: 0.204 | V53: 0.212 | W53: 0.253 | X53: 0.279 | Y53: 0.292 | Z53: 0.353 | AA53: 0.4 | AB53: 0.427 | AC53: 0.403 | AD53: 0.378 | AE53: 0.347 | AF53: 0.322 | AG53: 0.292 | AH53: 0.267
B54: Latvia | K54: 0.274 | L54: 0.258 | M54: 0.239 | N54: 0.222 | O54: 0.229 | P54: 0.203 | Q54: 0.196 | R54: 0.2 | S54: 0.151 | T54: 0.136 | U54: 0.106 | V54: 0.136 | W54: 0.333 | X54: 0.362 | Y54: 0.31 | Z54: 0.285 | AA54: 0.232 | AB54: 0.196 | AC54: 0.163 | AD54: 0.173 | AE54: 0.17 | AF54: 0.122 | AG54: 0.124 | AH54: 0.124
B55: Lithuania | K55: 0.25 | L55: 0.238 | M55: 0.263 | N55: 0.297 | O55: 0.314 | P55: 0.23 | Q55: 0.251 | R55: 0.218 | S55: 0.158 | T55: 0.1 | U55: 0.084 | V55: 0.133 | W55: 0.296 | X55: 0.357 | Y55: 0.326 | Z55: 0.267 | AA55: 0.219 | AB55: 0.193 | AC55: 0.163 | AD55: 0.145 | AE55: 0.133 | AF55: 0.111 | AG55: 0.119 | AH55: 0.186
B56: Luxembourg | D56: 0.038 | E56: 0.031 | F56: 0.038 | G56: 0.052 | H56: 0.071 | I56: 0.084 | J56: 0.088 | K56: 0.075 | L56: 0.076 | M56: 0.079 | N56: 0.081 | O56: 0.087 | P56: 0.09 | Q56: 0.109 | R56: 0.169 | S56: 0.137 | T56: 0.162 | U56: 0.152 | V56: 0.179 | W56: 0.172 | X56: 0.142 | Y56: 0.168 | Z56: 0.188 | AA56: 0.155 | AB56: 0.226 | AC56: 0.173 | AD56: 0.189 | AE56: 0.154 | AF56: 0.142 | AG56: 0.17 | AH56: 0.229
B57: Malta | K57: 0.118 | L57: 0.12 | M57: 0.123 | N57: 0.133 | O57: 0.153 | P57: 0.141 | Q57: 0.164 | R57: 0.166 | S57: 0.161 | T57: 0.155 | U57: 0.135 | V57: 0.117 | W57: 0.145 | X57: 0.132 | Y57: 0.133 | Z57: 0.138 | AA57: 0.127 | AB57: 0.117 | AC57: 0.116 | AD57: 0.107 | AE57: 0.106 | AF57: 0.091 | AG57: 0.092 | AH57: 0.101
B58: Netherlands | D58: 0.091 | E58: 0.088 | F58: 0.085 | G58: 0.104 | H58: 0.111 | I58: 0.12 | J58: 0.113 | K58: 0.098 | L58: 0.087 | M58: 0.07 | N58: 0.058 | O58: 0.046 | P58: 0.05 | Q58: 0.063 | R58: 0.08 | S58: 0.118 | T58: 0.1 | U58: 0.094 | V58: 0.086 | W58: 0.102 | X58: 0.111 | Y58: 0.1 | Z58: 0.117 | AA58: 0.132 | AB58: 0.127 | AC58: 0.113 | AD58: 0.108 | AE58: 0.089 | AF58: 0.072 | AG58: 0.067 | AH58: 0.068
B59: Poland | L59: 0.234 | M59: 0.311 | N59: 0.351 | O59: 0.395 | P59: 0.425 | Q59: 0.419 | R59: 0.396 | S59: 0.369 | T59: 0.298 | U59: 0.217 | V59: 0.173 | W59: 0.206 | X59: 0.237 | Y59: 0.258 | Z59: 0.265 | AA59: 0.273 | AB59: 0.239 | AC59: 0.208 | AD59: 0.177 | AE59: 0.148 | AF59: 0.117 | AG59: 0.099 | AH59: 0.073
B60: Portugal | D60: 0.129 | E60: 0.119 | F60: 0.125 | G60: 0.15 | H60: 0.169 | I60: 0.169 | J60: 0.17 | K60: 0.152 | L60: 0.107 | M60: 0.092 | N60: 0.089 | O60: 0.094 | P60: 0.117 | Q60: 0.146 | R60: 0.154 | S60: 0.162 | T60: 0.165 | U60: 0.167 | V60: 0.167 | W60: 0.203 | X60: 0.228 | Y60: 0.303 | Z60: 0.379 | AA60: 0.381 | AB60: 0.348 | AC60: 0.32 | AD60: 0.28 | AE60: 0.239 | AF60: 0.203 | AG60: 0.183 | AH60: 0.197
B61: Romania | L61: 0.189 | M61: 0.204 | N61: 0.2 | O61: 0.186 | P61: 0.232 | Q61: 0.196 | R61: 0.219 | S61: 0.202 | T61: 0.214 | U61: 0.201 | V61: 0.186 | W61: 0.208 | X61: 0.221 | Y61: 0.239 | Z61: 0.226 | AA61: 0.237 | AB61: 0.24 | AC61: 0.217 | AD61: 0.206 | AE61: 0.183 | AF61: 0.162 | AG61: 0.168 | AH61: 0.185
B62: Slovakia | K62: 0.242 | L62: 0.251 | M62: 0.338 | N62: 0.369 | O62: 0.392 | P62: 0.377 | Q62: 0.334 | R62: 0.331 | S62: 0.301 | T62: 0.266 | U62: 0.203 | V62: 0.19 | W62: 0.273 | X62: 0.336 | Y62: 0.334 | Z62: 0.34 | AA62: 0.337 | AB62: 0.297 | AC62: 0.265 | AD62: 0.222 | AE62: 0.189 | AF62: 0.149 | AG62: 0.161 | AH62: 0.151
B63: Slovenia | K63: 0.167 | L63: 0.175 | M63: 0.176 | N63: 0.163 | O63: 0.178 | P63: 0.165 | Q63: 0.173 | R63: 0.161 | S63: 0.159 | T63: 0.139 | U63: 0.101 | V63: 0.104 | W63: 0.136 | X63: 0.147 | Y63: 0.157 | Z63: 0.206 | AA63: 0.216 | AB63: 0.202 | AC63: 0.163 | AD63: 0.152 | AE63: 0.112 | AF63: 0.088 | AG63: 0.081 | AH63: 0.087
B64: Spain | D64: 0.305 | E64: 0.292 | F64: 0.323 | G64: 0.407 | H64: 0.423 | I64: 0.423 | J64: 0.419 | K64: 0.389 | L64: 0.352 | M64: 0.294 | N64: 0.26 | O64: 0.211 | P64: 0.222 | Q64: 0.227 | R64: 0.22 | S64: 0.196 | T64: 0.179 | U64: 0.181 | V64: 0.245 | W64: 0.377 | X64: 0.415 | Y64: 0.462 | Z64: 0.529 | AA64: 0.555 | AB64: 0.532 | AC64: 0.483 | AD64: 0.444 | AE64: 0.386 | AF64: 0.343 | AG64: 0.325 | AH64: 0.348
B65: Sweden | D65: 0.044 | E65: 0.076 | F65: 0.132 | G65: 0.22 | H65: 0.22 | J65: 0.212 | K65: 0.208 | L65: 0.173 | M65: 0.155 | N65: 0.112 | O65: 0.117 | P65: 0.128 | Q65: 0.137 | R65: 0.17 | S65: 0.219 | T65: 0.215 | U65: 0.193 | V65: 0.202 | W65: 0.25 | X65: 0.248 | Y65: 0.228 | Z65: 0.236 | AA65: 0.235 | AB65: 0.229 | AC65: 0.204 | AD65: 0.189 | AE65: 0.179 | AF65: 0.174 | AG65: 0.201 | AH65: 0.223
B66: United Kingdom | D66: 0.104 | E66: 0.139 | F66: 0.163 | G66: 0.175 | H66: 0.164 | I66: 0.165 | J66: 0.157 | K66: 0.144 | L66: 0.135 | M66: 0.132 | N66: 0.127 | O66: 0.118 | P66: 0.12 | Q66: 0.122 | R66: 0.12 | S66: 0.127 | T66: 0.139 | U66: 0.143 | V66: 0.15 | W66: 0.191 | X66: 0.199 | Y66: 0.213 | Z66: 0.212 | AA66: 0.207 | AB66: 0.17 | AC66: 0.146 | AD66: 0.13 | AE66: 0.121 | AF66: 0.113 | AG66: 0.112 | AH66: 0.111
B68: Age group 25 to 74
B70: Country | D70: 1990-01-01 | E70: 1991-01-01 | F70: 1992-01-01 | G70: 1993-01-01 | H70: 1994-01-01 | I70: 1995-01-01 | J70: 1996-01-01 | K70: 1997-01-01 | L70: 1998-01-01 | M70: 1999-01-01 | N70: 2000-01-01 | O70: 2001-01-01 | P70: 2002-01-01 | Q70: 2003-01-01 | R70: 2004-01-01 | S70: 2005-01-01 | T70: 2006-01-01 | U70: 2007-01-01 | V70: 2008-01-01 | W70: 2009-01-01 | X70: 2010-01-01 | Y70: 2011-01-01 | Z70: 2012-01-01 | AA70: 2013-01-01 | AB70: 2014-01-01 | AC70: 2015-01-01 | AD70: 2016-01-01 | AE70: 2017-01-01 | AF70: 2018-01-01 | AG70: 2019-01-01 | AH70: 2020-01-01
B71: Austria | H71: 0.035 | I71: 0.039 | J71: 0.043 | K71: 0.042 | L71: 0.041 | M71: 0.035 | N71: 0.033 | O71: 0.033 | P71: 0.036 | Q71: 0.039 | R71: 0.047 | S71: 0.047 | T71: 0.045 | U71: 0.041 | V71: 0.034 | W71: 0.044 | X71: 0.041 | Y71: 0.039 | Z71: 0.042 | AA71: 0.047 | AB71: 0.049 | AC71: 0.05 | AD71: 0.053 | AE71: 0.049 | AF71: 0.043 | AG71: 0.04 | AH71: 0.045
B72: Belgium | D72: 0.054 | E72: 0.054 | F72: 0.06 | G72: 0.071 | H72: 0.081 | I72: 0.081 | J72: 0.082 | K72: 0.079 | L72: 0.08 | M72: 0.072 | N72: 0.059 | O72: 0.054 | P72: 0.064 | Q72: 0.067 | R72: 0.07 | S72: 0.071 | T72: 0.07 | U72: 0.063 | V72: 0.059 | W72: 0.066 | X72: 0.07 | Y72: 0.06 | Z72: 0.064 | AA72: 0.071 | AB72: 0.073 | AC72: 0.073 | AD72: 0.068 | AE72: 0.061 | AF72: 0.052 | AG72: 0.046 | AH72: 0.045
B73: Bulgaria | N73: 0.148 | O73: 0.179 | P73: 0.161 | Q73: 0.122 | R73: 0.107 | S73: 0.089 | T73: 0.079 | U73: 0.061 | V73: 0.05 | W73: 0.06 | X73: 0.092 | Y73: 0.101 | Z73: 0.11 | AA73: 0.118 | AB73: 0.107 | AC73: 0.084 | AD73: 0.071 | AE73: 0.058 | AF73: 0.049 | AG73: 0.04 | AH73: 0.044
B74: Croatia | N74: 0.125 | O74: 0.128 | P74: 0.119 | Q74: 0.113 | R74: 0.111 | S74: 0.103 | T74: 0.092 | U74: 0.082 | V74: 0.069 | W74: 0.075 | X74: 0.095 | Y74: 0.116 | Z74: 0.137 | AA74: 0.144 | AB74: 0.146 | AC74: 0.138 | AD74: 0.112 | AE74: 0.096 | AF74: 0.07 | AG74: 0.057 | AH74: 0.063
B75: Cyprus | K75: 0.042 | L75: 0.043 | M75: 0.045 | N75: 0.042 | O75: 0.034 | P75: 0.031 | Q75: 0.037 | R75: 0.041 | S75: 0.043 | T75: 0.039 | U75: 0.033 | V75: 0.031 | W75: 0.044 | X75: 0.051 | Y75: 0.064 | Z75: 0.102 | AA75: 0.136 | AB75: 0.14 | AC75: 0.132 | AD75: 0.115 | AE75: 0.099 | AF75: 0.073 | AG75: 0.063 | AH75: 0.066
B76: Czech Republic | G76: 0.035 | H76: 0.034 | L76: 0.053 | M76: 0.072 | N76: 0.074 | O76: 0.069 | P76: 0.062 | Q76: 0.066 | R76: 0.07 | S76: 0.068 | T76: 0.062 | U76: 0.048 | V76: 0.039 | W76: 0.058 | X76: 0.064 | Y76: 0.059 | Z76: 0.06 | AA76: 0.061 | AB76: 0.054 | AC76: 0.045 | AD76: 0.035 | AE76: 0.026 | AF76: 0.02 | AG76: 0.018 | AH76: 0.017
B77: Denmark | D77: 0.064 | E77: 0.072 | F77: 0.079 | G77: 0.089 | H77: 0.072 | I77: 0.066 | J77: 0.061 | K77: 0.051 | L77: 0.049 | M77: 0.049 | N77: 0.043 | O77: 0.04 | P77: 0.041 | Q77: 0.048 | R77: 0.051 | S77: 0.042 | T77: 0.032 | U77: 0.032 | V77: 0.026 | W77: 0.051 | X77: 0.064 | Y77: 0.062 | Z77: 0.064 | AA77: 0.061 | AB77: 0.057 | AC77: 0.053 | AD77: 0.049 | AE77: 0.047 | AF77: 0.042 | AG77: 0.042 | AH77: 0.04
B78: Estonia | K78: 0.092 | L78: 0.092 | M78: 0.113 | N78: 0.134 | O78: 0.119 | P78: 0.105 | Q78: 0.09 | R78: 0.084 | S78: 0.072 | T78: 0.052 | U78: 0.039 | V78: 0.046 | W78: 0.119 | X78: 0.149 | Y78: 0.112 | Z78: 0.089 | AA78: 0.076 | AB78: 0.067 | AC78: 0.056 | AD78: 0.062 | AE78: 0.052 | AF78: 0.048 | AG78: 0.039 | AH78: 0.046
B79: Finland | D79: 0.021 | E79: 0.051 | F79: 0.096 | G79: 0.141 | H79: 0.145 | J79: 0.12 | K79: 0.115 | L79: 0.098 | M79: 0.086 | N79: 0.081 | O79: 0.076 | P79: 0.074 | Q79: 0.072 | R79: 0.072 | S79: 0.068 | T79: 0.062 | U79: 0.054 | V79: 0.049 | W79: 0.064 | X79: 0.066 | Y79: 0.061 | Z79: 0.061 | AA79: 0.065 | AB79: 0.07 | AC79: 0.076 | AD79: 0.073 | AE79: 0.071 | AF79: 0.061 | AG79: 0.053 | AH79: 0.05
B80: France | D80: 0.052 | E80: 0.052 | F80: 0.057 | G80: 0.061 | H80: 0.063 | Q80: 0.073 | R80: 0.075 | S80: 0.075 | T80: 0.073 | U80: 0.067 | V80: 0.061 | W80: 0.074 | X80: 0.077 | Y80: 0.077 | Z80: 0.082 | AA80: 0.088 | AB80: 0.089 | AC80: 0.089 | AD80: 0.085 | AE80: 0.081 | AF80: 0.078 | AG80: 0.073 | AH80: 0.073
B81: Germany | E81: 0.055 | F81: 0.066 | G81: 0.077 | H81: 0.084 | I81: 0.083 | J81: 0.09 | K81: 0.098 | L81: 0.096 | M81: 0.087 | N81: 0.078 | O81: 0.08 | P81: 0.086 | Q81: 0.097 | R81: 0.105 | S81: 0.106 | T81: 0.098 | U81: 0.082 | V81: 0.071 | W81: 0.073 | X81: 0.066 | Y81: 0.055 | Z81: 0.051 | AA81: 0.049 | AB81: 0.047 | AC81: 0.044 | AD81: 0.038 | AE81: 0.034 | AF81: 0.031 | AG81: 0.029 | AH81: 0.036
B82: Greece | I82: 0.067 | J82: 0.069 | K82: 0.073 | L82: 0.083 | M82: 0.093 | N82: 0.089 | O82: 0.086 | P82: 0.084 | Q82: 0.079 | R82: 0.088 | S82: 0.084 | T82: 0.075 | U82: 0.072 | V82: 0.066 | W82: 0.084 | X82: 0.112 | Y82: 0.159 | Z82: 0.223 | AA82: 0.254 | AB82: 0.248 | AC82: 0.234 | AD82: 0.222 | AE82: 0.202 | AF82: 0.182 | AG82: 0.164 | AH82: 0.16
B83: Hungary | K83: 0.077 | L83: 0.073 | M83: 0.06 | N83: 0.054 | O83: 0.05 | P83: 0.05 | Q83: 0.05 | R83: 0.052 | S83: 0.061 | T83: 0.065 | U83: 0.065 | V83: 0.069 | W83: 0.088 | X83: 0.1 | Y83: 0.099 | Z83: 0.097 | AA83: 0.089 | AB83: 0.067 | AC83: 0.06 | AD83: 0.045 | AE83: 0.036 | AF83: 0.032 | AG83: 0.028 | AH83: 0.032
B84: Ireland | D84: 0.117 | E84: 0.126 | F84: 0.13 | G84: 0.131 | H84: 0.122 | I84: 0.104 | J84: 0.1 | K84: 0.086 | L84: 0.067 | M84: 0.05 | N84: 0.038 | O84: 0.033 | P84: 0.037 | Q84: 0.038 | R84: 0.037 | S84: 0.037 | T84: 0.038 | U84: 0.04 | V84: 0.053 | W84: 0.103 | X84: 0.123 | Y84: 0.132 | Z84: 0.132 | AA84: 0.119 | AB84: 0.103 | AC84: 0.086 | AD84: 0.072 | AE84: 0.057 | AF84: 0.047 | AG84: 0.04 | AH84: 0.041
B85: Italy | F85: 0.055 | G85: 0.066 | H85: 0.075 | I85: 0.08 | J85: 0.083 | K85: 0.086 | L85: 0.088 | M85: 0.087 | N85: 0.081 | O85: 0.075 | P85: 0.071 | Q85: 0.068 | R85: 0.065 | S85: 0.063 | T85: 0.055 | U85: 0.049 | V85: 0.056 | W85: 0.064 | X85: 0.069 | Y85: 0.069 | Z85: 0.089 | AA85: 0.103 | AB85: 0.107 | AC85: 0.101 | AD85: 0.1 | AE85: 0.098 | AF85: 0.093 | AG85: 0.088 | AH85: 0.087
B86: Latvia | K86: 0.124 | L86: 0.123 | M86: 0.125 | N86: 0.132 | O86: 0.125 | P86: 0.114 | Q86: 0.106 | R86: 0.106 | S86: 0.093 | T86: 0.061 | U86: 0.054 | V86: 0.069 | W86: 0.154 | X86: 0.174 | Y86: 0.146 | Z86: 0.136 | AA86: 0.107 | AB86: 0.1 | AC86: 0.093 | AD86: 0.09 | AE86: 0.081 | AF86: 0.071 | AG86: 0.059 | AH86: 0.07
B87: Lithuania | K87: 0.113 | L87: 0.119 | M87: 0.127 | N87: 0.148 | O87: 0.157 | P87: 0.128 | Q87: 0.111 | R87: 0.099 | S87: 0.077 | T87: 0.054 | U87: 0.039 | V87: 0.05 | W87: 0.122 | X87: 0.161 | Y87: 0.139 | Z87: 0.122 | AA87: 0.109 | AB87: 0.099 | AC87: 0.085 | AD87: 0.073 | AE87: 0.066 | AF87: 0.058 | AG87: 0.058 | AH87: 0.07
B88: Luxembourg | D88: 0.013 | E88: 0.014 | F88: 0.018 | G88: 0.022 | H88: 0.026 | I88: 0.023 | J88: 0.023 | K88: 0.02 | L88: 0.021 | M88: 0.019 | N88: 0.019 | O88: 0.018 | P88: 0.024 | Q88: 0.031 | R88: 0.042 | S88: 0.038 | T88: 0.039 | U88: 0.033 | V88: 0.04 | W88: 0.041 | X88: 0.037 | Y88: 0.041 | Z88: 0.042 | AA88: 0.052 | AB88: 0.048 | AC88: 0.057 | AD88: 0.053 | AE88: 0.047 | AF88: 0.049 | AG88: 0.046 | AH88: 0.053
B89: Malta | K89: 0.047 | L89: 0.047 | M89: 0.047 | N89: 0.047 | O89: 0.043 | P89: 0.048 | Q89: 0.052 | R89: 0.047 | S89: 0.047 | T89: 0.048 | U89: 0.049 | V89: 0.048 | W89: 0.053 | X89: 0.056 | Y89: 0.05 | Z89: 0.048 | AA89: 0.049 | AB89: 0.047 | AC89: 0.044 | AD89: 0.038 | AE89: 0.031 | AF89: 0.029 | AG89: 0.026 | AH89: 0.027
B90: Netherlands | D90: 0.053 | E90: 0.049 | F90: 0.051 | G90: 0.056 | H90: 0.064 | I90: 0.061 | J90: 0.054 | K90: 0.046 | L90: 0.036 | M90: 0.029 | N90: 0.024 | O90: 0.018 | P90: 0.023 | Q90: 0.032 | R90: 0.039 | S90: 0.048 | T90: 0.041 | U90: 0.032 | V90: 0.027 | W90: 0.032 | X90: 0.039 | Y90: 0.04 | Z90: 0.047 | AA90: 0.061 | AB90: 0.065 | AC90: 0.061 | AD90: 0.051 | AE90: 0.041 | AF90: 0.032 | AG90: 0.028 | AH90: 0.025
B91: Poland | L91: 0.086 | M91: 0.109 | N91: 0.134 | O91: 0.149 | P91: 0.165 | Q91: 0.163 | R91: 0.161 | S91: 0.151 | T91: 0.118 | U91: 0.081 | V91: 0.059 | W91: 0.068 | X91: 0.081 | Y91: 0.08 | Z91: 0.085 | AA91: 0.088 | AB91: 0.077 | AC91: 0.064 | AD91: 0.052 | AE91: 0.041 | AF91: 0.032 | AG91: 0.028 | AH91: 0.028
B92: Portugal | D92: 0.037 | E92: 0.034 | F92: 0.032 | G92: 0.045 | H92: 0.057 | I92: 0.057 | J92: 0.058 | K92: 0.055 | L92: 0.042 | M92: 0.038 | N92: 0.034 | O92: 0.033 | P92: 0.041 | Q92: 0.053 | R92: 0.057 | S92: 0.067 | T92: 0.068 | U92: 0.072 | V92: 0.068 | W92: 0.086 | X92: 0.1 | Y92: 0.113 | Z92: 0.139 | AA92: 0.147 | AB92: 0.125 | AC92: 0.111 | AD92: 0.099 | AE92: 0.078 | AF92: 0.061 | AG92: 0.056 | AH92: 0.058
B93: Romania | L93: 0.043 | M93: 0.05 | N93: 0.054 | O93: 0.05 | P93: 0.065 | Q93: 0.054 | R93: 0.062 | S93: 0.056 | T93: 0.057 | U93: 0.049 | V93: 0.044 | W93: 0.054 | X93: 0.056 | Y93: 0.057 | Z93: 0.054 | AA93: 0.057 | AB93: 0.055 | AC93: 0.056 | AD93: 0.048 | AE93: 0.039 | AF93: 0.033 | AG93: 0.03 | AH93: 0.038
B94: Slovakia | K94: 0.098 | L94: 0.101 | M94: 0.129 | N94: 0.153 | O94: 0.157 | P94: 0.153 | Q94: 0.149 | R94: 0.16 | S94: 0.144 | T94: 0.117 | U94: 0.1 | V94: 0.084 | W94: 0.104 | X94: 0.125 | Y94: 0.118 | Z94: 0.122 | AA94: 0.125 | AB94: 0.118 | AC94: 0.102 | AD94: 0.087 | AE94: 0.073 | AF94: 0.059 | AG94: 0.051 | AH94: 0.049
B95: Slovenia | K95: 0.052 | L95: 0.058 | M95: 0.059 | N95: 0.055 | O95: 0.048 | P95: 0.051 | Q95: 0.055 | R95: 0.051 | S95: 0.054 | T95: 0.051 | U95: 0.042 | V95: 0.037 | W95: 0.051 | X95: 0.065 | Y95: 0.075 | Z95: 0.079 | AA95: 0.092 | AB95: 0.09 | AC95: 0.084 | AD95: 0.075 | AE95: 0.062 | AF95: 0.048 | AG95: 0.042 | AH95: 0.036
B96: Spain | D96: 0.117 | E96: 0.122 | F96: 0.136 | G96: 0.166 | H96: 0.179 | I96: 0.19 | J96: 0.184 | K96: 0.173 | L96: 0.157 | M96: 0.134 | N96: 0.119 | O96: 0.089 | P96: 0.098 | Q96: 0.099 | R96: 0.095 | S96: 0.077 | T96: 0.072 | U96: 0.07 | V96: 0.097 | W96: 0.157 | X96: 0.178 | Y96: 0.192 | Z96: 0.225 | AA96: 0.238 | AB96: 0.223 | AC96: 0.202 | AD96: 0.179 | AE96: 0.157 | AF96: 0.139 | AG96: 0.128 | AH96: 0.136
B97: Sweden | D97: 0.012 | E97: 0.023 | F97: 0.044 | G97: 0.072 | H97: 0.076 | J97: 0.083 | K97: 0.089 | L97: 0.079 | M97: 0.065 | N97: 0.049 | O97: 0.04 | P97: 0.041 | Q97: 0.047 | R97: 0.052 | S97: 0.056 | T97: 0.05 | U97: 0.043 | V97: 0.041 | W97: 0.059 | X97: 0.062 | Y97: 0.055 | Z97: 0.057 | AA97: 0.057 | AB97: 0.057 | AC97: 0.056 | AD97: 0.053 | AE97: 0.052 | AF97: 0.049 | AG97: 0.051 | AH97: 0.054
B98: United Kingdom | D98: 0.06 | E98: 0.073 | F98: 0.083 | G98: 0.086 | H98: 0.079 | I98: 0.073 | J98: 0.067 | K98: 0.058 | L98: 0.051 | M98: 0.048 | N98: 0.043 | O98: 0.038 | P98: 0.039 | Q98: 0.037 | R98: 0.034 | S98: 0.033 | T98: 0.038 | U98: 0.036 | V98: 0.039 | W98: 0.056 | X98: 0.058 | Y98: 0.058 | Z98: 0.057 | AA98: 0.054 | AB98: 0.044 | AC98: 0.038 | AD98: 0.036 | AE98: 0.032 | AF98: 0.03 | AG98: 0.027 | AH98: 0.028

Sheet control
B2: Control
B4: Selection age group | C4: 3 | D4: 25 to 74 | E4: =MATCH(D4,myAgeGroups,0) -> 3
B5: Age group | C5: 15 to 74
C6: 15 to 24
C7: 25 to 74
B9: Selection country | C9: 26 | D9: Spain | E9: =INDEX(myCountryList,mySelectedCountry) -> Spain | F9: =COUNTA(myCountryList) -> 28
B11: Selection year | C11: 30 | D11: 2019 | E11: =MATCH(--mySelectedYearNumber,myYearsNumbers,0) -> 30 | F11: =COUNTA(myYearList) -> 31
B12: Years | C12: =calcs!$D$6 -> 1990-01-01 | D12: =YEAR(C12) -> 1990
C13: =calcs!$E$6 -> 1991-01-01 | D13: 1991
C14: =calcs!$F$6 -> 1992-01-01 | D14: 1992
C15: =calcs!$G$6 -> 1993-01-01 | D15: 1993
C16: =calcs!$H$6 -> 1994-01-01 | D16: 1994
C17: =calcs!$I$6 -> 1995-01-01 | D17: 1995
C18: =calcs!$J$6 -> 1996-01-01 | D18: 1996
C19: =calcs!$K$6 -> 1997-01-01 | D19: 1997
C20: =calcs!$L$6 -> 1998-01-01 | D20: 1998
C21: =calcs!$M$6 -> 1999-01-01 | D21: 1999
C22: =calcs!$N$6 -> 2000-01-01 | D22: 2000
C23: =calcs!$O$6 -> 2001-01-01 | D23: 2001
C24: =calcs!$P$6 -> 2002-01-01 | D24: 2002
C25: =calcs!$Q$6 -> 2003-01-01 | D25: 2003
C26: =calcs!$R$6 -> 2004-01-01 | D26: 2004
C27: =calcs!$S$6 -> 2005-01-01 | D27: 2005
C28: =calcs!$T$6 -> 2006-01-01 | D28: 2006
C29: =calcs!$U$6 -> 2007-01-01 | D29: 2007
C30: =calcs!$V$6 -> 2008-01-01 | D30: 2008
C31: =calcs!$W$6 -> 2009-01-01 | D31: 2009
C32: =calcs!$X$6 -> 2010-01-01 | D32: 2010
C33: =calcs!$Y$6 -> 2011-01-01 | D33: 2011
C34: =calcs!$Z$6 -> 2012-01-01 | D34: 2012
C35: =calcs!$AA$6 -> 2013-01-01 | D35: 2013
C36: =calcs!$AB$6 -> 2014-01-01 | D36: 2014
C37: =calcs!$AC$6 -> 2015-01-01 | D37: 2015
C38: =calcs!$AD$6 -> 2016-01-01 | D38: 2016
C39: =calcs!$AE$6 -> 2017-01-01 | D39: 2017
C40: =calcs!$AF$6 -> 2018-01-01 | D40: 2018
C41: =calcs!$AG$6 -> 2019-01-01 | D41: 2019
C42: =calcs!$AH$6 -> 2020-01-01 | D42: 2020
B44: Selected chart | C44: 1
B46: Horizontal Offset | C46: 21
B47: Vertical Offset | C47: 18
B49: Selected color scale | C49: 1
B51: Color Scales | E51: Select a color scheme
C53: Threshold | D53: RGB | E53: Legend | F53: 1 | G53: =F53+1 -> 2 | H53: =G53+1 -> 3 | I53: 4 | J53: 5 | K53: 6 | L53: 7 | M53: 8 | N53: 9 | O53: 10 | P53: 11 | Q53: 12 | R53: 13 | S53: 14 | T53: 15 | U53: 16 | V53: 17 | W53: 18 | X53: 19 | Y53: 20 | Z53: 21 | AA53: 22 | AB53: 23
D54: 8421504 | E54: no data
C55: =calcs!F173 -> 0.02 | D55: 3631104 | E55: =calcs!G173 -> 0% to 2%
C56: =calcs!F174 -> 0.04 | D56: 5281818 | E56: =calcs!G174 -> 2% to 4%
C57: =calcs!F175 -> 0.06 | D57: 6536550 | E57: =calcs!G175 -> 4% to 6%
C58: =calcs!F176 -> 0.08 | D58: 7002534 | E58: =calcs!G176 -> 6% to 8%
C59: =calcs!F177 -> 0.1 | D59: 9170905 | E59: =calcs!G177 -> 8% to 10%
C60: =calcs!F178 -> 0.12 | D60: 9167102 | E60: =calcs!G178 -> 10% to 12%
C61: =calcs!F179 -> 0.14 | D61: 6401789 | E61: =calcs!G179 -> 12% to 14%
C62: =calcs!F180 -> 0.16 | D62: 4419060 | E62: =calcs!G180 -> 14% to 16%
C63: =calcs!F181 -> 1 | D63: 2568407 | E63: =calcs!G181 -> 16% or more
B65: Color Scales | C65: 1 | D65: Green Yellow Red
C66: 2 | D66: Green to Pink
C67: 3 | D67: Green to Purple
C68: 4 | D68: Green to Brown
C69: 5 | D69: Blue to Red
C70: 6 | D70: Blue to Red Brown
C71: 7 | D71: Brown to Purple
C72: 8 | D72: Brown Blue Green
C73: 9 | D73: Purple to Green
C74: 10 | D74: Pink to Green
C75: 11 | D75: Red to Blue
C76: 12 | D76: Red to Black
C77: 13 | D77: Red Yellow Blue
C78: 14 | D78: Spectral
C79: 15 | D79: Red Yellow Green
C80: 16 | D80: Light
C81: 17 | D81: Pairwise
C82: 18 | D82: Light to Dark Blue
C83: 19 | D83: Light to Dark Red
C84: 20 | D84: Light to Dark Brown
C85: 21 | D85: Light to Dark Green
C86: 22 | D86: Light to Dark Yellow
C87: 23 | D87: Light Grey to Black
E89: Recreate the shape index after you inserted a new map or added new shapes

Sheet calcs
B2: Calculations
B4: ="Age group data: " & control!$D$4 -> Age group data: 25 to 74
C6: Country | D6: =data!D6 -> 1990-01-01 | E6: =data!E6 -> 1991-01-01 | F6: =data!F6 -> 1992-01-01 | G6: =data!G6 -> 1993-01-01 | H6: =data!H6 -> 1994-01-01 | I6: =data!I6 -> 1995-01-01 | J6: =data!J6 -> 1996-01-01 | K6: =data!K6 -> 1997-01-01 | L6: =data!L6 -> 1998-01-01 | M6: =data!M6 -> 1999-01-01 | N6: =data!N6 -> 2000-01-01 | O6: =data!O6 -> 2001-01-01 | P6: =data!P6 -> 2002-01-01 | Q6: =data!Q6 -> 2003-01-01 | R6: =data!R6 -> 2004-01-01 | S6: =data!S6 -> 2005-01-01 | T6: =data!T6 -> 2006-01-01 | U6: =data!U6 -> 2007-01-01 | V6: =data!V6 -> 2008-01-01 | W6: =data!W6 -> 2009-01-01 | X6: =data!X6 -> 2010-01-01 | Y6: =data!Y6 -> 2011-01-01 | Z6: =data!Z6 -> 2012-01-01 | AA6: =data!AA6 -> 2013-01-01 | AB6: =data!AB6 -> 2014-01-01 | AC6: =data!AC6 -> 2015-01-01 | AD6: =data!AD6 -> 2016-01-01 | AE6: =data!AE6 -> 2017-01-01 | AF6: =data!AF6 -> 2018-01-01 | AG6: =data!AG6 -> 2019-01-01 | AH6: =data!AH6 -> 2020-01-01
C7: =data!B7 -> Austria | D7: =IF(ISBLANK(CHOOSE(mySelectedAgeGroup,data!D7,data!D39,data!D71)),"",CHOOSE(mySelectedAgeGroup,data!D7,data!D39,data!D71)) ->  | E7: =IF(ISBLANK(CHOOSE(mySelectedAgeGroup,data!E7,data!E39,data!E71)),"",CHOOSE(mySelectedAgeGroup,data!E7,data!E39,data!E71)) ->  | F7: =IF(ISBLANK(CHOOSE(mySelectedAgeGroup,data!F7,data!F39,data!F71)),"",CHOOSE(mySelectedAgeGroup,data!F7,data!F39,data!F71)) ->  | G7: =IF(ISBLANK(CHOOSE(mySelectedAgeGroup,data!G7,data!G39,data!G71)),"",CHOOSE(mySelectedAgeGroup,data!G7,data!G39,data!G71)) ->  | H7: =IF(ISBLANK(CHOOSE(mySelectedAgeGroup,data!H7,data!H39,data!H71)),"",CHOOSE(mySelectedAgeGroup,data!H7,data!H39,data!H71)) -> 0.035 | I7: =IF(ISBLANK(CHOOSE(mySelectedAgeGroup,data!I7,data!I39,data!I71)),"",CHOOSE(mySelectedAgeGroup,data!I7,data!I39,data!I71)) -> 0.039 | J7: =IF(ISBLANK(CHOOSE(mySelectedAgeGroup,data!J7,data!J39,data!J71)),"",CHOOSE(mySelectedAgeGroup,data!J7,data!J39,data!J71)) -> 0.043 | K7: =IF(ISBLANK(CHOOSE(mySelectedAgeGroup,data!K7,data!K39,data!K71)),"",CHOOSE(mySelectedAgeGroup,data!K7,data!K39,data!K71)) -> 0.042 | L7: =IF(ISBLANK(CHOOSE(mySelectedAgeGroup,data!L7,data!L39,data!L71)),"",CHOOSE(mySelectedAgeGroup,data!L7,data!L39,data!L71)) -> 0.041 | M7: =IF(ISBLANK(CHOOSE(mySelectedAgeGroup,data!M7,data!M39,data!M71)),"",CHOOSE(mySelectedAgeGroup,data!M7,data!M39,data!M71)) -> 0.035 | N7: =IF(ISBLANK(CHOOSE(mySelectedAgeGroup,data!N7,data!N39,data!N71)),"",CHOOSE(mySelectedAgeGroup,data!N7,data!N39,data!N71)) -> 0.033 | O7: =IF(ISBLANK(CHOOSE(mySelectedAgeGroup,data!O7,data!O39,data!O71)),"",CHOOSE(mySelectedAgeGroup,data!O7,data!O39,data!O71)) -> 0.033 | P7: =IF(ISBLANK(CHOOSE(mySelectedAgeGroup,data!P7,data!P39,data!P71)),"",CHOOSE(mySelectedAgeGroup,data!P7,data!P39,data!P71)) -> 0.036 | Q7: =IF(ISBLANK(CHOOSE(mySelectedAgeGroup,data!Q7,data!Q39,data!Q71)),"",CHOOSE(mySelectedAgeGroup,data!Q7,data!Q39,data!Q71)) -> 0.039 | R7: =IF(ISBLANK(CHOOSE(mySelectedAgeGroup,data!R7,data!R39,data!R71)),"",CHOOSE(mySelectedAgeGroup,data!R7,data!R39,data!R71)) -> 0.047 | S7: =IF(ISBLANK(CHOOSE(mySelectedAgeGroup,data!S7,data!S39,data!S71)),"",CHOOSE(mySelectedAgeGroup,data!S7,data!S39,data!S71)) -> 0.047 | T7: =IF(ISBLANK(CHOOSE(mySelectedAgeGroup,data!T7,data!T39,data!T71)),"",CHOOSE(mySelectedAgeGroup,data!T7,data!T39,data!T71)) -> 0.045 | U7: =IF(ISBLANK(CHOOSE(mySelectedAgeGroup,data!U7,data!U39,data!U71)),"",CHOOSE(mySelectedAgeGroup,data!U7,data!U39,data!U71)) -> 0.041 | V7: =IF(ISBLANK(CHOOSE(mySelectedAgeGroup,data!V7,data!V39,data!V71)),"",CHOOSE(mySelectedAgeGroup,data!V7,data!V39,data!V71)) -> 0.034 | W7: =IF(ISBLANK(CHOOSE(mySelectedAgeGroup,data!W7,data!W39,data!W71)),"",CHOOSE(mySelectedAgeGroup,data!W7,data!W39,data!W71)) -> 0.044 | X7: =IF(ISBLANK(CHOOSE(mySelectedAgeGroup,data!X7,data!X39,data!X71)),"",CHOOSE(mySelectedAgeGroup,data!X7,data!X39,data!X71)) -> 0.041 | Y7: =IF(ISBLANK(CHOOSE(mySelectedAgeGroup,data!Y7,data!Y39,data!Y71)),"",CHOOSE(mySelectedAgeGroup,data!Y7,data!Y39,data!Y71)) -> 0.039 | Z7: =IF(ISBLANK(CHOOSE(mySelectedAgeGroup,data!Z7,data!Z39,data!Z71)),"",CHOOSE(mySelectedAgeGroup,data!Z7,data!Z39,data!Z71)) -> 0.042 | AA7: =IF(ISBLANK(CHOOSE(mySelectedAgeGroup,data!AA7,data!AA39,data!AA71)),"",CHOOSE(mySelectedAgeGroup,data!AA7,data!AA39,data!AA71)) -> 0.047 | AB7: =IF(ISBLANK(CHOOSE(mySelectedAgeGroup,data!AB7,data!AB39,data!AB71)),"",CHOOSE(mySelectedAgeGroup,data!AB7,data!AB39,data!AB71)) -> 0.049 | AC7: =IF(ISBLANK(CHOOSE(mySelectedAgeGroup,data!AC7,data!AC39,data!AC71)),"",CHOOSE(mySelectedAgeGroup,data!AC7,data!AC39,data!AC71)) -> 0.05 | AD7: =IF(ISBLANK(CHOOSE(mySelectedAgeGroup,data!AD7,data!AD39,data!AD71)),"",CHOOSE(mySelectedAgeGroup,data!AD7,data!AD39,data!AD71)) -> 0.053 | AE7: =IF(ISBLANK(CHOOSE(mySelectedAgeGroup,data!AE7,data!AE39,data!AE71)),"",CHOOSE(mySelectedAgeGroup,data!AE7,data!AE39,data!AE71)) -> 0.049 | AF7: =IF(ISBLANK(CHOOSE(mySelectedAgeGroup,data!AF7,data!AF39,data!AF71)),"",CHOOSE(mySelectedAgeGroup,data!AF7,data!AF39,data!AF71)) -> 0.043 | AG7: =IF(ISBLANK(CHOOSE(mySelectedAgeGroup,data!AG7,data!AG39,data!AG71)),"",CHOOSE(mySelectedAgeGroup,data!AG7,data!AG39,data!AG71)) -> 0.04 | AH7: =IF(ISBLANK(CHOOSE(mySelectedAgeGroup,data!AH7,data!AH39,data!AH71)),"",CHOOSE(mySelectedAgeGroup,data!AH7,data!AH39,data!AH71)) -> 0.045
C8: =data!B8 -> Belgium | D8: =IF(ISBLANK(CHOOSE(mySelectedAgeGroup,data!D8,data!D40,data!D72)),"",CHOOSE(mySelectedAgeGroup,data!D8,data!D40,data!D72)) -> 0.054 | E8: =IF(ISBLANK(CHOOSE(mySelectedAgeGroup,data!E8,data!E40,data!E72)),"",CHOOSE(mySelectedAgeGroup,data!E8,data!E40,data!E72)) -> 0.054 | F8: =IF(ISBLANK(CHOOSE(mySelectedAgeGroup,data!F8,data!F40,data!F72)),"",CHOOSE(mySelectedAgeGroup,data!F8,data!F40,data!F72)) -> 0.06 | G8: =IF(ISBLANK(CHOOSE(mySelectedAgeGroup,data!G8,data!G40,data!G72)),"",CHOOSE(mySelectedAgeGroup,data!G8,data!G40,data!G72)) -> 0.071 | H8: =IF(ISBLANK(CHOOSE(mySelectedAgeGroup,data!H8,data!H40,data!H72)),"",CHOOSE(mySelectedAgeGroup,data!H8,data!H40,data!H72)) -> 0.081 | I8: =IF(ISBLANK(CHOOSE(mySelectedAgeGroup,data!I8,data!I40,data!I72)),"",CHOOSE(mySelectedAgeGroup,data!I8,data!I40,data!I72)) -> 0.081 | J8: =IF(ISBLANK(CHOOSE(mySelectedAgeGroup,data!J8,data!J40,data!J72)),"",CHOOSE(mySelectedAgeGroup,data!J8,data!J40,data!J72)) -> 0.082 | K8: =IF(ISBLANK(CHOOSE(mySelectedAgeGroup,data!K8,data!K40,data!K72)),"",CHOOSE(mySelectedAgeGroup,data!K8,data!K40,data!K72)) -> 0.079 | L8: =IF(ISBLANK(CHOOSE(mySelectedAgeGroup,data!L8,data!L40,data!L72)),"",CHOOSE(mySelectedAgeGroup,data!L8,data!L40,data!L72)) -> 0.08 | M8: =IF(ISBLANK(CHOOSE(mySelectedAgeGroup,data!M8,data!M40,data!M72)),"",CHOOSE(mySelectedAgeGroup,data!M8,data!M40,data!M72)) -> 0.072 | N8: =IF(ISBLANK(CHOOSE(mySelectedAgeGroup,data!N8,data!N40,data!N72)),"",CHOOSE(mySelectedAgeGroup,data!N8,data!N40,data!N72)) -> 0.059 | O8: =IF(ISBLANK(CHOOSE(mySelectedAgeGroup,data!O8,data!O40,data!O72)),"",CHOOSE(mySelectedAgeGroup,data!O8,data!O40,data!O72)) -> 0.054 | P8: =IF(ISBLANK(CHOOSE(mySelectedAgeGroup,data!P8,data!P40,data!P72)),"",CHOOSE(mySelectedAgeGroup,data!P8,data!P40,data!P72)) -> 0.064 | Q8: =IF(ISBLANK(CHOOSE(mySelectedAgeGroup,data!Q8,data!Q40,data!Q72)),"",CHOOSE(mySelectedAgeGroup,data!Q8,data!Q40,data!Q72)) -> 0.067 | R8: =IF(ISBLANK(CHOOSE(mySelectedAgeGroup,data!R8,data!R40,data!R72)),"",CHOOSE(mySelectedAgeGroup,data!R8,data!R40,data!R72)) -> 0.07 | S8: =IF(ISBLANK(CHOOSE(mySelectedAgeGroup,data!S8,data!S40,data!S72)),"",CHOOSE(mySelectedAgeGroup,data!S8,data!S40,data!S72)) -> 0.071 | T8: =IF(ISBLANK(CHOOSE(mySelectedAgeGroup,data!T8,data!T40,data!T72)),"",CHOOSE(mySelectedAgeGroup,data!T8,data!T40,data!T72)) -> 0.07 | U8: =IF(ISBLANK(CHOOSE(mySelectedAgeGroup,data!U8,data!U40,data!U72)),"",CHOOSE(mySelectedAgeGroup,data!U8,data!U40,data!U72)) -> 0.063 | V8: =IF(ISBLANK(CHOOSE(mySelectedAgeGroup,data!V8,data!V40,data!V72)),"",CHOOSE(mySelectedAgeGroup,data!V8,data!V40,data!V72)) -> 0.059 | W8: =IF(ISBLANK(CHOOSE(mySelectedAgeGroup,data!W8,data!W40,data!W72)),"",CHOOSE(mySelectedAgeGroup,data!W8,data!W40,data!W72)) -> 0.066 | X8: =IF(ISBLANK(CHOOSE(mySelectedAgeGroup,data!X8,data!X40,data!X72)),"",CHOOSE(mySelectedAgeGroup,data!X8,data!X40,data!X72)) -> 0.07 | Y8: =IF(ISBLANK(CHOOSE(mySelectedAgeGroup,data!Y8,data!Y40,data!Y72)),"",CHOOSE(mySelectedAgeGroup,data!Y8,data!Y40,data!Y72)) -> 0.06 | Z8: =IF(ISBLANK(CHOOSE(mySelectedAgeGroup,data!Z8,data!Z40,data!Z72)),"",CHOOSE(mySelectedAgeGroup,data!Z8,data!Z40,data!Z72)) -> 0.064 | AA8: =IF(ISBLANK(CHOOSE(mySelectedAgeGroup,data!AA8,data!AA40,data!AA72)),"",CHOOSE(mySelectedAgeGroup,data!AA8,data!AA40,data!AA72)) -> 0.071 | AB8: =IF(ISBLANK(CHOOSE(mySelectedAgeGroup,data!AB8,data!AB40,data!AB72)),"",CHOOSE(mySelectedAgeGroup,data!AB8,data!AB40,data!AB72)) -> 0.073 | AC8: =IF(ISBLANK(CHOOSE(mySelectedAgeGroup,data!AC8,data!AC40,data!AC72)),"",CHOOSE(mySelectedAgeGroup,data!AC8,data!AC40,data!AC72)) -> 0.073 | AD8: =IF(ISBLANK(CHOOSE(mySelectedAgeGroup,data!AD8,data!AD40,data!AD72)),"",CHOOSE(mySelectedAgeGroup,data!AD8,data!AD40,data!AD72)) -> 0.068 | AE8: =IF(ISBLANK(CHOOSE(mySelectedAgeGroup,data!AE8,data!AE40,data!AE72)),"",CHOOSE(mySelectedAgeGroup,data!AE8,data!AE40,data!AE72)) -> 0.061 | AF8: =IF(ISBLANK(CHOOSE(mySelectedAgeGroup,data!AF8,data!AF40,data!AF72)),"",CHOOSE(mySelectedAgeGroup,data!AF8,data!AF40,data!AF72)) -> 0.052 | AG8: =IF(ISBLANK(CHOOSE(mySelectedAgeGroup,data!AG8,data!AG40,data!AG72)),"",CHOOSE(mySelectedAgeGroup,data!AG8,data!AG40,data!AG72)) -> 0.046 | AH8: =IF(ISBLANK(CHOOSE(mySelectedAgeGroup,data!AH8,data!AH40,data!AH72)),"",CHOOSE(mySelectedAgeGroup,data!AH8,data!AH40,data!AH72)) -> 0.045
C9: =data!B9 -> Bulgaria | D9: =IF(ISBLANK(CHOOSE(mySelectedAgeGroup,data!D9,data!D41,data!D73)),"",CHOOSE(mySelectedAgeGroup,data!D9,data!D41,data!D73)) ->  | E9: =IF(ISBLANK(CHOOSE(mySelectedAgeGroup,data!E9,data!E41,data!E73)),"",CHOOSE(mySelectedAgeGroup,data!E9,data!E41,data!E73)) ->  | F9: =IF(ISBLANK(CHOOSE(mySelectedAgeGroup,data!F9,data!F41,data!F73)),"",CHOOSE(mySelectedAgeGroup,data!F9,data!F41,data!F73)) ->  | G9: =IF(ISBLANK(CHOOSE(mySelectedAgeGroup,data!G9,data!G41,data!G73)),"",CHOOSE(mySelectedAgeGroup,data!G9,data!G41,data!G73)) ->  | H9: =IF(ISBLANK(CHOOSE(mySelectedAgeGroup,data!H9,data!H41,data!H73)),"",CHOOSE(mySelectedAgeGroup,data!H9,data!H41,data!H73)) ->  | I9: =IF(ISBLANK(CHOOSE(mySelectedAgeGroup,data!I9,data!I41,data!I73)),"",CHOOSE(mySelectedAgeGroup,data!I9,data!I41,data!I73)) ->  | J9: =IF(ISBLANK(CHOOSE(mySelectedAgeGroup,data!J9,data!J41,data!J73)),"",CHOOSE(mySelectedAgeGroup,data!J9,data!J41,data!J73)) ->  | K9: =IF(ISBLANK(CHOOSE(mySelectedAgeGroup,data!K9,data!K41,data!K73)),"",CHOOSE(mySelectedAgeGroup,data!K9,data!K41,data!K73)) ->  | L9: =IF(ISBLANK(CHOOSE(mySelectedAgeGroup,data!L9,data!L41,data!L73)),"",CHOOSE(mySelectedAgeGroup,data!L9,data!L41,data!L73)) ->  | M9: =IF(ISBLANK(CHOOSE(mySelectedAgeGroup,data!M9,data!M41,data!M73)),"",CHOOSE(mySelectedAgeGroup,data!M9,data!M41,data!M73)) ->  | N9: =IF(ISBLANK(CHOOSE(mySelectedAgeGroup,data!N9,data!N41,data!N73)),"",CHOOSE(mySelectedAgeGroup,data!N9,data!N41,data!N73)) -> 0.148 | O9: =IF(ISBLANK(CHOOSE(mySelectedAgeGroup,data!O9,data!O41,data!O73)),"",CHOOSE(mySelectedAgeGroup,data!O9,data!O41,data!O73)) -> 0.179 | P9: =IF(ISBLANK(CHOOSE(mySelectedAgeGroup,data!P9,data!P41,data!P73)),"",CHOOSE(mySelectedAgeGroup,data!P9,data!P41,data!P73)) -> 0.161 | Q9: =IF(ISBLANK(CHOOSE(mySelectedAgeGroup,data!Q9,data!Q41,data!Q73)),"",CHOOSE(mySelectedAgeGroup,data!Q9,data!Q41,data!Q73)) -> 0.122 | R9: =IF(ISBLANK(CHOOSE(mySelectedAgeGroup,data!R9,data!R41,data!R73)),"",CHOOSE(mySelectedAgeGroup,data!R9,data!R41,data!R73)) -> 0.107 | S9: =IF(ISBLANK(CHOOSE(mySelectedAgeGroup,data!S9,data!S41,data!S73)),"",CHOOSE(mySelectedAgeGroup,data!S9,data!S41,data!S73)) -> 0.089 | T9: =IF(ISBLANK(CHOOSE(mySelectedAgeGroup,data!T9,data!T41,data!T73)),"",CHOOSE(mySelectedAgeGroup,data!T9,data!T41,data!T73)) -> 0.079 | U9: =IF(ISBLANK(CHOOSE(mySelectedAgeGroup,data!U9,data!U41,data!U73)),"",CHOOSE(mySelectedAgeGroup,data!U9,data!U41,data!U73)) -> 0.061 | V9: =IF(ISBLANK(CHOOSE(mySelectedAgeGroup,data!V9,data!V41,data!V73)),"",CHOOSE(mySelectedAgeGroup,data!V9,data!V41,data!V73)) -> 0.05 | W9: =IF(ISBLANK(CHOOSE(mySelectedAgeGroup,data!W9,data!W41,data!W73)),"",CHOOSE(mySelectedAgeGroup,data!W9,data!W41,data!W73)) -> 0.06 | X9: =IF(ISBLANK(CHOOSE(mySelectedAgeGroup,data!X9,data!X41,data!X73)),"",CHOOSE(mySelectedAgeGroup,data!X9,data!X41,data!X73)) -> 0.092 | Y9: =IF(ISBLANK(CHOOSE(mySelectedAgeGroup,data!Y9,data!Y41,data!Y73)),"",CHOOSE(mySelectedAgeGroup,data!Y9,data!Y41,data!Y73)) -> 0.101 | Z9: =IF(ISBLANK(CHOOSE(mySelectedAgeGroup,data!Z9,data!Z41,data!Z73)),"",CHOOSE(mySelectedAgeGroup,data!Z9,data!Z41,data!Z73)) -> 0.11 | AA9: =IF(ISBLANK(CHOOSE(mySelectedAgeGroup,data!AA9,data!AA41,data!AA73)),"",CHOOSE(mySelectedAgeGroup,data!AA9,data!AA41,data!AA73)) -> 0.118 | AB9: =IF(ISBLANK(CHOOSE(mySelectedAgeGroup,data!AB9,data!AB41,data!AB73)),"",CHOOSE(mySelectedAgeGroup,data!AB9,data!AB41,data!AB73)) -> 0.107 | AC9: =IF(ISBLANK(CHOOSE(mySelectedAgeGroup,data!AC9,data!AC41,data!AC73)),"",CHOOSE(mySelectedAgeGroup,data!AC9,data!AC41,data!AC73)) -> 0.084 | AD9: =IF(ISBLANK(CHOOSE(mySelectedAgeGroup,data!AD9,data!AD41,data!AD73)),"",CHOOSE(mySelectedAgeGroup,data!AD9,data!AD41,data!AD73)) -> 0.071 | AE9: =IF(ISBLANK(CHOOSE(mySelectedAgeGroup,data!AE9,data!AE41,data!AE73)),"",CHOOSE(mySelectedAgeGroup,data!AE9,data!AE41,data!AE73)) -> 0.058 | AF9: =IF(ISBLANK(CHOOSE(mySelectedAgeGroup,data!AF9,data!AF41,data!AF73)),"",CHOOSE(mySelectedAgeGroup,data!AF9,data!AF41,data!AF73)) -> 0.049 | AG9: =IF(ISBLANK(CHOOSE(mySelectedAgeGroup,data!AG9,data!AG41,data!AG73)),"",CHOOSE(mySelectedAgeGroup,data!AG9,data!AG41,data!AG73)) -> 0.04 | AH9: =IF(ISBLANK(CHOOSE(mySelectedAgeGroup,data!AH9,data!AH41,data!AH73)),"",CHOOSE(mySelectedAgeGroup,data!AH9,data!AH41,data!AH73)) -> 0.044
C10: =data!B10 -> Croatia | D10: =IF(ISBLANK(CHOOSE(mySelectedAgeGroup,data!D10,data!D42,data!D74)),"",CHOOSE(mySelectedAgeGroup,data!D10,data!D42,data!D74)) ->  | E10: =IF(ISBLANK(CHOOSE(mySelectedAgeGroup,data!E10,data!E42,data!E74)),"",CHOOSE(mySelectedAgeGroup,data!E10,data!E42,data!E74)) ->  | F10: =IF(ISBLANK(CHOOSE(mySelectedAgeGroup,data!F10,data!F42,data!F74)),"",CHOOSE(mySelectedAgeGroup,data!F10,data!F42,data!F74)) ->  | G10: =IF(ISBLANK(CHOOSE(mySelectedAgeGroup,data!G10,data!G42,data!G74)),"",CHOOSE(mySelectedAgeGroup,data!G10,data!G42,data!G74)) ->  | H10: =IF(ISBLANK(CHOOSE(mySelectedAgeGroup,data!H10,data!H42,data!H74)),"",CHOOSE(mySelectedAgeGroup,data!H10,data!H42,data!H74)) ->  | I10: =IF(ISBLANK(CHOOSE(mySelectedAgeGroup,data!I10,data!I42,data!I74)),"",CHOOSE(mySelectedAgeGroup,data!I10,data!I42,data!I74)) ->  | J10: =IF(ISBLANK(CHOOSE(mySelectedAgeGroup,data!J10,data!J42,data!J74)),"",CHOOSE(mySelectedAgeGroup,data!J10,data!J42,data!J74)) ->  | K10: =IF(ISBLANK(CHOOSE(mySelectedAgeGroup,data!K10,data!K42,data!K74)),"",CHOOSE(mySelectedAgeGroup,data!K10,data!K42,data!K74)) ->  | L10: =IF(ISBLANK(CHOOSE(mySelectedAgeGroup,data!L10,data!L42,data!L74)),"",CHOOSE(mySelectedAgeGroup,data!L10,data!L42,data!L74)) ->  | M10: =IF(ISBLANK(CHOOSE(mySelectedAgeGroup,data!M10,data!M42,data!M74)),"",CHOOSE(mySelectedAgeGroup,data!M10,data!M42,data!M74)) ->  | N10: =IF(ISBLANK(CHOOSE(mySelectedAgeGroup,data!N10,data!N42,data!N74)),"",CHOOSE(mySelectedAgeGroup,data!N10,data!N42,data!N74)) -> 0.125 | O10: =IF(ISBLANK(CHOOSE(mySelectedAgeGroup,data!O10,data!O42,data!O74)),"",CHOOSE(mySelectedAgeGroup,data!O10,data!O42,data!O74)) -> 0.128 | P10: =IF(ISBLANK(CHOOSE(mySelectedAgeGroup,data!P10,data!P42,data!P74)),"",CHOOSE(mySelectedAgeGroup,data!P10,data!P42,data!P74)) -> 0.119 | Q10: =IF(ISBLANK(CHOOSE(mySelectedAgeGroup,data!Q10,data!Q42,data!Q74)),"",CHOOSE(mySelectedAgeGroup,data!Q10,data!Q42,data!Q74)) -> 0.113 | R10: =IF(ISBLANK(CHOOSE(mySelectedAgeGroup,data!R10,data!R42,data!R74)),"",CHOOSE(mySelectedAgeGroup,data!R10,data!R42,data!R74)) -> 0.111 | S10: =IF(ISBLANK(CHOOSE(mySelectedAgeGroup,data!S10,data!S42,data!S74)),"",CHOOSE(mySelectedAgeGroup,data!S10,data!S42,data!S74)) -> 0.103 | T10: =IF(ISBLANK(CHOOSE(mySelectedAgeGroup,data!T10,data!T42,data!T74)),"",CHOOSE(mySelectedAgeGroup,data!T10,data!T42,data!T74)) -> 0.092 | U10: =IF(ISBLANK(CHOOSE(mySelectedAgeGroup,data!U10,data!U42,data!U74)),"",CHOOSE(mySelectedAgeGroup,data!U10,data!U42,data!U74)) -> 0.082 | V10: =IF(ISBLANK(CHOOSE(mySelectedAgeGroup,data!V10,data!V42,data!V74)),"",CHOOSE(mySelectedAgeGroup,data!V10,data!V42,data!V74)) -> 0.069 | W10: =IF(ISBLANK(CHOOSE(mySelectedAgeGroup,data!W10,data!W42,data!W74)),"",CHOOSE(mySelectedAgeGroup,data!W10,data!W42,data!W74)) -> 0.075 | X10: =IF(ISBLANK(CHOOSE(mySelectedAgeGroup,data!X10,data!X42,data!X74)),"",CHOOSE(mySelectedAgeGroup,data!X10,data!X42,data!X74)) -> 0.095 | Y10: =IF(ISBLANK(CHOOSE(mySelectedAgeGroup,data!Y10,data!Y42,data!Y74)),"",CHOOSE(mySelectedAgeGroup,data!Y10,data!Y42,data!Y74)) -> 0.116 | Z10: =IF(ISBLANK(CHOOSE(mySelectedAgeGroup,data!Z10,data!Z42,data!Z74)),"",CHOOSE(mySelectedAgeGroup,data!Z10,data!Z42,data!Z74)) -> 0.137 | AA10: =IF(ISBLANK(CHOOSE(mySelectedAgeGroup,data!AA10,data!AA42,data!AA74)),"",CHOOSE(mySelectedAgeGroup,data!AA10,data!AA42,data!AA74)) -> 0.144 | AB10: =IF(ISBLANK(CHOOSE(mySelectedAgeGroup,data!AB10,data!AB42,data!AB74)),"",CHOOSE(mySelectedAgeGroup,data!AB10,data!AB42,data!AB74)) -> 0.146 | AC10: =IF(ISBLANK(CHOOSE(mySelectedAgeGroup,data!AC10,data!AC42,data!AC74)),"",CHOOSE(mySelectedAgeGroup,data!AC10,data!AC42,data!AC74)) -> 0.138 | AD10: =IF(ISBLANK(CHOOSE(mySelectedAgeGroup,data!AD10,data!AD42,data!AD74)),"",CHOOSE(mySelectedAgeGroup,data!AD10,data!AD42,data!AD74)) -> 0.112 | AE10: =IF(ISBLANK(CHOOSE(mySelectedAgeGroup,data!AE10,data!AE42,data!AE74)),"",CHOOSE(mySelectedAgeGroup,data!AE10,data!AE42,data!AE74)) -> 0.096 | AF10: =IF(ISBLANK(CHOOSE(mySelectedAgeGroup,data!AF10,data!AF42,data!AF74)),"",CHOOSE(mySelectedAgeGroup,data!AF10,data!AF42,data!AF74)) -> 0.07 | AG10: =IF(ISBLANK(CHOOSE(mySelectedAgeGroup,data!AG10,data!AG42,data!AG74)),"",CHOOSE(mySelectedAgeGroup,data!AG10,data!AG42,data!AG74)) -> 0.057 | AH10: =IF(ISBLANK(CHOOSE(mySelectedAgeGroup,data!AH10,data!AH42,data!AH74)),"",CHOOSE(mySelectedAgeGroup,data!AH10,data!AH42,data!AH74)) -> 0.063
C11: =data!B11 -> Cyprus | D11: =IF(ISBLANK(CHOOSE(mySelectedAgeGroup,data!D11,data!D43,data!D75)),"",CHOOSE(mySelectedAgeGroup,data!D11,data!D43,data!D75)) ->  | E11: =IF(ISBLANK(CHOOSE(mySelectedAgeGroup,data!E11,data!E43,data!E75)),"",CHOOSE(mySelectedAgeGroup,data!E11,data!E43,data!E75)) ->  | F11: =IF(ISBLANK(CHOOSE(mySelectedAgeGroup,data!F11,data!F43,data!F75)),"",CHOOSE(mySelectedAgeGroup,data!F11,data!F43,data!F75)) ->  | G11: =IF(ISBLANK(CHOOSE(mySelectedAgeGroup,data!G11,data!G43,data!G75)),"",CHOOSE(mySelectedAgeGroup,data!G11,data!G43,data!G75)) ->  | H11: =IF(ISBLANK(CHOOSE(mySelectedAgeGroup,data!H11,data!H43,data!H75)),"",CHOOSE(mySelectedAgeGroup,data!H11,data!H43,data!H75)) ->  | I11: =IF(ISBLANK(CHOOSE(mySelectedAgeGroup,data!I11,data!I43,data!I75)),"",CHOOSE(mySelectedAgeGroup,data!I11,data!I43,data!I75)) ->  | J11: =IF(ISBLANK(CHOOSE(mySelectedAgeGroup,data!J11,data!J43,data!J75)),"",CHOOSE(mySelectedAgeGroup,data!J11,data!J43,data!J75)) ->  | K11: =IF(ISBLANK(CHOOSE(mySelectedAgeGroup,data!K11,data!K43,data!K75)),"",CHOOSE(mySelectedAgeGroup,data!K11,data!K43,data!K75)) -> 0.042 | L11: =IF(ISBLANK(CHOOSE(mySelectedAgeGroup,data!L11,data!L43,data!L75)),"",CHOOSE(mySelectedAgeGroup,data!L11,data!L43,data!L75)) -> 0.043 | M11: =IF(ISBLANK(CHOOSE(mySelectedAgeGroup,data!M11,data!M43,data!M75)),"",CHOOSE(mySelectedAgeGroup,data!M11,data!M43,data!M75)) -> 0.045 | N11: =IF(ISBLANK(CHOOSE(mySelectedAgeGroup,data!N11,data!N43,data!N75)),"",CHOOSE(mySelectedAgeGroup,data!N11,data!N43,data!N75)) -> 0.042 | O11: =IF(ISBLANK(CHOOSE(mySelectedAgeGroup,data!O11,data!O43,data!O75)),"",CHOOSE(mySelectedAgeGroup,data!O11,data!O43,data!O75)) -> 0.034 | P11: =IF(ISBLANK(CHOOSE(mySelectedAgeGroup,data!P11,data!P43,data!P75)),"",CHOOSE(mySelectedAgeGroup,data!P11,data!P43,data!P75)) -> 0.031 | Q11: =IF(ISBLANK(CHOOSE(mySelectedAgeGroup,data!Q11,data!Q43,data!Q75)),"",CHOOSE(mySelectedAgeGroup,data!Q11,data!Q43,data!Q75)) -> 0.037 | R11: =IF(ISBLANK(CHOOSE(mySelectedAgeGroup,data!R11,data!R43,data!R75)),"",CHOOSE(mySelectedAgeGroup,data!R11,data!R43,data!R75)) -> 0.041 | S11: =IF(ISBLANK(CHOOSE(mySelectedAgeGroup,data!S11,data!S43,data!S75)),"",CHOOSE(mySelectedAgeGroup,data!S11,data!S43,data!S75)) -> 0.043 | T11: =IF(ISBLANK(CHOOSE(mySelectedAgeGroup,data!T11,data!T43,data!T75)),"",CHOOSE(mySelectedAgeGroup,data!T11,data!T43,data!T75)) -> 0.039 | U11: =IF(ISBLANK(CHOOSE(mySelectedAgeGroup,data!U11,data!U43,data!U75)),"",CHOOSE(mySelectedAgeGroup,data!U11,data!U43,data!U75)) -> 0.033 | V11: =IF(ISBLANK(CHOOSE(mySelectedAgeGroup,data!V11,data!V43,data!V75)),"",CHOOSE(mySelectedAgeGroup,data!V11,data!V43,data!V75)) -> 0.031 | W11: =IF(ISBLANK(CHOOSE(mySelectedAgeGroup,data!W11,data!W43,data!W75)),"",CHOOSE(mySelectedAgeGroup,data!W11,data!W43,data!W75)) -> 0.044 | X11: =IF(ISBLANK(CHOOSE(mySelectedAgeGroup,data!X11,data!X43,data!X75)),"",CHOOSE(mySelectedAgeGroup,data!X11,data!X43,data!X75)) -> 0.051 | Y11: =IF(ISBLANK(CHOOSE(mySelectedAgeGroup,data!Y11,data!Y43,data!Y75)),"",CHOOSE(mySelectedAgeGroup,data!Y11,data!Y43,data!Y75)) -> 0.064 | Z11: =IF(ISBLANK(CHOOSE(mySelectedAgeGroup,data!Z11,data!Z43,data!Z75)),"",CHOOSE(mySelectedAgeGroup,data!Z11,data!Z43,data!Z75)) -> 0.102 | AA11: =IF(ISBLANK(CHOOSE(mySelectedAgeGroup,data!AA11,data!AA43,data!AA75)),"",CHOOSE(mySelectedAgeGroup,data!AA11,data!AA43,data!AA75)) -> 0.136 | AB11: =IF(ISBLANK(CHOOSE(mySelectedAgeGroup,data!AB11,data!AB43,data!AB75)),"",CHOOSE(mySelectedAgeGroup,data!AB11,data!AB43,data!AB75)) -> 0.14 | AC11: =IF(ISBLANK(CHOOSE(mySelectedAgeGroup,data!AC11,data!AC43,data!AC75)),"",CHOOSE(mySelectedAgeGroup,data!AC11,data!AC43,data!AC75)) -> 0.132 | AD11: =IF(ISBLANK(CHOOSE(mySelectedAgeGroup,data!AD11,data!AD43,data!AD75)),"",CHOOSE(mySelectedAgeGroup,data!AD11,data!AD43,data!AD75)) -> 0.115 | AE11: =IF(ISBLANK(CHOOSE(mySelectedAgeGroup,data!AE11,data!AE43,data!AE75)),"",CHOOSE(mySelectedAgeGroup,data!AE11,data!AE43,data!AE75)) -> 0.099 | AF11: =IF(ISBLANK(CHOOSE(mySelectedAgeGroup,data!AF11,data!AF43,data!AF75)),"",CHOOSE(mySelectedAgeGroup,data!AF11,data!AF43,data!AF75)) -> 0.073 | AG11: =IF(ISBLANK(CHOOSE(mySelectedAgeGroup,data!AG11,data!AG43,data!AG75)),"",CHOOSE(mySelectedAgeGroup,data!AG11,data!AG43,data!AG75)) -> 0.063 | AH11: =IF(ISBLANK(CHOOSE(mySelectedAgeGroup,data!AH11,data!AH43,data!AH75)),"",CHOOSE(mySelectedAgeGroup,data!AH11,data!AH43,data!AH75)) -> 0.066
C12: =data!B12 -> Czech Republic | D12: =IF(ISBLANK(CHOOSE(mySelectedAgeGroup,data!D12,data!D44,data!D76)),"",CHOOSE(mySelectedAgeGroup,data!D12,data!D44,data!D76)) ->  | E12: =IF(ISBLANK(CHOOSE(mySelectedAgeGroup,data!E12,data!E44,data!E76)),"",CHOOSE(mySelectedAgeGroup,data!E12,data!E44,data!E76)) ->  | F12: =IF(ISBLANK(CHOOSE(mySelectedAgeGroup,data!F12,data!F44,data!F76)),"",CHOOSE(mySelectedAgeGroup,data!F12,data!F44,data!F76)) ->  | G12: =IF(ISBLANK(CHOOSE(mySelectedAgeGroup,data!G12,data!G44,data!G76)),"",CHOOSE(mySelectedAgeGroup,data!G12,data!G44,data!G76)) -> 0.035 | H12: =IF(ISBLANK(CHOOSE(mySelectedAgeGroup,data!H12,data!H44,data!H76)),"",CHOOSE(mySelectedAgeGroup,data!H12,data!H44,data!H76)) -> 0.034 | I12: =IF(ISBLANK(CHOOSE(mySelectedAgeGroup,data!I12,data!I44,data!I76)),"",CHOOSE(mySelectedAgeGroup,data!I12,data!I44,data!I76)) ->  | J12: =IF(ISBLANK(CHOOSE(mySelectedAgeGroup,data!J12,data!J44,data!J76)),"",CHOOSE(mySelectedAgeGroup,data!J12,data!J44,data!J76)) ->  | K12: =IF(ISBLANK(CHOOSE(mySelectedAgeGroup,data!K12,data!K44,data!K76)),"",CHOOSE(mySelectedAgeGroup,data!K12,data!K44,data!K76)) ->  | L12: =IF(ISBLANK(CHOOSE(mySelectedAgeGroup,data!L12,data!L44,data!L76)),"",CHOOSE(mySelectedAgeGroup,data!L12,data!L44,data!L76)) -> 0.053 | M12: =IF(ISBLANK(CHOOSE(mySelectedAgeGroup,data!M12,data!M44,data!M76)),"",CHOOSE(mySelectedAgeGroup,data!M12,data!M44,data!M76)) -> 0.072 | N12: =IF(ISBLANK(CHOOSE(mySelectedAgeGroup,data!N12,data!N44,data!N76)),"",CHOOSE(mySelectedAgeGroup,data!N12,data!N44,data!N76)) -> 0.074 | O12: =IF(ISBLANK(CHOOSE(mySelectedAgeGroup,data!O12,data!O44,data!O76)),"",CHOOSE(mySelectedAgeGroup,data!O12,data!O44,data!O76)) -> 0.069 | P12: =IF(ISBLANK(CHOOSE(mySelectedAgeGroup,data!P12,data!P44,data!P76)),"",CHOOSE(mySelectedAgeGroup,data!P12,data!P44,data!P76)) -> 0.062 | Q12: =IF(ISBLANK(CHOOSE(mySelectedAgeGroup,data!Q12,data!Q44,data!Q76)),"",CHOOSE(mySelectedAgeGroup,data!Q12,data!Q44,data!Q76)) -> 0.066 | R12: =IF(ISBLANK(CHOOSE(mySelectedAgeGroup,data!R12,data!R44,data!R76)),"",CHOOSE(mySelectedAgeGroup,data!R12,data!R44,data!R76)) -> 0.07 | S12: =IF(ISBLANK(CHOOSE(mySelectedAgeGroup,data!S12,data!S44,data!S76)),"",CHOOSE(mySelectedAgeGroup,data!S12,data!S44,data!S76)) -> 0.068 | T12: =IF(ISBLANK(CHOOSE(mySelectedAgeGroup,data!T12,data!T44,data!T76)),"",CHOOSE(mySelectedAgeGroup,data!T12,data!T44,data!T76)) -> 0.062 | U12: =IF(ISBLANK(CHOOSE(mySelectedAgeGroup,data!U12,data!U44,data!U76)),"",CHOOSE(mySelectedAgeGroup,data!U12,data!U44,data!U76)) -> 0.048 | V12: =IF(ISBLANK(CHOOSE(mySelectedAgeGroup,data!V12,data!V44,data!V76)),"",CHOOSE(mySelectedAgeGroup,data!V12,data!V44,data!V76)) -> 0.039 | W12: =IF(ISBLANK(CHOOSE(mySelectedAgeGroup,data!W12,data!W44,data!W76)),"",CHOOSE(mySelectedAgeGroup,data!W12,data!W44,data!W76)) -> 0.058 | X12: =IF(ISBLANK(CHOOSE(mySelectedAgeGroup,data!X12,data!X44,data!X76)),"",CHOOSE(mySelectedAgeGroup,data!X12,data!X44,data!X76)) -> 0.064 | Y12: =IF(ISBLANK(CHOOSE(mySelectedAgeGroup,data!Y12,data!Y44,data!Y76)),"",CHOOSE(mySelectedAgeGroup,data!Y12,data!Y44,data!Y76)) -> 0.059 | Z12: =IF(ISBLANK(CHOOSE(mySelectedAgeGroup,data!Z12,data!Z44,data!Z76)),"",CHOOSE(mySelectedAgeGroup,data!Z12,data!Z44,data!Z76)) -> 0.06 | AA12: =IF(ISBLANK(CHOOSE(mySelectedAgeGroup,data!AA12,data!AA44,data!AA76)),"",CHOOSE(mySelectedAgeGroup,data!AA12,data!AA44,data!AA76)) -> 0.061 | AB12: =IF(ISBLANK(CHOOSE(mySelectedAgeGroup,data!AB12,data!AB44,data!AB76)),"",CHOOSE(mySelectedAgeGroup,data!AB12,data!AB44,data!AB76)) -> 0.054 | AC12: =IF(ISBLANK(CHOOSE(mySelectedAgeGroup,data!AC12,data!AC44,data!AC76)),"",CHOOSE(mySelectedAgeGroup,data!AC12,data!AC44,data!AC76)) -> 0.045 | AD12: =IF(ISBLANK(CHOOSE(mySelectedAgeGroup,data!AD12,data!AD44,data!AD76)),"",CHOOSE(mySelectedAgeGroup,data!AD12,data!AD44,data!AD76)) -> 0.035 | AE12: =IF(ISBLANK(CHOOSE(mySelectedAgeGroup,data!AE12,data!AE44,data!AE76)),"",CHOOSE(mySelectedAgeGroup,data!AE12,data!AE44,data!AE76)) -> 0.026 | AF12: =IF(ISBLANK(CHOOSE(mySelectedAgeGroup,data!AF12,data!AF44,data!AF76)),"",CHOOSE(mySelectedAgeGroup,data!AF12,data!AF44,data!AF76)) -> 0.02 | AG12: =IF(ISBLANK(CHOOSE(mySelectedAgeGroup,data!AG12,data!AG44,data!AG76)),"",CHOOSE(mySelectedAgeGroup,data!AG12,data!AG44,data!AG76)) -> 0.018 | AH12: =IF(ISBLANK(CHOOSE(mySelectedAgeGroup,data!AH12,data!AH44,data!AH76)),"",CHOOSE(mySelectedAgeGroup,data!AH12,data!AH44,data!AH76)) -> 0.017
C13: =data!B13 -> Denmark | D13: =IF(ISBLANK(CHOOSE(mySelectedAgeGroup,data!D13,data!D45,data!D77)),"",CHOOSE(mySelectedAgeGroup,data!D13,data!D45,data!D77)) -> 0.064 | E13: =IF(ISBLANK(CHOOSE(mySelectedAgeGroup,data!E13,data!E45,data!E77)),"",CHOOSE(mySelectedAgeGroup,data!E13,data!E45,data!E77)) -> 0.072 | F13: =IF(ISBLANK(CHOOSE(mySelectedAgeGroup,data!F13,data!F45,data!F77)),"",CHOOSE(mySelectedAgeGroup,data!F13,data!F45,data!F77)) -> 0.079 | G13: =IF(ISBLANK(CHOOSE(mySelectedAgeGroup,data!G13,data!G45,data!G77)),"",CHOOSE(mySelectedAgeGroup,data!G13,data!G45,data!G77)) -> 0.089 | H13: =IF(ISBLANK(CHOOSE(mySelectedAgeGroup,data!H13,data!H45,data!H77)),"",CHOOSE(mySelectedAgeGroup,data!H13,data!H45,data!H77)) -> 0.072 | I13: =IF(ISBLANK(CHOOSE(mySelectedAgeGroup,data!I13,data!I45,data!I77)),"",CHOOSE(mySelectedAgeGroup,data!I13,data!I45,data!I77)) -> 0.066 | J13: =IF(ISBLANK(CHOOSE(mySelectedAgeGroup,data!J13,data!J45,data!J77)),"",CHOOSE(mySelectedAgeGroup,data!J13,data!J45,data!J77)) -> 0.061 | K13: =IF(ISBLANK(CHOOSE(mySelectedAgeGroup,data!K13,data!K45,data!K77)),"",CHOOSE(mySelectedAgeGroup,data!K13,data!K45,data!K77)) -> 0.051 | L13: =IF(ISBLANK(CHOOSE(mySelectedAgeGroup,data!L13,data!L45,data!L77)),"",CHOOSE(mySelectedAgeGroup,data!L13,data!L45,data!L77)) -> 0.049 | M13: =IF(ISBLANK(CHOOSE(mySelectedAgeGroup,data!M13,data!M45,data!M77)),"",CHOOSE(mySelectedAgeGroup,data!M13,data!M45,data!M77)) -> 0.049 | N13: =IF(ISBLANK(CHOOSE(mySelectedAgeGroup,data!N13,data!N45,data!N77)),"",CHOOSE(mySelectedAgeGroup,data!N13,data!N45,data!N77)) -> 0.043 | O13: =IF(ISBLANK(CHOOSE(mySelectedAgeGroup,data!O13,data!O45,data!O77)),"",CHOOSE(mySelectedAgeGroup,data!O13,data!O45,data!O77)) -> 0.04 | P13: =IF(ISBLANK(CHOOSE(mySelectedAgeGroup,data!P13,data!P45,data!P77)),"",CHOOSE(mySelectedAgeGroup,data!P13,data!P45,data!P77)) -> 0.041 | Q13: =IF(ISBLANK(CHOOSE(mySelectedAgeGroup,data!Q13,data!Q45,data!Q77)),"",CHOOSE(mySelectedAgeGroup,data!Q13,data!Q45,data!Q77)) -> 0.048 | R13: =IF(ISBLANK(CHOOSE(mySelectedAgeGroup,data!R13,data!R45,data!R77)),"",CHOOSE(mySelectedAgeGroup,data!R13,data!R45,data!R77)) -> 0.051 | S13: =IF(ISBLANK(CHOOSE(mySelectedAgeGroup,data!S13,data!S45,data!S77)),"",CHOOSE(mySelectedAgeGroup,data!S13,data!S45,data!S77)) -> 0.042 | T13: =IF(ISBLANK(CHOOSE(mySelectedAgeGroup,data!T13,data!T45,data!T77)),"",CHOOSE(mySelectedAgeGroup,data!T13,data!T45,data!T77)) -> 0.032 | U13: =IF(ISBLANK(CHOOSE(mySelectedAgeGroup,data!U13,data!U45,data!U77)),"",CHOOSE(mySelectedAgeGroup,data!U13,data!U45,data!U77)) -> 0.032 | V13: =IF(ISBLANK(CHOOSE(mySelectedAgeGroup,data!V13,data!V45,data!V77)),"",CHOOSE(mySelectedAgeGroup,data!V13,data!V45,data!V77)) -> 0.026 | W13: =IF(ISBLANK(CHOOSE(mySelectedAgeGroup,data!W13,data!W45,data!W77)),"",CHOOSE(mySelectedAgeGroup,data!W13,data!W45,data!W77)) -> 0.051 | X13: =IF(ISBLANK(CHOOSE(mySelectedAgeGroup,data!X13,data!X45,data!X77)),"",CHOOSE(mySelectedAgeGroup,data!X13,data!X45,data!X77)) -> 0.064 | Y13: =IF(ISBLANK(CHOOSE(mySelectedAgeGroup,data!Y13,data!Y45,data!Y77)),"",CHOOSE(mySelectedAgeGroup,data!Y13,data!Y45,data!Y77)) -> 0.062 | Z13: =IF(ISBLANK(CHOOSE(mySelectedAgeGroup,data!Z13,data!Z45,data!Z77)),"",CHOOSE(mySelectedAgeGroup,data!Z13,data!Z45,data!Z77)) -> 0.064 | AA13: =IF(ISBLANK(CHOOSE(mySelectedAgeGroup,data!AA13,data!AA45,data!AA77)),"",CHOOSE(mySelectedAgeGroup,data!AA13,data!AA45,data!AA77)) -> 0.061 | AB13: =IF(ISBLANK(CHOOSE(mySelectedAgeGroup,data!AB13,data!AB45,data!AB77)),"",CHOOSE(mySelectedAgeGroup,data!AB13,data!AB45,data!AB77)) -> 0.057 | AC13: =IF(ISBLANK(CHOOSE(mySelectedAgeGroup,data!AC13,data!AC45,data!AC77)),"",CHOOSE(mySelectedAgeGroup,data!AC13,data!AC45,data!AC77)) -> 0.053 | AD13: =IF(ISBLANK(CHOOSE(mySelectedAgeGroup,data!AD13,data!AD45,data!AD77)),"",CHOOSE(mySelectedAgeGroup,data!AD13,data!AD45,data!AD77)) -> 0.049 | AE13: =IF(ISBLANK(CHOOSE(mySelectedAgeGroup,data!AE13,data!AE45,data!AE77)),"",CHOOSE(mySelectedAgeGroup,data!AE13,data!AE45,data!AE77)) -> 0.047 | AF13: =IF(ISBLANK(CHOOSE(mySelectedAgeGroup,data!AF13,data!AF45,data!AF77)),"",CHOOSE(mySelectedAgeGroup,data!AF13,data!AF45,data!AF77)) -> 0.042 | AG13: =IF(ISBLANK(CHOOSE(mySelectedAgeGroup,data!AG13,data!AG45,data!AG77)),"",CHOOSE(mySelectedAgeGroup,data!AG13,data!AG45,data!AG77)) -> 0.042 | AH13: =IF(ISBLANK(CHOOSE(mySelectedAgeGroup,data!AH13,data!AH45,data!AH77)),"",CHOOSE(mySelectedAgeGroup,data!AH13,data!AH45,data!AH77)) -> 0.04
C14: =data!B14 -> Estonia | D14: =IF(ISBLANK(CHOOSE(mySelectedAgeGroup,data!D14,data!D46,data!D78)),"",CHOOSE(mySelectedAgeGroup,data!D14,data!D46,data!D78)) ->  | E14: =IF(ISBLANK(CHOOSE(mySelectedAgeGroup,data!E14,data!E46,data!E78)),"",CHOOSE(mySelectedAgeGroup,data!E14,data!E46,data!E78)) ->  | F14: =IF(ISBLANK(CHOOSE(mySelectedAgeGroup,data!F14,data!F46,data!F78)),"",CHOOSE(mySelectedAgeGroup,data!F14,data!F46,data!F78)) ->  | G14: =IF(ISBLANK(CHOOSE(mySelectedAgeGroup,data!G14,data!G46,data!G78)),"",CHOOSE(mySelectedAgeGroup,data!G14,data!G46,data!G78)) ->  | H14: =IF(ISBLANK(CHOOSE(mySelectedAgeGroup,data!H14,data!H46,data!H78)),"",CHOOSE(mySelectedAgeGroup,data!H14,data!H46,data!H78)) ->  | I14: =IF(ISBLANK(CHOOSE(mySelectedAgeGroup,data!I14,data!I46,data!I78)),"",CHOOSE(mySelectedAgeGroup,data!I14,data!I46,data!I78)) ->  | J14: =IF(ISBLANK(CHOOSE(mySelectedAgeGroup,data!J14,data!J46,data!J78)),"",CHOOSE(mySelectedAgeGroup,data!J14,data!J46,data!J78)) ->  | K14: =IF(ISBLANK(CHOOSE(mySelectedAgeGroup,data!K14,data!K46,data!K78)),"",CHOOSE(mySelectedAgeGroup,data!K14,data!K46,data!K78)) -> 0.092 | L14: =IF(ISBLANK(CHOOSE(mySelectedAgeGroup,data!L14,data!L46,data!L78)),"",CHOOSE(mySelectedAgeGroup,data!L14,data!L46,data!L78)) -> 0.092 | M14: =IF(ISBLANK(CHOOSE(mySelectedAgeGroup,data!M14,data!M46,data!M78)),"",CHOOSE(mySelectedAgeGroup,data!M14,data!M46,data!M78)) -> 0.113 | N14: =IF(ISBLANK(CHOOSE(mySelectedAgeGroup,data!N14,data!N46,data!N78)),"",CHOOSE(mySelectedAgeGroup,data!N14,data!N46,data!N78)) -> 0.134 | O14: =IF(ISBLANK(CHOOSE(mySelectedAgeGroup,data!O14,data!O46,data!O78)),"",CHOOSE(mySelectedAgeGroup,data!O14,data!O46,data!O78)) -> 0.119 | P14: =IF(ISBLANK(CHOOSE(mySelectedAgeGroup,data!P14,data!P46,data!P78)),"",CHOOSE(mySelectedAgeGroup,data!P14,data!P46,data!P78)) -> 0.105 | Q14: =IF(ISBLANK(CHOOSE(mySelectedAgeGroup,data!Q14,data!Q46,data!Q78)),"",CHOOSE(mySelectedAgeGroup,data!Q14,data!Q46,data!Q78)) -> 0.09 | R14: =IF(ISBLANK(CHOOSE(mySelectedAgeGroup,data!R14,data!R46,data!R78)),"",CHOOSE(mySelectedAgeGroup,data!R14,data!R46,data!R78)) -> 0.084 | S14: =IF(ISBLANK(CHOOSE(mySelectedAgeGroup,data!S14,data!S46,data!S78)),"",CHOOSE(mySelectedAgeGroup,data!S14,data!S46,data!S78)) -> 0.072 | T14: =IF(ISBLANK(CHOOSE(mySelectedAgeGroup,data!T14,data!T46,data!T78)),"",CHOOSE(mySelectedAgeGroup,data!T14,data!T46,data!T78)) -> 0.052 | U14: =IF(ISBLANK(CHOOSE(mySelectedAgeGroup,data!U14,data!U46,data!U78)),"",CHOOSE(mySelectedAgeGroup,data!U14,data!U46,data!U78)) -> 0.039 | V14: =IF(ISBLANK(CHOOSE(mySelectedAgeGroup,data!V14,data!V46,data!V78)),"",CHOOSE(mySelectedAgeGroup,data!V14,data!V46,data!V78)) -> 0.046 | W14: =IF(ISBLANK(CHOOSE(mySelectedAgeGroup,data!W14,data!W46,data!W78)),"",CHOOSE(mySelectedAgeGroup,data!W14,data!W46,data!W78)) -> 0.119 | X14: =IF(ISBLANK(CHOOSE(mySelectedAgeGroup,data!X14,data!X46,data!X78)),"",CHOOSE(mySelectedAgeGroup,data!X14,data!X46,data!X78)) -> 0.149 | Y14: =IF(ISBLANK(CHOOSE(mySelectedAgeGroup,data!Y14,data!Y46,data!Y78)),"",CHOOSE(mySelectedAgeGroup,data!Y14,data!Y46,data!Y78)) -> 0.112 | Z14: =IF(ISBLANK(CHOOSE(mySelectedAgeGroup,data!Z14,data!Z46,data!Z78)),"",CHOOSE(mySelectedAgeGroup,data!Z14,data!Z46,data!Z78)) -> 0.089 | AA14: =IF(ISBLANK(CHOOSE(mySelectedAgeGroup,data!AA14,data!AA46,data!AA78)),"",CHOOSE(mySelectedAgeGroup,data!AA14,data!AA46,data!AA78)) -> 0.076 | AB14: =IF(ISBLANK(CHOOSE(mySelectedAgeGroup,data!AB14,data!AB46,data!AB78)),"",CHOOSE(mySelectedAgeGroup,data!AB14,data!AB46,data!AB78)) -> 0.067 | AC14: =IF(ISBLANK(CHOOSE(mySelectedAgeGroup,data!AC14,data!AC46,data!AC78)),"",CHOOSE(mySelectedAgeGroup,data!AC14,data!AC46,data!AC78)) -> 0.056 | AD14: =IF(ISBLANK(CHOOSE(mySelectedAgeGroup,data!AD14,data!AD46,data!AD78)),"",CHOOSE(mySelectedAgeGroup,data!AD14,data!AD46,data!AD78)) -> 0.062 | AE14: =IF(ISBLANK(CHOOSE(mySelectedAgeGroup,data!AE14,data!AE46,data!AE78)),"",CHOOSE(mySelectedAgeGroup,data!AE14,data!AE46,data!AE78)) -> 0.052 | AF14: =IF(ISBLANK(CHOOSE(mySelectedAgeGroup,data!AF14,data!AF46,data!AF78)),"",CHOOSE(mySelectedAgeGroup,data!AF14,data!AF46,data!AF78)) -> 0.048 | AG14: =IF(ISBLANK(CHOOSE(mySelectedAgeGroup,data!AG14,data!AG46,data!AG78)),"",CHOOSE(mySelectedAgeGroup,data!AG14,data!AG46,data!AG78)) -> 0.039 | AH14: =IF(ISBLANK(CHOOSE(mySelectedAgeGroup,data!AH14,data!AH46,data!AH78)),"",CHOOSE(mySelectedAgeGroup,data!AH14,data!AH46,data!AH78)) -> 0.046
C15: =data!B15 -> Finland | D15: =IF(ISBLANK(CHOOSE(mySelectedAgeGroup,data!D15,data!D47,data!D79)),"",CHOOSE(mySelectedAgeGroup,data!D15,data!D47,data!D79)) -> 0.021 | E15: =IF(ISBLANK(CHOOSE(mySelectedAgeGroup,data!E15,data!E47,data!E79)),"",CHOOSE(mySelectedAgeGroup,data!E15,data!E47,data!E79)) -> 0.051 | F15: =IF(ISBLANK(CHOOSE(mySelectedAgeGroup,data!F15,data!F47,data!F79)),"",CHOOSE(mySelectedAgeGroup,data!F15,data!F47,data!F79)) -> 0.096 | G15: =IF(ISBLANK(CHOOSE(mySelectedAgeGroup,data!G15,data!G47,data!G79)),"",CHOOSE(mySelectedAgeGroup,data!G15,data!G47,data!G79)) -> 0.141 | H15: =IF(ISBLANK(CHOOSE(mySelectedAgeGroup,data!H15,data!H47,data!H79)),"",CHOOSE(mySelectedAgeGroup,data!H15,data!H47,data!H79)) -> 0.145 | I15: =IF(ISBLANK(CHOOSE(mySelectedAgeGroup,data!I15,data!I47,data!I79)),"",CHOOSE(mySelectedAgeGroup,data!I15,data!I47,data!I79)) ->  | J15: =IF(ISBLANK(CHOOSE(mySelectedAgeGroup,data!J15,data!J47,data!J79)),"",CHOOSE(mySelectedAgeGroup,data!J15,data!J47,data!J79)) -> 0.12 | K15: =IF(ISBLANK(CHOOSE(mySelectedAgeGroup,data!K15,data!K47,data!K79)),"",CHOOSE(mySelectedAgeGroup,data!K15,data!K47,data!K79)) -> 0.115 | L15: =IF(ISBLANK(CHOOSE(mySelectedAgeGroup,data!L15,data!L47,data!L79)),"",CHOOSE(mySelectedAgeGroup,data!L15,data!L47,data!L79)) -> 0.098 | M15: =IF(ISBLANK(CHOOSE(mySelectedAgeGroup,data!M15,data!M47,data!M79)),"",CHOOSE(mySelectedAgeGroup,data!M15,data!M47,data!M79)) -> 0.086 | N15: =IF(ISBLANK(CHOOSE(mySelectedAgeGroup,data!N15,data!N47,data!N79)),"",CHOOSE(mySelectedAgeGroup,data!N15,data!N47,data!N79)) -> 0.081 | O15: =IF(ISBLANK(CHOOSE(mySelectedAgeGroup,data!O15,data!O47,data!O79)),"",CHOOSE(mySelectedAgeGroup,data!O15,data!O47,data!O79)) -> 0.076 | P15: =IF(ISBLANK(CHOOSE(mySelectedAgeGroup,data!P15,data!P47,data!P79)),"",CHOOSE(mySelectedAgeGroup,data!P15,data!P47,data!P79)) -> 0.074 | Q15: =IF(ISBLANK(CHOOSE(mySelectedAgeGroup,data!Q15,data!Q47,data!Q79)),"",CHOOSE(mySelectedAgeGroup,data!Q15,data!Q47,data!Q79)) -> 0.072 | R15: =IF(ISBLANK(CHOOSE(mySelectedAgeGroup,data!R15,data!R47,data!R79)),"",CHOOSE(mySelectedAgeGroup,data!R15,data!R47,data!R79)) -> 0.072 | S15: =IF(ISBLANK(CHOOSE(mySelectedAgeGroup,data!S15,data!S47,data!S79)),"",CHOOSE(mySelectedAgeGroup,data!S15,data!S47,data!S79)) -> 0.068 | T15: =IF(ISBLANK(CHOOSE(mySelectedAgeGroup,data!T15,data!T47,data!T79)),"",CHOOSE(mySelectedAgeGroup,data!T15,data!T47,data!T79)) -> 0.062 | U15: =IF(ISBLANK(CHOOSE(mySelectedAgeGroup,data!U15,data!U47,data!U79)),"",CHOOSE(mySelectedAgeGroup,data!U15,data!U47,data!U79)) -> 0.054 | V15: =IF(ISBLANK(CHOOSE(mySelectedAgeGroup,data!V15,data!V47,data!V79)),"",CHOOSE(mySelectedAgeGroup,data!V15,data!V47,data!V79)) -> 0.049 | W15: =IF(ISBLANK(CHOOSE(mySelectedAgeGroup,data!W15,data!W47,data!W79)),"",CHOOSE(mySelectedAgeGroup,data!W15,data!W47,data!W79)) -> 0.064 | X15: =IF(ISBLANK(CHOOSE(mySelectedAgeGroup,data!X15,data!X47,data!X79)),"",CHOOSE(mySelectedAgeGroup,data!X15,data!X47,data!X79)) -> 0.066 | Y15: =IF(ISBLANK(CHOOSE(mySelectedAgeGroup,data!Y15,data!Y47,data!Y79)),"",CHOOSE(mySelectedAgeGroup,data!Y15,data!Y47,data!Y79)) -> 0.061 | Z15: =IF(ISBLANK(CHOOSE(mySelectedAgeGroup,data!Z15,data!Z47,data!Z79)),"",CHOOSE(mySelectedAgeGroup,data!Z15,data!Z47,data!Z79)) -> 0.061 | AA15: =IF(ISBLANK(CHOOSE(mySelectedAgeGroup,data!AA15,data!AA47,data!AA79)),"",CHOOSE(mySelectedAgeGroup,data!AA15,data!AA47,data!AA79)) -> 0.065 | AB15: =IF(ISBLANK(CHOOSE(mySelectedAgeGroup,data!AB15,data!AB47,data!AB79)),"",CHOOSE(mySelectedAgeGroup,data!AB15,data!AB47,data!AB79)) -> 0.07 | AC15: =IF(ISBLANK(CHOOSE(mySelectedAgeGroup,data!AC15,data!AC47,data!AC79)),"",CHOOSE(mySelectedAgeGroup,data!AC15,data!AC47,data!AC79)) -> 0.076 | AD15: =IF(ISBLANK(CHOOSE(mySelectedAgeGroup,data!AD15,data!AD47,data!AD79)),"",CHOOSE(mySelectedAgeGroup,data!AD15,data!AD47,data!AD79)) -> 0.073 | AE15: =IF(ISBLANK(CHOOSE(mySelectedAgeGroup,data!AE15,data!AE47,data!AE79)),"",CHOOSE(mySelectedAgeGroup,data!AE15,data!AE47,data!AE79)) -> 0.071 | AF15: =IF(ISBLANK(CHOOSE(mySelectedAgeGroup,data!AF15,data!AF47,data!AF79)),"",CHOOSE(mySelectedAgeGroup,data!AF15,data!AF47,data!AF79)) -> 0.061 | AG15: =IF(ISBLANK(CHOOSE(mySelectedAgeGroup,data!AG15,data!AG47,data!AG79)),"",CHOOSE(mySelectedAgeGroup,data!AG15,data!AG47,data!AG79)) -> 0.053 | AH15: =IF(ISBLANK(CHOOSE(mySelectedAgeGroup,data!AH15,data!AH47,data!AH79)),"",CHOOSE(mySelectedAgeGroup,data!AH15,data!AH47,data!AH79)) -> 0.05
C16: =data!B16 -> France | D16: =IF(ISBLANK(CHOOSE(mySelectedAgeGroup,data!D16,data!D48,data!D80)),"",CHOOSE(mySelectedAgeGroup,data!D16,data!D48,data!D80)) -> 0.052 | E16: =IF(ISBLANK(CHOOSE(mySelectedAgeGroup,data!E16,data!E48,data!E80)),"",CHOOSE(mySelectedAgeGroup,data!E16,data!E48,data!E80)) -> 0.052 | F16: =IF(ISBLANK(CHOOSE(mySelectedAgeGroup,data!F16,data!F48,data!F80)),"",CHOOSE(mySelectedAgeGroup,data!F16,data!F48,data!F80)) -> 0.057 | G16: =IF(ISBLANK(CHOOSE(mySelectedAgeGroup,data!G16,data!G48,data!G80)),"",CHOOSE(mySelectedAgeGroup,data!G16,data!G48,data!G80)) -> 0.061 | H16: =IF(ISBLANK(CHOOSE(mySelectedAgeGroup,data!H16,data!H48,data!H80)),"",CHOOSE(mySelectedAgeGroup,data!H16,data!H48,data!H80)) -> 0.063 | I16: =IF(ISBLANK(CHOOSE(mySelectedAgeGroup,data!I16,data!I48,data!I80)),"",CHOOSE(mySelectedAgeGroup,data!I16,data!I48,data!I80)) ->  | J16: =IF(ISBLANK(CHOOSE(mySelectedAgeGroup,data!J16,data!J48,data!J80)),"",CHOOSE(mySelectedAgeGroup,data!J16,data!J48,data!J80)) ->  | K16: =IF(ISBLANK(CHOOSE(mySelectedAgeGroup,data!K16,data!K48,data!K80)),"",CHOOSE(mySelectedAgeGroup,data!K16,data!K48,data!K80)) ->  | L16: =IF(ISBLANK(CHOOSE(mySelectedAgeGroup,data!L16,data!L48,data!L80)),"",CHOOSE(mySelectedAgeGroup,data!L16,data!L48,data!L80)) ->  | M16: =IF(ISBLANK(CHOOSE(mySelectedAgeGroup,data!M16,data!M48,data!M80)),"",CHOOSE(mySelectedAgeGroup,data!M16,data!M48,data!M80)) ->  | N16: =IF(ISBLANK(CHOOSE(mySelectedAgeGroup,data!N16,data!N48,data!N80)),"",CHOOSE(mySelectedAgeGroup,data!N16,data!N48,data!N80)) ->  | O16: =IF(ISBLANK(CHOOSE(mySelectedAgeGroup,data!O16,data!O48,data!O80)),"",CHOOSE(mySelectedAgeGroup,data!O16,data!O48,data!O80)) ->  | P16: =IF(ISBLANK(CHOOSE(mySelectedAgeGroup,data!P16,data!P48,data!P80)),"",CHOOSE(mySelectedAgeGroup,data!P16,data!P48,data!P80)) ->  | Q16: =IF(ISBLANK(CHOOSE(mySelectedAgeGroup,data!Q16,data!Q48,data!Q80)),"",CHOOSE(mySelectedAgeGroup,data!Q16,data!Q48,data!Q80)) -> 0.073 | R16: =IF(ISBLANK(CHOOSE(mySelectedAgeGroup,data!R16,data!R48,data!R80)),"",CHOOSE(mySelectedAgeGroup,data!R16,data!R48,data!R80)) -> 0.075 | S16: =IF(ISBLANK(CHOOSE(mySelectedAgeGroup,data!S16,data!S48,data!S80)),"",CHOOSE(mySelectedAgeGroup,data!S16,data!S48,data!S80)) -> 0.075 | T16: =IF(ISBLANK(CHOOSE(mySelectedAgeGroup,data!T16,data!T48,data!T80)),"",CHOOSE(mySelectedAgeGroup,data!T16,data!T48,data!T80)) -> 0.073 | U16: =IF(ISBLANK(CHOOSE(mySelectedAgeGroup,data!U16,data!U48,data!U80)),"",CHOOSE(mySelectedAgeGroup,data!U16,data!U48,data!U80)) -> 0.067 | V16: =IF(ISBLANK(CHOOSE(mySelectedAgeGroup,data!V16,data!V48,data!V80)),"",CHOOSE(mySelectedAgeGroup,data!V16,data!V48,data!V80)) -> 0.061 | W16: =IF(ISBLANK(CHOOSE(mySelectedAgeGroup,data!W16,data!W48,data!W80)),"",CHOOSE(mySelectedAgeGroup,data!W16,data!W48,data!W80)) -> 0.074 | X16: =IF(ISBLANK(CHOOSE(mySelectedAgeGroup,data!X16,data!X48,data!X80)),"",CHOOSE(mySelectedAgeGroup,data!X16,data!X48,data!X80)) -> 0.077 | Y16: =IF(ISBLANK(CHOOSE(mySelectedAgeGroup,data!Y16,data!Y48,data!Y80)),"",CHOOSE(mySelectedAgeGroup,data!Y16,data!Y48,data!Y80)) -> 0.077 | Z16: =IF(ISBLANK(CHOOSE(mySelectedAgeGroup,data!Z16,data!Z48,data!Z80)),"",CHOOSE(mySelectedAgeGroup,data!Z16,data!Z48,data!Z80)) -> 0.082 | AA16: =IF(ISBLANK(CHOOSE(mySelectedAgeGroup,data!AA16,data!AA48,data!AA80)),"",CHOOSE(mySelectedAgeGroup,data!AA16,data!AA48,data!AA80)) -> 0.088 | AB16: =IF(ISBLANK(CHOOSE(mySelectedAgeGroup,data!AB16,data!AB48,data!AB80)),"",CHOOSE(mySelectedAgeGroup,data!AB16,data!AB48,data!AB80)) -> 0.089 | AC16: =IF(ISBLANK(CHOOSE(mySelectedAgeGroup,data!AC16,data!AC48,data!AC80)),"",CHOOSE(mySelectedAgeGroup,data!AC16,data!AC48,data!AC80)) -> 0.089 | AD16: =IF(ISBLANK(CHOOSE(mySelectedAgeGroup,data!AD16,data!AD48,data!AD80)),"",CHOOSE(mySelectedAgeGroup,data!AD16,data!AD48,data!AD80)) -> 0.085 | AE16: =IF(ISBLANK(CHOOSE(mySelectedAgeGroup,data!AE16,data!AE48,data!AE80)),"",CHOOSE(mySelectedAgeGroup,data!AE16,data!AE48,data!AE80)) -> 0.081 | AF16: =IF(ISBLANK(CHOOSE(mySelectedAgeGroup,data!AF16,data!AF48,data!AF80)),"",CHOOSE(mySelectedAgeGroup,data!AF16,data!AF48,data!AF80)) -> 0.078 | AG16: =IF(ISBLANK(CHOOSE(mySelectedAgeGroup,data!AG16,data!AG48,data!AG80)),"",CHOOSE(mySelectedAgeGroup,data!AG16,data!AG48,data!AG80)) -> 0.073 | AH16: =IF(ISBLANK(CHOOSE(mySelectedAgeGroup,data!AH16,data!AH48,data!AH80)),"",CHOOSE(mySelectedAgeGroup,data!AH16,data!AH48,data!AH80)) -> 0.073
C17: =data!B17 -> Germany | D17: =IF(ISBLANK(CHOOSE(mySelectedAgeGroup,data!D17,data!D49,data!D81)),"",CHOOSE(mySelectedAgeGroup,data!D17,data!D49,data!D81)) ->  | E17: =IF(ISBLANK(CHOOSE(mySelectedAgeGroup,data!E17,data!E49,data!E81)),"",CHOOSE(mySelectedAgeGroup,data!E17,data!E49,data!E81)) -> 0.055 | F17: =IF(ISBLANK(CHOOSE(mySelectedAgeGroup,data!F17,data!F49,data!F81)),"",CHOOSE(mySelectedAgeGroup,data!F17,data!F49,data!F81)) -> 0.066 | G17: =IF(ISBLANK(CHOOSE(mySelectedAgeGroup,data!G17,data!G49,data!G81)),"",CHOOSE(mySelectedAgeGroup,data!G17,data!G49,data!G81)) -> 0.077 | H17: =IF(ISBLANK(CHOOSE(mySelectedAgeGroup,data!H17,data!H49,data!H81)),"",CHOOSE(mySelectedAgeGroup,data!H17,data!H49,data!H81)) -> 0.084 | I17: =IF(ISBLANK(CHOOSE(mySelectedAgeGroup,data!I17,data!I49,data!I81)),"",CHOOSE(mySelectedAgeGroup,data!I17,data!I49,data!I81)) -> 0.083 | J17: =IF(ISBLANK(CHOOSE(mySelectedAgeGroup,data!J17,data!J49,data!J81)),"",CHOOSE(mySelectedAgeGroup,data!J17,data!J49,data!J81)) -> 0.09 | K17: =IF(ISBLANK(CHOOSE(mySelectedAgeGroup,data!K17,data!K49,data!K81)),"",CHOOSE(mySelectedAgeGroup,data!K17,data!K49,data!K81)) -> 0.098 | L17: =IF(ISBLANK(CHOOSE(mySelectedAgeGroup,data!L17,data!L49,data!L81)),"",CHOOSE(mySelectedAgeGroup,data!L17,data!L49,data!L81)) -> 0.096 | M17: =IF(ISBLANK(CHOOSE(mySelectedAgeGroup,data!M17,data!M49,data!M81)),"",CHOOSE(mySelectedAgeGroup,data!M17,data!M49,data!M81)) -> 0.087 | N17: =IF(ISBLANK(CHOOSE(mySelectedAgeGroup,data!N17,data!N49,data!N81)),"",CHOOSE(mySelectedAgeGroup,data!N17,data!N49,data!N81)) -> 0.078 | O17: =IF(ISBLANK(CHOOSE(mySelectedAgeGroup,data!O17,data!O49,data!O81)),"",CHOOSE(mySelectedAgeGroup,data!O17,data!O49,data!O81)) -> 0.08 | P17: =IF(ISBLANK(CHOOSE(mySelectedAgeGroup,data!P17,data!P49,data!P81)),"",CHOOSE(mySelectedAgeGroup,data!P17,data!P49,data!P81)) -> 0.086 | Q17: =IF(ISBLANK(CHOOSE(mySelectedAgeGroup,data!Q17,data!Q49,data!Q81)),"",CHOOSE(mySelectedAgeGroup,data!Q17,data!Q49,data!Q81)) -> 0.097 | R17: =IF(ISBLANK(CHOOSE(mySelectedAgeGroup,data!R17,data!R49,data!R81)),"",CHOOSE(mySelectedAgeGroup,data!R17,data!R49,data!R81)) -> 0.105 | S17: =IF(ISBLANK(CHOOSE(mySelectedAgeGroup,data!S17,data!S49,data!S81)),"",CHOOSE(mySelectedAgeGroup,data!S17,data!S49,data!S81)) -> 0.106 | T17: =IF(ISBLANK(CHOOSE(mySelectedAgeGroup,data!T17,data!T49,data!T81)),"",CHOOSE(mySelectedAgeGroup,data!T17,data!T49,data!T81)) -> 0.098 | U17: =IF(ISBLANK(CHOOSE(mySelectedAgeGroup,data!U17,data!U49,data!U81)),"",CHOOSE(mySelectedAgeGroup,data!U17,data!U49,data!U81)) -> 0.082 | V17: =IF(ISBLANK(CHOOSE(mySelectedAgeGroup,data!V17,data!V49,data!V81)),"",CHOOSE(mySelectedAgeGroup,data!V17,data!V49,data!V81)) -> 0.071 | W17: =IF(ISBLANK(CHOOSE(mySelectedAgeGroup,data!W17,data!W49,data!W81)),"",CHOOSE(mySelectedAgeGroup,data!W17,data!W49,data!W81)) -> 0.073 | X17: =IF(ISBLANK(CHOOSE(mySelectedAgeGroup,data!X17,data!X49,data!X81)),"",CHOOSE(mySelectedAgeGroup,data!X17,data!X49,data!X81)) -> 0.066 | Y17: =IF(ISBLANK(CHOOSE(mySelectedAgeGroup,data!Y17,data!Y49,data!Y81)),"",CHOOSE(mySelectedAgeGroup,data!Y17,data!Y49,data!Y81)) -> 0.055 | Z17: =IF(ISBLANK(CHOOSE(mySelectedAgeGroup,data!Z17,data!Z49,data!Z81)),"",CHOOSE(mySelectedAgeGroup,data!Z17,data!Z49,data!Z81)) -> 0.051 | AA17: =IF(ISBLANK(CHOOSE(mySelectedAgeGroup,data!AA17,data!AA49,data!AA81)),"",CHOOSE(mySelectedAgeGroup,data!AA17,data!AA49,data!AA81)) -> 0.049 | AB17: =IF(ISBLANK(CHOOSE(mySelectedAgeGroup,data!AB17,data!AB49,data!AB81)),"",CHOOSE(mySelectedAgeGroup,data!AB17,data!AB49,data!AB81)) -> 0.047 | AC17: =IF(ISBLANK(CHOOSE(mySelectedAgeGroup,data!AC17,data!AC49,data!AC81)),"",CHOOSE(mySelectedAgeGroup,data!AC17,data!AC49,data!AC81)) -> 0.044 | AD17: =IF(ISBLANK(CHOOSE(mySelectedAgeGroup,data!AD17,data!AD49,data!AD81)),"",CHOOSE(mySelectedAgeGroup,data!AD17,data!AD49,data!AD81)) -> 0.038 | AE17: =IF(ISBLANK(CHOOSE(mySelectedAgeGroup,data!AE17,data!AE49,data!AE81)),"",CHOOSE(mySelectedAgeGroup,data!AE17,data!AE49,data!AE81)) -> 0.034 | AF17: =IF(ISBLANK(CHOOSE(mySelectedAgeGroup,data!AF17,data!AF49,data!AF81)),"",CHOOSE(mySelectedAgeGroup,data!AF17,data!AF49,data!AF81)) -> 0.031 | AG17: =IF(ISBLANK(CHOOSE(mySelectedAgeGroup,data!AG17,data!AG49,data!AG81)),"",CHOOSE(mySelectedAgeGroup,data!AG17,data!AG49,data!AG81)) -> 0.029 | AH17: =IF(ISBLANK(CHOOSE(mySelectedAgeGroup,data!AH17,data!AH49,data!AH81)),"",CHOOSE(mySelectedAgeGroup,data!AH17,data!AH49,data!AH81)) -> 0.036
C18: =data!B18 -> Greece | D18: =IF(ISBLANK(CHOOSE(mySelectedAgeGroup,data!D18,data!D50,data!D82)),"",CHOOSE(mySelectedAgeGroup,data!D18,data!D50,data!D82)) ->  | E18: =IF(ISBLANK(CHOOSE(mySelectedAgeGroup,data!E18,data!E50,data!E82)),"",CHOOSE(mySelectedAgeGroup,data!E18,data!E50,data!E82)) ->  | F18: =IF(ISBLANK(CHOOSE(mySelectedAgeGroup,data!F18,data!F50,data!F82)),"",CHOOSE(mySelectedAgeGroup,data!F18,data!F50,data!F82)) ->  | G18: =IF(ISBLANK(CHOOSE(mySelectedAgeGroup,data!G18,data!G50,data!G82)),"",CHOOSE(mySelectedAgeGroup,data!G18,data!G50,data!G82)) ->  | H18: =IF(ISBLANK(CHOOSE(mySelectedAgeGroup,data!H18,data!H50,data!H82)),"",CHOOSE(mySelectedAgeGroup,data!H18,data!H50,data!H82)) ->  | I18: =IF(ISBLANK(CHOOSE(mySelectedAgeGroup,data!I18,data!I50,data!I82)),"",CHOOSE(mySelectedAgeGroup,data!I18,data!I50,data!I82)) -> 0.067 | J18: =IF(ISBLANK(CHOOSE(mySelectedAgeGroup,data!J18,data!J50,data!J82)),"",CHOOSE(mySelectedAgeGroup,data!J18,data!J50,data!J82)) -> 0.069 | K18: =IF(ISBLANK(CHOOSE(mySelectedAgeGroup,data!K18,data!K50,data!K82)),"",CHOOSE(mySelectedAgeGroup,data!K18,data!K50,data!K82)) -> 0.073 | L18: =IF(ISBLANK(CHOOSE(mySelectedAgeGroup,data!L18,data!L50,data!L82)),"",CHOOSE(mySelectedAgeGroup,data!L18,data!L50,data!L82)) -> 0.083 | M18: =IF(ISBLANK(CHOOSE(mySelectedAgeGroup,data!M18,data!M50,data!M82)),"",CHOOSE(mySelectedAgeGroup,data!M18,data!M50,data!M82)) -> 0.093 | N18: =IF(ISBLANK(CHOOSE(mySelectedAgeGroup,data!N18,data!N50,data!N82)),"",CHOOSE(mySelectedAgeGroup,data!N18,data!N50,data!N82)) -> 0.089 | O18: =IF(ISBLANK(CHOOSE(mySelectedAgeGroup,data!O18,data!O50,data!O82)),"",CHOOSE(mySelectedAgeGroup,data!O18,data!O50,data!O82)) -> 0.086 | P18: =IF(ISBLANK(CHOOSE(mySelectedAgeGroup,data!P18,data!P50,data!P82)),"",CHOOSE(mySelectedAgeGroup,data!P18,data!P50,data!P82)) -> 0.084 | Q18: =IF(ISBLANK(CHOOSE(mySelectedAgeGroup,data!Q18,data!Q50,data!Q82)),"",CHOOSE(mySelectedAgeGroup,data!Q18,data!Q50,data!Q82)) -> 0.079 | R18: =IF(ISBLANK(CHOOSE(mySelectedAgeGroup,data!R18,data!R50,data!R82)),"",CHOOSE(mySelectedAgeGroup,data!R18,data!R50,data!R82)) -> 0.088 | S18: =IF(ISBLANK(CHOOSE(mySelectedAgeGroup,data!S18,data!S50,data!S82)),"",CHOOSE(mySelectedAgeGroup,data!S18,data!S50,data!S82)) -> 0.084 | T18: =IF(ISBLANK(CHOOSE(mySelectedAgeGroup,data!T18,data!T50,data!T82)),"",CHOOSE(mySelectedAgeGroup,data!T18,data!T50,data!T82)) -> 0.075 | U18: =IF(ISBLANK(CHOOSE(mySelectedAgeGroup,data!U18,data!U50,data!U82)),"",CHOOSE(mySelectedAgeGroup,data!U18,data!U50,data!U82)) -> 0.072 | V18: =IF(ISBLANK(CHOOSE(mySelectedAgeGroup,data!V18,data!V50,data!V82)),"",CHOOSE(mySelectedAgeGroup,data!V18,data!V50,data!V82)) -> 0.066 | W18: =IF(ISBLANK(CHOOSE(mySelectedAgeGroup,data!W18,data!W50,data!W82)),"",CHOOSE(mySelectedAgeGroup,data!W18,data!W50,data!W82)) -> 0.084 | X18: =IF(ISBLANK(CHOOSE(mySelectedAgeGroup,data!X18,data!X50,data!X82)),"",CHOOSE(mySelectedAgeGroup,data!X18,data!X50,data!X82)) -> 0.112 | Y18: =IF(ISBLANK(CHOOSE(mySelectedAgeGroup,data!Y18,data!Y50,data!Y82)),"",CHOOSE(mySelectedAgeGroup,data!Y18,data!Y50,data!Y82)) -> 0.159 | Z18: =IF(ISBLANK(CHOOSE(mySelectedAgeGroup,data!Z18,data!Z50,data!Z82)),"",CHOOSE(mySelectedAgeGroup,data!Z18,data!Z50,data!Z82)) -> 0.223 | AA18: =IF(ISBLANK(CHOOSE(mySelectedAgeGroup,data!AA18,data!AA50,data!AA82)),"",CHOOSE(mySelectedAgeGroup,data!AA18,data!AA50,data!AA82)) -> 0.254 | AB18: =IF(ISBLANK(CHOOSE(mySelectedAgeGroup,data!AB18,data!AB50,data!AB82)),"",CHOOSE(mySelectedAgeGroup,data!AB18,data!AB50,data!AB82)) -> 0.248 | AC18: =IF(ISBLANK(CHOOSE(mySelectedAgeGroup,data!AC18,data!AC50,data!AC82)),"",CHOOSE(mySelectedAgeGroup,data!AC18,data!AC50,data!AC82)) -> 0.234 | AD18: =IF(ISBLANK(CHOOSE(mySelectedAgeGroup,data!AD18,data!AD50,data!AD82)),"",CHOOSE(mySelectedAgeGroup,data!AD18,data!AD50,data!AD82)) -> 0.222 | AE18: =IF(ISBLANK(CHOOSE(mySelectedAgeGroup,data!AE18,data!AE50,data!AE82)),"",CHOOSE(mySelectedAgeGroup,data!AE18,data!AE50,data!AE82)) -> 0.202 | AF18: =IF(ISBLANK(CHOOSE(mySelectedAgeGroup,data!AF18,data!AF50,data!AF82)),"",CHOOSE(mySelectedAgeGroup,data!AF18,data!AF50,data!AF82)) -> 0.182 | AG18: =IF(ISBLANK(CHOOSE(mySelectedAgeGroup,data!AG18,data!AG50,data!AG82)),"",CHOOSE(mySelectedAgeGroup,data!AG18,data!AG50,data!AG82)) -> 0.164 | AH18: =IF(ISBLANK(CHOOSE(mySelectedAgeGroup,data!AH18,data!AH50,data!AH82)),"",CHOOSE(mySelectedAgeGroup,data!AH18,data!AH50,data!AH82)) -> 0.16
C19: =data!B19 -> Hungary | D19: =IF(ISBLANK(CHOOSE(mySelectedAgeGroup,data!D19,data!D51,data!D83)),"",CHOOSE(mySelectedAgeGroup,data!D19,data!D51,data!D83)) ->  | E19: =IF(ISBLANK(CHOOSE(mySelectedAgeGroup,data!E19,data!E51,data!E83)),"",CHOOSE(mySelectedAgeGroup,data!E19,data!E51,data!E83)) ->  | F19: =IF(ISBLANK(CHOOSE(mySelectedAgeGroup,data!F19,data!F51,data!F83)),"",CHOOSE(mySelectedAgeGroup,data!F19,data!F51,data!F83)) ->  | G19: =IF(ISBLANK(CHOOSE(mySelectedAgeGroup,data!G19,data!G51,data!G83)),"",CHOOSE(mySelectedAgeGroup,data!G19,data!G51,data!G83)) ->  | H19: =IF(ISBLANK(CHOOSE(mySelectedAgeGroup,data!H19,data!H51,data!H83)),"",CHOOSE(mySelectedAgeGroup,data!H19,data!H51,data!H83)) ->  | I19: =IF(ISBLANK(CHOOSE(mySelectedAgeGroup,data!I19,data!I51,data!I83)),"",CHOOSE(mySelectedAgeGroup,data!I19,data!I51,data!I83)) ->  | J19: =IF(ISBLANK(CHOOSE(mySelectedAgeGroup,data!J19,data!J51,data!J83)),"",CHOOSE(mySelectedAgeGroup,data!J19,data!J51,data!J83)) ->  | K19: =IF(ISBLANK(CHOOSE(mySelectedAgeGroup,data!K19,data!K51,data!K83)),"",CHOOSE(mySelectedAgeGroup,data!K19,data!K51,data!K83)) -> 0.077 | L19: =IF(ISBLANK(CHOOSE(mySelectedAgeGroup,data!L19,data!L51,data!L83)),"",CHOOSE(mySelectedAgeGroup,data!L19,data!L51,data!L83)) -> 0.073 | M19: =IF(ISBLANK(CHOOSE(mySelectedAgeGroup,data!M19,data!M51,data!M83)),"",CHOOSE(mySelectedAgeGroup,data!M19,data!M51,data!M83)) -> 0.06 | N19: =IF(ISBLANK(CHOOSE(mySelectedAgeGroup,data!N19,data!N51,data!N83)),"",CHOOSE(mySelectedAgeGroup,data!N19,data!N51,data!N83)) -> 0.054 | O19: =IF(ISBLANK(CHOOSE(mySelectedAgeGroup,data!O19,data!O51,data!O83)),"",CHOOSE(mySelectedAgeGroup,data!O19,data!O51,data!O83)) -> 0.05 | P19: =IF(ISBLANK(CHOOSE(mySelectedAgeGroup,data!P19,data!P51,data!P83)),"",CHOOSE(mySelectedAgeGroup,data!P19,data!P51,data!P83)) -> 0.05 | Q19: =IF(ISBLANK(CHOOSE(mySelectedAgeGroup,data!Q19,data!Q51,data!Q83)),"",CHOOSE(mySelectedAgeGroup,data!Q19,data!Q51,data!Q83)) -> 0.05 | R19: =IF(ISBLANK(CHOOSE(mySelectedAgeGroup,data!R19,data!R51,data!R83)),"",CHOOSE(mySelectedAgeGroup,data!R19,data!R51,data!R83)) -> 0.052 | S19: =IF(ISBLANK(CHOOSE(mySelectedAgeGroup,data!S19,data!S51,data!S83)),"",CHOOSE(mySelectedAgeGroup,data!S19,data!S51,data!S83)) -> 0.061 | T19: =IF(ISBLANK(CHOOSE(mySelectedAgeGroup,data!T19,data!T51,data!T83)),"",CHOOSE(mySelectedAgeGroup,data!T19,data!T51,data!T83)) -> 0.065 | U19: =IF(ISBLANK(CHOOSE(mySelectedAgeGroup,data!U19,data!U51,data!U83)),"",CHOOSE(mySelectedAgeGroup,data!U19,data!U51,data!U83)) -> 0.065 | V19: =IF(ISBLANK(CHOOSE(mySelectedAgeGroup,data!V19,data!V51,data!V83)),"",CHOOSE(mySelectedAgeGroup,data!V19,data!V51,data!V83)) -> 0.069 | W19: =IF(ISBLANK(CHOOSE(mySelectedAgeGroup,data!W19,data!W51,data!W83)),"",CHOOSE(mySelectedAgeGroup,data!W19,data!W51,data!W83)) -> 0.088 | X19: =IF(ISBLANK(CHOOSE(mySelectedAgeGroup,data!X19,data!X51,data!X83)),"",CHOOSE(mySelectedAgeGroup,data!X19,data!X51,data!X83)) -> 0.1 | Y19: =IF(ISBLANK(CHOOSE(mySelectedAgeGroup,data!Y19,data!Y51,data!Y83)),"",CHOOSE(mySelectedAgeGroup,data!Y19,data!Y51,data!Y83)) -> 0.099 | Z19: =IF(ISBLANK(CHOOSE(mySelectedAgeGroup,data!Z19,data!Z51,data!Z83)),"",CHOOSE(mySelectedAgeGroup,data!Z19,data!Z51,data!Z83)) -> 0.097 | AA19: =IF(ISBLANK(CHOOSE(mySelectedAgeGroup,data!AA19,data!AA51,data!AA83)),"",CHOOSE(mySelectedAgeGroup,data!AA19,data!AA51,data!AA83)) -> 0.089 | AB19: =IF(ISBLANK(CHOOSE(mySelectedAgeGroup,data!AB19,data!AB51,data!AB83)),"",CHOOSE(mySelectedAgeGroup,data!AB19,data!AB51,data!AB83)) -> 0.067 | AC19: =IF(ISBLANK(CHOOSE(mySelectedAgeGroup,data!AC19,data!AC51,data!AC83)),"",CHOOSE(mySelectedAgeGroup,data!AC19,data!AC51,data!AC83)) -> 0.06 | AD19: =IF(ISBLANK(CHOOSE(mySelectedAgeGroup,data!AD19,data!AD51,data!AD83)),"",CHOOSE(mySelectedAgeGroup,data!AD19,data!AD51,data!AD83)) -> 0.045 | AE19: =IF(ISBLANK(CHOOSE(mySelectedAgeGroup,data!AE19,data!AE51,data!AE83)),"",CHOOSE(mySelectedAgeGroup,data!AE19,data!AE51,data!AE83)) -> 0.036 | AF19: =IF(ISBLANK(CHOOSE(mySelectedAgeGroup,data!AF19,data!AF51,data!AF83)),"",CHOOSE(mySelectedAgeGroup,data!AF19,data!AF51,data!AF83)) -> 0.032 | AG19: =IF(ISBLANK(CHOOSE(mySelectedAgeGroup,data!AG19,data!AG51,data!AG83)),"",CHOOSE(mySelectedAgeGroup,data!AG19,data!AG51,data!AG83)) -> 0.028 | AH19: =IF(ISBLANK(CHOOSE(mySelectedAgeGroup,data!AH19,data!AH51,data!AH83)),"",CHOOSE(mySelectedAgeGroup,data!AH19,data!AH51,data!AH83)) -> 0.032
C20: =data!B20 -> Ireland | D20: =IF(ISBLANK(CHOOSE(mySelectedAgeGroup,data!D20,data!D52,data!D84)),"",CHOOSE(mySelectedAgeGroup,data!D20,data!D52,data!D84)) -> 0.117 | E20: =IF(ISBLANK(CHOOSE(mySelectedAgeGroup,data!E20,data!E52,data!E84)),"",CHOOSE(mySelectedAgeGroup,data!E20,data!E52,data!E84)) -> 0.126 | F20: =IF(ISBLANK(CHOOSE(mySelectedAgeGroup,data!F20,data!F52,data!F84)),"",CHOOSE(mySelectedAgeGroup,data!F20,data!F52,data!F84)) -> 0.13 | G20: =IF(ISBLANK(CHOOSE(mySelectedAgeGroup,data!G20,data!G52,data!G84)),"",CHOOSE(mySelectedAgeGroup,data!G20,data!G52,data!G84)) -> 0.131 | H20: =IF(ISBLANK(CHOOSE(mySelectedAgeGroup,data!H20,data!H52,data!H84)),"",CHOOSE(mySelectedAgeGroup,data!H20,data!H52,data!H84)) -> 0.122 | I20: =IF(ISBLANK(CHOOSE(mySelectedAgeGroup,data!I20,data!I52,data!I84)),"",CHOOSE(mySelectedAgeGroup,data!I20,data!I52,data!I84)) -> 0.104 | J20: =IF(ISBLANK(CHOOSE(mySelectedAgeGroup,data!J20,data!J52,data!J84)),"",CHOOSE(mySelectedAgeGroup,data!J20,data!J52,data!J84)) -> 0.1 | K20: =IF(ISBLANK(CHOOSE(mySelectedAgeGroup,data!K20,data!K52,data!K84)),"",CHOOSE(mySelectedAgeGroup,data!K20,data!K52,data!K84)) -> 0.086 | L20: =IF(ISBLANK(CHOOSE(mySelectedAgeGroup,data!L20,data!L52,data!L84)),"",CHOOSE(mySelectedAgeGroup,data!L20,data!L52,data!L84)) -> 0.067 | M20: =IF(ISBLANK(CHOOSE(mySelectedAgeGroup,data!M20,data!M52,data!M84)),"",CHOOSE(mySelectedAgeGroup,data!M20,data!M52,data!M84)) -> 0.05 | N20: =IF(ISBLANK(CHOOSE(mySelectedAgeGroup,data!N20,data!N52,data!N84)),"",CHOOSE(mySelectedAgeGroup,data!N20,data!N52,data!N84)) -> 0.038 | O20: =IF(ISBLANK(CHOOSE(mySelectedAgeGroup,data!O20,data!O52,data!O84)),"",CHOOSE(mySelectedAgeGroup,data!O20,data!O52,data!O84)) -> 0.033 | P20: =IF(ISBLANK(CHOOSE(mySelectedAgeGroup,data!P20,data!P52,data!P84)),"",CHOOSE(mySelectedAgeGroup,data!P20,data!P52,data!P84)) -> 0.037 | Q20: =IF(ISBLANK(CHOOSE(mySelectedAgeGroup,data!Q20,data!Q52,data!Q84)),"",CHOOSE(mySelectedAgeGroup,data!Q20,data!Q52,data!Q84)) -> 0.038 | R20: =IF(ISBLANK(CHOOSE(mySelectedAgeGroup,data!R20,data!R52,data!R84)),"",CHOOSE(mySelectedAgeGroup,data!R20,data!R52,data!R84)) -> 0.037 | S20: =IF(ISBLANK(CHOOSE(mySelectedAgeGroup,data!S20,data!S52,data!S84)),"",CHOOSE(mySelectedAgeGroup,data!S20,data!S52,data!S84)) -> 0.037 | T20: =IF(ISBLANK(CHOOSE(mySelectedAgeGroup,data!T20,data!T52,data!T84)),"",CHOOSE(mySelectedAgeGroup,data!T20,data!T52,data!T84)) -> 0.038 | U20: =IF(ISBLANK(CHOOSE(mySelectedAgeGroup,data!U20,data!U52,data!U84)),"",CHOOSE(mySelectedAgeGroup,data!U20,data!U52,data!U84)) -> 0.04 | V20: =IF(ISBLANK(CHOOSE(mySelectedAgeGroup,data!V20,data!V52,data!V84)),"",CHOOSE(mySelectedAgeGroup,data!V20,data!V52,data!V84)) -> 0.053 | W20: =IF(ISBLANK(CHOOSE(mySelectedAgeGroup,data!W20,data!W52,data!W84)),"",CHOOSE(mySelectedAgeGroup,data!W20,data!W52,data!W84)) -> 0.103 | X20: =IF(ISBLANK(CHOOSE(mySelectedAgeGroup,data!X20,data!X52,data!X84)),"",CHOOSE(mySelectedAgeGroup,data!X20,data!X52,data!X84)) -> 0.123 | Y20: =IF(ISBLANK(CHOOSE(mySelectedAgeGroup,data!Y20,data!Y52,data!Y84)),"",CHOOSE(mySelectedAgeGroup,data!Y20,data!Y52,data!Y84)) -> 0.132 | Z20: =IF(ISBLANK(CHOOSE(mySelectedAgeGroup,data!Z20,data!Z52,data!Z84)),"",CHOOSE(mySelectedAgeGroup,data!Z20,data!Z52,data!Z84)) -> 0.132 | AA20: =IF(ISBLANK(CHOOSE(mySelectedAgeGroup,data!AA20,data!AA52,data!AA84)),"",CHOOSE(mySelectedAgeGroup,data!AA20,data!AA52,data!AA84)) -> 0.119 | AB20: =IF(ISBLANK(CHOOSE(mySelectedAgeGroup,data!AB20,data!AB52,data!AB84)),"",CHOOSE(mySelectedAgeGroup,data!AB20,data!AB52,data!AB84)) -> 0.103 | AC20: =IF(ISBLANK(CHOOSE(mySelectedAgeGroup,data!AC20,data!AC52,data!AC84)),"",CHOOSE(mySelectedAgeGroup,data!AC20,data!AC52,data!AC84)) -> 0.086 | AD20: =IF(ISBLANK(CHOOSE(mySelectedAgeGroup,data!AD20,data!AD52,data!AD84)),"",CHOOSE(mySelectedAgeGroup,data!AD20,data!AD52,data!AD84)) -> 0.072 | AE20: =IF(ISBLANK(CHOOSE(mySelectedAgeGroup,data!AE20,data!AE52,data!AE84)),"",CHOOSE(mySelectedAgeGroup,data!AE20,data!AE52,data!AE84)) -> 0.057 | AF20: =IF(ISBLANK(CHOOSE(mySelectedAgeGroup,data!AF20,data!AF52,data!AF84)),"",CHOOSE(mySelectedAgeGroup,data!AF20,data!AF52,data!AF84)) -> 0.047 | AG20: =IF(ISBLANK(CHOOSE(mySelectedAgeGroup,data!AG20,data!AG52,data!AG84)),"",CHOOSE(mySelectedAgeGroup,data!AG20,data!AG52,data!AG84)) -> 0.04 | AH20: =IF(ISBLANK(CHOOSE(mySelectedAgeGroup,data!AH20,data!AH52,data!AH84)),"",CHOOSE(mySelectedAgeGroup,data!AH20,data!AH52,data!AH84)) -> 0.041
C21: =data!B21 -> Italy | D21: =IF(ISBLANK(CHOOSE(mySelectedAgeGroup,data!D21,data!D53,data!D85)),"",CHOOSE(mySelectedAgeGroup,data!D21,data!D53,data!D85)) ->  | E21: =IF(ISBLANK(CHOOSE(mySelectedAgeGroup,data!E21,data!E53,data!E85)),"",CHOOSE(mySelectedAgeGroup,data!E21,data!E53,data!E85)) ->  | F21: =IF(ISBLANK(CHOOSE(mySelectedAgeGroup,data!F21,data!F53,data!F85)),"",CHOOSE(mySelectedAgeGroup,data!F21,data!F53,data!F85)) -> 0.055 | G21: =IF(ISBLANK(CHOOSE(mySelectedAgeGroup,data!G21,data!G53,data!G85)),"",CHOOSE(mySelectedAgeGroup,data!G21,data!G53,data!G85)) -> 0.066 | H21: =IF(ISBLANK(CHOOSE(mySelectedAgeGroup,data!H21,data!H53,data!H85)),"",CHOOSE(mySelectedAgeGroup,data!H21,data!H53,data!H85)) -> 0.075 | I21: =IF(ISBLANK(CHOOSE(mySelectedAgeGroup,data!I21,data!I53,data!I85)),"",CHOOSE(mySelectedAgeGroup,data!I21,data!I53,data!I85)) -> 0.08 | J21: =IF(ISBLANK(CHOOSE(mySelectedAgeGroup,data!J21,data!J53,data!J85)),"",CHOOSE(mySelectedAgeGroup,data!J21,data!J53,data!J85)) -> 0.083 | K21: =IF(ISBLANK(CHOOSE(mySelectedAgeGroup,data!K21,data!K53,data!K85)),"",CHOOSE(mySelectedAgeGroup,data!K21,data!K53,data!K85)) -> 0.086 | L21: =IF(ISBLANK(CHOOSE(mySelectedAgeGroup,data!L21,data!L53,data!L85)),"",CHOOSE(mySelectedAgeGroup,data!L21,data!L53,data!L85)) -> 0.088 | M21: =IF(ISBLANK(CHOOSE(mySelectedAgeGroup,data!M21,data!M53,data!M85)),"",CHOOSE(mySelectedAgeGroup,data!M21,data!M53,data!M85)) -> 0.087 | N21: =IF(ISBLANK(CHOOSE(mySelectedAgeGroup,data!N21,data!N53,data!N85)),"",CHOOSE(mySelectedAgeGroup,data!N21,data!N53,data!N85)) -> 0.081 | O21: =IF(ISBLANK(CHOOSE(mySelectedAgeGroup,data!O21,data!O53,data!O85)),"",CHOOSE(mySelectedAgeGroup,data!O21,data!O53,data!O85)) -> 0.075 | P21: =IF(ISBLANK(CHOOSE(mySelectedAgeGroup,data!P21,data!P53,data!P85)),"",CHOOSE(mySelectedAgeGroup,data!P21,data!P53,data!P85)) -> 0.071 | Q21: =IF(ISBLANK(CHOOSE(mySelectedAgeGroup,data!Q21,data!Q53,data!Q85)),"",CHOOSE(mySelectedAgeGroup,data!Q21,data!Q53,data!Q85)) -> 0.068 | R21: =IF(ISBLANK(CHOOSE(mySelectedAgeGroup,data!R21,data!R53,data!R85)),"",CHOOSE(mySelectedAgeGroup,data!R21,data!R53,data!R85)) -> 0.065 | S21: =IF(ISBLANK(CHOOSE(mySelectedAgeGroup,data!S21,data!S53,data!S85)),"",CHOOSE(mySelectedAgeGroup,data!S21,data!S53,data!S85)) -> 0.063 | T21: =IF(ISBLANK(CHOOSE(mySelectedAgeGroup,data!T21,data!T53,data!T85)),"",CHOOSE(mySelectedAgeGroup,data!T21,data!T53,data!T85)) -> 0.055 | U21: =IF(ISBLANK(CHOOSE(mySelectedAgeGroup,data!U21,data!U53,data!U85)),"",CHOOSE(mySelectedAgeGroup,data!U21,data!U53,data!U85)) -> 0.049 | V21: =IF(ISBLANK(CHOOSE(mySelectedAgeGroup,data!V21,data!V53,data!V85)),"",CHOOSE(mySelectedAgeGroup,data!V21,data!V53,data!V85)) -> 0.056 | W21: =IF(ISBLANK(CHOOSE(mySelectedAgeGroup,data!W21,data!W53,data!W85)),"",CHOOSE(mySelectedAgeGroup,data!W21,data!W53,data!W85)) -> 0.064 | X21: =IF(ISBLANK(CHOOSE(mySelectedAgeGroup,data!X21,data!X53,data!X85)),"",CHOOSE(mySelectedAgeGroup,data!X21,data!X53,data!X85)) -> 0.069 | Y21: =IF(ISBLANK(CHOOSE(mySelectedAgeGroup,data!Y21,data!Y53,data!Y85)),"",CHOOSE(mySelectedAgeGroup,data!Y21,data!Y53,data!Y85)) -> 0.069 | Z21: =IF(ISBLANK(CHOOSE(mySelectedAgeGroup,data!Z21,data!Z53,data!Z85)),"",CHOOSE(mySelectedAgeGroup,data!Z21,data!Z53,data!Z85)) -> 0.089 | AA21: =IF(ISBLANK(CHOOSE(mySelectedAgeGroup,data!AA21,data!AA53,data!AA85)),"",CHOOSE(mySelectedAgeGroup,data!AA21,data!AA53,data!AA85)) -> 0.103 | AB21: =IF(ISBLANK(CHOOSE(mySelectedAgeGroup,data!AB21,data!AB53,data!AB85)),"",CHOOSE(mySelectedAgeGroup,data!AB21,data!AB53,data!AB85)) -> 0.107 | AC21: =IF(ISBLANK(CHOOSE(mySelectedAgeGroup,data!AC21,data!AC53,data!AC85)),"",CHOOSE(mySelectedAgeGroup,data!AC21,data!AC53,data!AC85)) -> 0.101 | AD21: =IF(ISBLANK(CHOOSE(mySelectedAgeGroup,data!AD21,data!AD53,data!AD85)),"",CHOOSE(mySelectedAgeGroup,data!AD21,data!AD53,data!AD85)) -> 0.1 | AE21: =IF(ISBLANK(CHOOSE(mySelectedAgeGroup,data!AE21,data!AE53,data!AE85)),"",CHOOSE(mySelectedAgeGroup,data!AE21,data!AE53,data!AE85)) -> 0.098 | AF21: =IF(ISBLANK(CHOOSE(mySelectedAgeGroup,data!AF21,data!AF53,data!AF85)),"",CHOOSE(mySelectedAgeGroup,data!AF21,data!AF53,data!AF85)) -> 0.093 | AG21: =IF(ISBLANK(CHOOSE(mySelectedAgeGroup,data!AG21,data!AG53,data!AG85)),"",CHOOSE(mySelectedAgeGroup,data!AG21,data!AG53,data!AG85)) -> 0.088 | AH21: =IF(ISBLANK(CHOOSE(mySelectedAgeGroup,data!AH21,data!AH53,data!AH85)),"",CHOOSE(mySelectedAgeGroup,data!AH21,data!AH53,data!AH85)) -> 0.087
C22: =data!B22 -> Latvia | D22: =IF(ISBLANK(CHOOSE(mySelectedAgeGroup,data!D22,data!D54,data!D86)),"",CHOOSE(mySelectedAgeGroup,data!D22,data!D54,data!D86)) ->  | E22: =IF(ISBLANK(CHOOSE(mySelectedAgeGroup,data!E22,data!E54,data!E86)),"",CHOOSE(mySelectedAgeGroup,data!E22,data!E54,data!E86)) ->  | F22: =IF(ISBLANK(CHOOSE(mySelectedAgeGroup,data!F22,data!F54,data!F86)),"",CHOOSE(mySelectedAgeGroup,data!F22,data!F54,data!F86)) ->  | G22: =IF(ISBLANK(CHOOSE(mySelectedAgeGroup,data!G22,data!G54,data!G86)),"",CHOOSE(mySelectedAgeGroup,data!G22,data!G54,data!G86)) ->  | H22: =IF(ISBLANK(CHOOSE(mySelectedAgeGroup,data!H22,data!H54,data!H86)),"",CHOOSE(mySelectedAgeGroup,data!H22,data!H54,data!H86)) ->  | I22: =IF(ISBLANK(CHOOSE(mySelectedAgeGroup,data!I22,data!I54,data!I86)),"",CHOOSE(mySelectedAgeGroup,data!I22,data!I54,data!I86)) ->  | J22: =IF(ISBLANK(CHOOSE(mySelectedAgeGroup,data!J22,data!J54,data!J86)),"",CHOOSE(mySelectedAgeGroup,data!J22,data!J54,data!J86)) ->  | K22: =IF(ISBLANK(CHOOSE(mySelectedAgeGroup,data!K22,data!K54,data!K86)),"",CHOOSE(mySelectedAgeGroup,data!K22,data!K54,data!K86)) -> 0.124 | L22: =IF(ISBLANK(CHOOSE(mySelectedAgeGroup,data!L22,data!L54,data!L86)),"",CHOOSE(mySelectedAgeGroup,data!L22,data!L54,data!L86)) -> 0.123 | M22: =IF(ISBLANK(CHOOSE(mySelectedAgeGroup,data!M22,data!M54,data!M86)),"",CHOOSE(mySelectedAgeGroup,data!M22,data!M54,data!M86)) -> 0.125 | N22: =IF(ISBLANK(CHOOSE(mySelectedAgeGroup,data!N22,data!N54,data!N86)),"",CHOOSE(mySelectedAgeGroup,data!N22,data!N54,data!N86)) -> 0.132 | O22: =IF(ISBLANK(CHOOSE(mySelectedAgeGroup,data!O22,data!O54,data!O86)),"",CHOOSE(mySelectedAgeGroup,data!O22,data!O54,data!O86)) -> 0.125 | P22: =IF(ISBLANK(CHOOSE(mySelectedAgeGroup,data!P22,data!P54,data!P86)),"",CHOOSE(mySelectedAgeGroup,data!P22,data!P54,data!P86)) -> 0.114 | Q22: =IF(ISBLANK(CHOOSE(mySelectedAgeGroup,data!Q22,data!Q54,data!Q86)),"",CHOOSE(mySelectedAgeGroup,data!Q22,data!Q54,data!Q86)) -> 0.106 | R22: =IF(ISBLANK(CHOOSE(mySelectedAgeGroup,data!R22,data!R54,data!R86)),"",CHOOSE(mySelectedAgeGroup,data!R22,data!R54,data!R86)) -> 0.106 | S22: =IF(ISBLANK(CHOOSE(mySelectedAgeGroup,data!S22,data!S54,data!S86)),"",CHOOSE(mySelectedAgeGroup,data!S22,data!S54,data!S86)) -> 0.093 | T22: =IF(ISBLANK(CHOOSE(mySelectedAgeGroup,data!T22,data!T54,data!T86)),"",CHOOSE(mySelectedAgeGroup,data!T22,data!T54,data!T86)) -> 0.061 | U22: =IF(ISBLANK(CHOOSE(mySelectedAgeGroup,data!U22,data!U54,data!U86)),"",CHOOSE(mySelectedAgeGroup,data!U22,data!U54,data!U86)) -> 0.054 | V22: =IF(ISBLANK(CHOOSE(mySelectedAgeGroup,data!V22,data!V54,data!V86)),"",CHOOSE(mySelectedAgeGroup,data!V22,data!V54,data!V86)) -> 0.069 | W22: =IF(ISBLANK(CHOOSE(mySelectedAgeGroup,data!W22,data!W54,data!W86)),"",CHOOSE(mySelectedAgeGroup,data!W22,data!W54,data!W86)) -> 0.154 | X22: =IF(ISBLANK(CHOOSE(mySelectedAgeGroup,data!X22,data!X54,data!X86)),"",CHOOSE(mySelectedAgeGroup,data!X22,data!X54,data!X86)) -> 0.174 | Y22: =IF(ISBLANK(CHOOSE(mySelectedAgeGroup,data!Y22,data!Y54,data!Y86)),"",CHOOSE(mySelectedAgeGroup,data!Y22,data!Y54,data!Y86)) -> 0.146 | Z22: =IF(ISBLANK(CHOOSE(mySelectedAgeGroup,data!Z22,data!Z54,data!Z86)),"",CHOOSE(mySelectedAgeGroup,data!Z22,data!Z54,data!Z86)) -> 0.136 | AA22: =IF(ISBLANK(CHOOSE(mySelectedAgeGroup,data!AA22,data!AA54,data!AA86)),"",CHOOSE(mySelectedAgeGroup,data!AA22,data!AA54,data!AA86)) -> 0.107 | AB22: =IF(ISBLANK(CHOOSE(mySelectedAgeGroup,data!AB22,data!AB54,data!AB86)),"",CHOOSE(mySelectedAgeGroup,data!AB22,data!AB54,data!AB86)) -> 0.1 | AC22: =IF(ISBLANK(CHOOSE(mySelectedAgeGroup,data!AC22,data!AC54,data!AC86)),"",CHOOSE(mySelectedAgeGroup,data!AC22,data!AC54,data!AC86)) -> 0.093 | AD22: =IF(ISBLANK(CHOOSE(mySelectedAgeGroup,data!AD22,data!AD54,data!AD86)),"",CHOOSE(mySelectedAgeGroup,data!AD22,data!AD54,data!AD86)) -> 0.09 | AE22: =IF(ISBLANK(CHOOSE(mySelectedAgeGroup,data!AE22,data!AE54,data!AE86)),"",CHOOSE(mySelectedAgeGroup,data!AE22,data!AE54,data!AE86)) -> 0.081 | AF22: =IF(ISBLANK(CHOOSE(mySelectedAgeGroup,data!AF22,data!AF54,data!AF86)),"",CHOOSE(mySelectedAgeGroup,data!AF22,data!AF54,data!AF86)) -> 0.071 | AG22: =IF(ISBLANK(CHOOSE(mySelectedAgeGroup,data!AG22,data!AG54,data!AG86)),"",CHOOSE(mySelectedAgeGroup,data!AG22,data!AG54,data!AG86)) -> 0.059 | AH22: =IF(ISBLANK(CHOOSE(mySelectedAgeGroup,data!AH22,data!AH54,data!AH86)),"",CHOOSE(mySelectedAgeGroup,data!AH22,data!AH54,data!AH86)) -> 0.07
C23: =data!B23 -> Lithuania | D23: =IF(ISBLANK(CHOOSE(mySelectedAgeGroup,data!D23,data!D55,data!D87)),"",CHOOSE(mySelectedAgeGroup,data!D23,data!D55,data!D87)) ->  | E23: =IF(ISBLANK(CHOOSE(mySelectedAgeGroup,data!E23,data!E55,data!E87)),"",CHOOSE(mySelectedAgeGroup,data!E23,data!E55,data!E87)) ->  | F23: =IF(ISBLANK(CHOOSE(mySelectedAgeGroup,data!F23,data!F55,data!F87)),"",CHOOSE(mySelectedAgeGroup,data!F23,data!F55,data!F87)) ->  | G23: =IF(ISBLANK(CHOOSE(mySelectedAgeGroup,data!G23,data!G55,data!G87)),"",CHOOSE(mySelectedAgeGroup,data!G23,data!G55,data!G87)) ->  | H23: =IF(ISBLANK(CHOOSE(mySelectedAgeGroup,data!H23,data!H55,data!H87)),"",CHOOSE(mySelectedAgeGroup,data!H23,data!H55,data!H87)) ->  | I23: =IF(ISBLANK(CHOOSE(mySelectedAgeGroup,data!I23,data!I55,data!I87)),"",CHOOSE(mySelectedAgeGroup,data!I23,data!I55,data!I87)) ->  | J23: =IF(ISBLANK(CHOOSE(mySelectedAgeGroup,data!J23,data!J55,data!J87)),"",CHOOSE(mySelectedAgeGroup,data!J23,data!J55,data!J87)) ->  | K23: =IF(ISBLANK(CHOOSE(mySelectedAgeGroup,data!K23,data!K55,data!K87)),"",CHOOSE(mySelectedAgeGroup,data!K23,data!K55,data!K87)) -> 0.113 | L23: =IF(ISBLANK(CHOOSE(mySelectedAgeGroup,data!L23,data!L55,data!L87)),"",CHOOSE(mySelectedAgeGroup,data!L23,data!L55,data!L87)) -> 0.119 | M23: =IF(ISBLANK(CHOOSE(mySelectedAgeGroup,data!M23,data!M55,data!M87)),"",CHOOSE(mySelectedAgeGroup,data!M23,data!M55,data!M87)) -> 0.127 | N23: =IF(ISBLANK(CHOOSE(mySelectedAgeGroup,data!N23,data!N55,data!N87)),"",CHOOSE(mySelectedAgeGroup,data!N23,data!N55,data!N87)) -> 0.148 | O23: =IF(ISBLANK(CHOOSE(mySelectedAgeGroup,data!O23,data!O55,data!O87)),"",CHOOSE(mySelectedAgeGroup,data!O23,data!O55,data!O87)) -> 0.157 | P23: =IF(ISBLANK(CHOOSE(mySelectedAgeGroup,data!P23,data!P55,data!P87)),"",CHOOSE(mySelectedAgeGroup,data!P23,data!P55,data!P87)) -> 0.128 | Q23: =IF(ISBLANK(CHOOSE(mySelectedAgeGroup,data!Q23,data!Q55,data!Q87)),"",CHOOSE(mySelectedAgeGroup,data!Q23,data!Q55,data!Q87)) -> 0.111 | R23: =IF(ISBLANK(CHOOSE(mySelectedAgeGroup,data!R23,data!R55,data!R87)),"",CHOOSE(mySelectedAgeGroup,data!R23,data!R55,data!R87)) -> 0.099 | S23: =IF(ISBLANK(CHOOSE(mySelectedAgeGroup,data!S23,data!S55,data!S87)),"",CHOOSE(mySelectedAgeGroup,data!S23,data!S55,data!S87)) -> 0.077 | T23: =IF(ISBLANK(CHOOSE(mySelectedAgeGroup,data!T23,data!T55,data!T87)),"",CHOOSE(mySelectedAgeGroup,data!T23,data!T55,data!T87)) -> 0.054 | U23: =IF(ISBLANK(CHOOSE(mySelectedAgeGroup,data!U23,data!U55,data!U87)),"",CHOOSE(mySelectedAgeGroup,data!U23,data!U55,data!U87)) -> 0.039 | V23: =IF(ISBLANK(CHOOSE(mySelectedAgeGroup,data!V23,data!V55,data!V87)),"",CHOOSE(mySelectedAgeGroup,data!V23,data!V55,data!V87)) -> 0.05 | W23: =IF(ISBLANK(CHOOSE(mySelectedAgeGroup,data!W23,data!W55,data!W87)),"",CHOOSE(mySelectedAgeGroup,data!W23,data!W55,data!W87)) -> 0.122 | X23: =IF(ISBLANK(CHOOSE(mySelectedAgeGroup,data!X23,data!X55,data!X87)),"",CHOOSE(mySelectedAgeGroup,data!X23,data!X55,data!X87)) -> 0.161 | Y23: =IF(ISBLANK(CHOOSE(mySelectedAgeGroup,data!Y23,data!Y55,data!Y87)),"",CHOOSE(mySelectedAgeGroup,data!Y23,data!Y55,data!Y87)) -> 0.139 | Z23: =IF(ISBLANK(CHOOSE(mySelectedAgeGroup,data!Z23,data!Z55,data!Z87)),"",CHOOSE(mySelectedAgeGroup,data!Z23,data!Z55,data!Z87)) -> 0.122 | AA23: =IF(ISBLANK(CHOOSE(mySelectedAgeGroup,data!AA23,data!AA55,data!AA87)),"",CHOOSE(mySelectedAgeGroup,data!AA23,data!AA55,data!AA87)) -> 0.109 | AB23: =IF(ISBLANK(CHOOSE(mySelectedAgeGroup,data!AB23,data!AB55,data!AB87)),"",CHOOSE(mySelectedAgeGroup,data!AB23,data!AB55,data!AB87)) -> 0.099 | AC23: =IF(ISBLANK(CHOOSE(mySelectedAgeGroup,data!AC23,data!AC55,data!AC87)),"",CHOOSE(mySelectedAgeGroup,data!AC23,data!AC55,data!AC87)) -> 0.085 | AD23: =IF(ISBLANK(CHOOSE(mySelectedAgeGroup,data!AD23,data!AD55,data!AD87)),"",CHOOSE(mySelectedAgeGroup,data!AD23,data!AD55,data!AD87)) -> 0.073 | AE23: =IF(ISBLANK(CHOOSE(mySelectedAgeGroup,data!AE23,data!AE55,data!AE87)),"",CHOOSE(mySelectedAgeGroup,data!AE23,data!AE55,data!AE87)) -> 0.066 | AF23: =IF(ISBLANK(CHOOSE(mySelectedAgeGroup,data!AF23,data!AF55,data!AF87)),"",CHOOSE(mySelectedAgeGroup,data!AF23,data!AF55,data!AF87)) -> 0.058 | AG23: =IF(ISBLANK(CHOOSE(mySelectedAgeGroup,data!AG23,data!AG55,data!AG87)),"",CHOOSE(mySelectedAgeGroup,data!AG23,data!AG55,data!AG87)) -> 0.058 | AH23: =IF(ISBLANK(CHOOSE(mySelectedAgeGroup,data!AH23,data!AH55,data!AH87)),"",CHOOSE(mySelectedAgeGroup,data!AH23,data!AH55,data!AH87)) -> 0.07
C24: =data!B24 -> Luxembourg | D24: =IF(ISBLANK(CHOOSE(mySelectedAgeGroup,data!D24,data!D56,data!D88)),"",CHOOSE(mySelectedAgeGroup,data!D24,data!D56,data!D88)) -> 0.013 | E24: =IF(ISBLANK(CHOOSE(mySelectedAgeGroup,data!E24,data!E56,data!E88)),"",CHOOSE(mySelectedAgeGroup,data!E24,data!E56,data!E88)) -> 0.014 | F24: =IF(ISBLANK(CHOOSE(mySelectedAgeGroup,data!F24,data!F56,data!F88)),"",CHOOSE(mySelectedAgeGroup,data!F24,data!F56,data!F88)) -> 0.018 | G24: =IF(ISBLANK(CHOOSE(mySelectedAgeGroup,data!G24,data!G56,data!G88)),"",CHOOSE(mySelectedAgeGroup,data!G24,data!G56,data!G88)) -> 0.022 | H24: =IF(ISBLANK(CHOOSE(mySelectedAgeGroup,data!H24,data!H56,data!H88)),"",CHOOSE(mySelectedAgeGroup,data!H24,data!H56,data!H88)) -> 0.026 | I24: =IF(ISBLANK(CHOOSE(mySelectedAgeGroup,data!I24,data!I56,data!I88)),"",CHOOSE(mySelectedAgeGroup,data!I24,data!I56,data!I88)) -> 0.023 | J24: =IF(ISBLANK(CHOOSE(mySelectedAgeGroup,data!J24,data!J56,data!J88)),"",CHOOSE(mySelectedAgeGroup,data!J24,data!J56,data!J88)) -> 0.023 | K24: =IF(ISBLANK(CHOOSE(mySelectedAgeGroup,data!K24,data!K56,data!K88)),"",CHOOSE(mySelectedAgeGroup,data!K24,data!K56,data!K88)) -> 0.02 | L24: =IF(ISBLANK(CHOOSE(mySelectedAgeGroup,data!L24,data!L56,data!L88)),"",CHOOSE(mySelectedAgeGroup,data!L24,data!L56,data!L88)) -> 0.021 | M24: =IF(ISBLANK(CHOOSE(mySelectedAgeGroup,data!M24,data!M56,data!M88)),"",CHOOSE(mySelectedAgeGroup,data!M24,data!M56,data!M88)) -> 0.019 | N24: =IF(ISBLANK(CHOOSE(mySelectedAgeGroup,data!N24,data!N56,data!N88)),"",CHOOSE(mySelectedAgeGroup,data!N24,data!N56,data!N88)) -> 0.019 | O24: =IF(ISBLANK(CHOOSE(mySelectedAgeGroup,data!O24,data!O56,data!O88)),"",CHOOSE(mySelectedAgeGroup,data!O24,data!O56,data!O88)) -> 0.018 | P24: =IF(ISBLANK(CHOOSE(mySelectedAgeGroup,data!P24,data!P56,data!P88)),"",CHOOSE(mySelectedAgeGroup,data!P24,data!P56,data!P88)) -> 0.024 | Q24: =IF(ISBLANK(CHOOSE(mySelectedAgeGroup,data!Q24,data!Q56,data!Q88)),"",CHOOSE(mySelectedAgeGroup,data!Q24,data!Q56,data!Q88)) -> 0.031 | R24: =IF(ISBLANK(CHOOSE(mySelectedAgeGroup,data!R24,data!R56,data!R88)),"",CHOOSE(mySelectedAgeGroup,data!R24,data!R56,data!R88)) -> 0.042 | S24: =IF(ISBLANK(CHOOSE(mySelectedAgeGroup,data!S24,data!S56,data!S88)),"",CHOOSE(mySelectedAgeGroup,data!S24,data!S56,data!S88)) -> 0.038 | T24: =IF(ISBLANK(CHOOSE(mySelectedAgeGroup,data!T24,data!T56,data!T88)),"",CHOOSE(mySelectedAgeGroup,data!T24,data!T56,data!T88)) -> 0.039 | U24: =IF(ISBLANK(CHOOSE(mySelectedAgeGroup,data!U24,data!U56,data!U88)),"",CHOOSE(mySelectedAgeGroup,data!U24,data!U56,data!U88)) -> 0.033 | V24: =IF(ISBLANK(CHOOSE(mySelectedAgeGroup,data!V24,data!V56,data!V88)),"",CHOOSE(mySelectedAgeGroup,data!V24,data!V56,data!V88)) -> 0.04 | W24: =IF(ISBLANK(CHOOSE(mySelectedAgeGroup,data!W24,data!W56,data!W88)),"",CHOOSE(mySelectedAgeGroup,data!W24,data!W56,data!W88)) -> 0.041 | X24: =IF(ISBLANK(CHOOSE(mySelectedAgeGroup,data!X24,data!X56,data!X88)),"",CHOOSE(mySelectedAgeGroup,data!X24,data!X56,data!X88)) -> 0.037 | Y24: =IF(ISBLANK(CHOOSE(mySelectedAgeGroup,data!Y24,data!Y56,data!Y88)),"",CHOOSE(mySelectedAgeGroup,data!Y24,data!Y56,data!Y88)) -> 0.041 | Z24: =IF(ISBLANK(CHOOSE(mySelectedAgeGroup,data!Z24,data!Z56,data!Z88)),"",CHOOSE(mySelectedAgeGroup,data!Z24,data!Z56,data!Z88)) -> 0.042 | AA24: =IF(ISBLANK(CHOOSE(mySelectedAgeGroup,data!AA24,data!AA56,data!AA88)),"",CHOOSE(mySelectedAgeGroup,data!AA24,data!AA56,data!AA88)) -> 0.052 | AB24: =IF(ISBLANK(CHOOSE(mySelectedAgeGroup,data!AB24,data!AB56,data!AB88)),"",CHOOSE(mySelectedAgeGroup,data!AB24,data!AB56,data!AB88)) -> 0.048 | AC24: =IF(ISBLANK(CHOOSE(mySelectedAgeGroup,data!AC24,data!AC56,data!AC88)),"",CHOOSE(mySelectedAgeGroup,data!AC24,data!AC56,data!AC88)) -> 0.057 | AD24: =IF(ISBLANK(CHOOSE(mySelectedAgeGroup,data!AD24,data!AD56,data!AD88)),"",CHOOSE(mySelectedAgeGroup,data!AD24,data!AD56,data!AD88)) -> 0.053 | AE24: =IF(ISBLANK(CHOOSE(mySelectedAgeGroup,data!AE24,data!AE56,data!AE88)),"",CHOOSE(mySelectedAgeGroup,data!AE24,data!AE56,data!AE88)) -> 0.047 | AF24: =IF(ISBLANK(CHOOSE(mySelectedAgeGroup,data!AF24,data!AF56,data!AF88)),"",CHOOSE(mySelectedAgeGroup,data!AF24,data!AF56,data!AF88)) -> 0.049 | AG24: =IF(ISBLANK(CHOOSE(mySelectedAgeGroup,data!AG24,data!AG56,data!AG88)),"",CHOOSE(mySelectedAgeGroup,data!AG24,data!AG56,data!AG88)) -> 0.046 | AH24: =IF(ISBLANK(CHOOSE(mySelectedAgeGroup,data!AH24,data!AH56,data!AH88)),"",CHOOSE(mySelectedAgeGroup,data!AH24,data!AH56,data!AH88)) -> 0.053
C25: =data!B25 -> Malta | D25: =IF(ISBLANK(CHOOSE(mySelectedAgeGroup,data!D25,data!D57,data!D89)),"",CHOOSE(mySelectedAgeGroup,data!D25,data!D57,data!D89)) ->  | E25: =IF(ISBLANK(CHOOSE(mySelectedAgeGroup,data!E25,data!E57,data!E89)),"",CHOOSE(mySelectedAgeGroup,data!E25,data!E57,data!E89)) ->  | F25: =IF(ISBLANK(CHOOSE(mySelectedAgeGroup,data!F25,data!F57,data!F89)),"",CHOOSE(mySelectedAgeGroup,data!F25,data!F57,data!F89)) ->  | G25: =IF(ISBLANK(CHOOSE(mySelectedAgeGroup,data!G25,data!G57,data!G89)),"",CHOOSE(mySelectedAgeGroup,data!G25,data!G57,data!G89)) ->  | H25: =IF(ISBLANK(CHOOSE(mySelectedAgeGroup,data!H25,data!H57,data!H89)),"",CHOOSE(mySelectedAgeGroup,data!H25,data!H57,data!H89)) ->  | I25: =IF(ISBLANK(CHOOSE(mySelectedAgeGroup,data!I25,data!I57,data!I89)),"",CHOOSE(mySelectedAgeGroup,data!I25,data!I57,data!I89)) ->  | J25: =IF(ISBLANK(CHOOSE(mySelectedAgeGroup,data!J25,data!J57,data!J89)),"",CHOOSE(mySelectedAgeGroup,data!J25,data!J57,data!J89)) ->  | K25: =IF(ISBLANK(CHOOSE(mySelectedAgeGroup,data!K25,data!K57,data!K89)),"",CHOOSE(mySelectedAgeGroup,data!K25,data!K57,data!K89)) -> 0.047 | L25: =IF(ISBLANK(CHOOSE(mySelectedAgeGroup,data!L25,data!L57,data!L89)),"",CHOOSE(mySelectedAgeGroup,data!L25,data!L57,data!L89)) -> 0.047 | M25: =IF(ISBLANK(CHOOSE(mySelectedAgeGroup,data!M25,data!M57,data!M89)),"",CHOOSE(mySelectedAgeGroup,data!M25,data!M57,data!M89)) -> 0.047 | N25: =IF(ISBLANK(CHOOSE(mySelectedAgeGroup,data!N25,data!N57,data!N89)),"",CHOOSE(mySelectedAgeGroup,data!N25,data!N57,data!N89)) -> 0.047 | O25: =IF(ISBLANK(CHOOSE(mySelectedAgeGroup,data!O25,data!O57,data!O89)),"",CHOOSE(mySelectedAgeGroup,data!O25,data!O57,data!O89)) -> 0.043 | P25: =IF(ISBLANK(CHOOSE(mySelectedAgeGroup,data!P25,data!P57,data!P89)),"",CHOOSE(mySelectedAgeGroup,data!P25,data!P57,data!P89)) -> 0.048 | Q25: =IF(ISBLANK(CHOOSE(mySelectedAgeGroup,data!Q25,data!Q57,data!Q89)),"",CHOOSE(mySelectedAgeGroup,data!Q25,data!Q57,data!Q89)) -> 0.052 | R25: =IF(ISBLANK(CHOOSE(mySelectedAgeGroup,data!R25,data!R57,data!R89)),"",CHOOSE(mySelectedAgeGroup,data!R25,data!R57,data!R89)) -> 0.047 | S25: =IF(ISBLANK(CHOOSE(mySelectedAgeGroup,data!S25,data!S57,data!S89)),"",CHOOSE(mySelectedAgeGroup,data!S25,data!S57,data!S89)) -> 0.047 | T25: =IF(ISBLANK(CHOOSE(mySelectedAgeGroup,data!T25,data!T57,data!T89)),"",CHOOSE(mySelectedAgeGroup,data!T25,data!T57,data!T89)) -> 0.048 | U25: =IF(ISBLANK(CHOOSE(mySelectedAgeGroup,data!U25,data!U57,data!U89)),"",CHOOSE(mySelectedAgeGroup,data!U25,data!U57,data!U89)) -> 0.049 | V25: =IF(ISBLANK(CHOOSE(mySelectedAgeGroup,data!V25,data!V57,data!V89)),"",CHOOSE(mySelectedAgeGroup,data!V25,data!V57,data!V89)) -> 0.048 | W25: =IF(ISBLANK(CHOOSE(mySelectedAgeGroup,data!W25,data!W57,data!W89)),"",CHOOSE(mySelectedAgeGroup,data!W25,data!W57,data!W89)) -> 0.053 | X25: =IF(ISBLANK(CHOOSE(mySelectedAgeGroup,data!X25,data!X57,data!X89)),"",CHOOSE(mySelectedAgeGroup,data!X25,data!X57,data!X89)) -> 0.056 | Y25: =IF(ISBLANK(CHOOSE(mySelectedAgeGroup,data!Y25,data!Y57,data!Y89)),"",CHOOSE(mySelectedAgeGroup,data!Y25,data!Y57,data!Y89)) -> 0.05 | Z25: =IF(ISBLANK(CHOOSE(mySelectedAgeGroup,data!Z25,data!Z57,data!Z89)),"",CHOOSE(mySelectedAgeGroup,data!Z25,data!Z57,data!Z89)) -> 0.048 | AA25: =IF(ISBLANK(CHOOSE(mySelectedAgeGroup,data!AA25,data!AA57,data!AA89)),"",CHOOSE(mySelectedAgeGroup,data!AA25,data!AA57,data!AA89)) -> 0.049 | AB25: =IF(ISBLANK(CHOOSE(mySelectedAgeGroup,data!AB25,data!AB57,data!AB89)),"",CHOOSE(mySelectedAgeGroup,data!AB25,data!AB57,data!AB89)) -> 0.047 | AC25: =IF(ISBLANK(CHOOSE(mySelectedAgeGroup,data!AC25,data!AC57,data!AC89)),"",CHOOSE(mySelectedAgeGroup,data!AC25,data!AC57,data!AC89)) -> 0.044 | AD25: =IF(ISBLANK(CHOOSE(mySelectedAgeGroup,data!AD25,data!AD57,data!AD89)),"",CHOOSE(mySelectedAgeGroup,data!AD25,data!AD57,data!AD89)) -> 0.038 | AE25: =IF(ISBLANK(CHOOSE(mySelectedAgeGroup,data!AE25,data!AE57,data!AE89)),"",CHOOSE(mySelectedAgeGroup,data!AE25,data!AE57,data!AE89)) -> 0.031 | AF25: =IF(ISBLANK(CHOOSE(mySelectedAgeGroup,data!AF25,data!AF57,data!AF89)),"",CHOOSE(mySelectedAgeGroup,data!AF25,data!AF57,data!AF89)) -> 0.029 | AG25: =IF(ISBLANK(CHOOSE(mySelectedAgeGroup,data!AG25,data!AG57,data!AG89)),"",CHOOSE(mySelectedAgeGroup,data!AG25,data!AG57,data!AG89)) -> 0.026 | AH25: =IF(ISBLANK(CHOOSE(mySelectedAgeGroup,data!AH25,data!AH57,data!AH89)),"",CHOOSE(mySelectedAgeGroup,data!AH25,data!AH57,data!AH89)) -> 0.027
C26: =data!B26 -> Netherlands | D26: =IF(ISBLANK(CHOOSE(mySelectedAgeGroup,data!D26,data!D58,data!D90)),"",CHOOSE(mySelectedAgeGroup,data!D26,data!D58,data!D90)) -> 0.053 | E26: =IF(ISBLANK(CHOOSE(mySelectedAgeGroup,data!E26,data!E58,data!E90)),"",CHOOSE(mySelectedAgeGroup,data!E26,data!E58,data!E90)) -> 0.049 | F26: =IF(ISBLANK(CHOOSE(mySelectedAgeGroup,data!F26,data!F58,data!F90)),"",CHOOSE(mySelectedAgeGroup,data!F26,data!F58,data!F90)) -> 0.051 | G26: =IF(ISBLANK(CHOOSE(mySelectedAgeGroup,data!G26,data!G58,data!G90)),"",CHOOSE(mySelectedAgeGroup,data!G26,data!G58,data!G90)) -> 0.056 | H26: =IF(ISBLANK(CHOOSE(mySelectedAgeGroup,data!H26,data!H58,data!H90)),"",CHOOSE(mySelectedAgeGroup,data!H26,data!H58,data!H90)) -> 0.064 | I26: =IF(ISBLANK(CHOOSE(mySelectedAgeGroup,data!I26,data!I58,data!I90)),"",CHOOSE(mySelectedAgeGroup,data!I26,data!I58,data!I90)) -> 0.061 | J26: =IF(ISBLANK(CHOOSE(mySelectedAgeGroup,data!J26,data!J58,data!J90)),"",CHOOSE(mySelectedAgeGroup,data!J26,data!J58,data!J90)) -> 0.054 | K26: =IF(ISBLANK(CHOOSE(mySelectedAgeGroup,data!K26,data!K58,data!K90)),"",CHOOSE(mySelectedAgeGroup,data!K26,data!K58,data!K90)) -> 0.046 | L26: =IF(ISBLANK(CHOOSE(mySelectedAgeGroup,data!L26,data!L58,data!L90)),"",CHOOSE(mySelectedAgeGroup,data!L26,data!L58,data!L90)) -> 0.036 | M26: =IF(ISBLANK(CHOOSE(mySelectedAgeGroup,data!M26,data!M58,data!M90)),"",CHOOSE(mySelectedAgeGroup,data!M26,data!M58,data!M90)) -> 0.029 | N26: =IF(ISBLANK(CHOOSE(mySelectedAgeGroup,data!N26,data!N58,data!N90)),"",CHOOSE(mySelectedAgeGroup,data!N26,data!N58,data!N90)) -> 0.024 | O26: =IF(ISBLANK(CHOOSE(mySelectedAgeGroup,data!O26,data!O58,data!O90)),"",CHOOSE(mySelectedAgeGroup,data!O26,data!O58,data!O90)) -> 0.018 | P26: =IF(ISBLANK(CHOOSE(mySelectedAgeGroup,data!P26,data!P58,data!P90)),"",CHOOSE(mySelectedAgeGroup,data!P26,data!P58,data!P90)) -> 0.023 | Q26: =IF(ISBLANK(CHOOSE(mySelectedAgeGroup,data!Q26,data!Q58,data!Q90)),"",CHOOSE(mySelectedAgeGroup,data!Q26,data!Q58,data!Q90)) -> 0.032 | R26: =IF(ISBLANK(CHOOSE(mySelectedAgeGroup,data!R26,data!R58,data!R90)),"",CHOOSE(mySelectedAgeGroup,data!R26,data!R58,data!R90)) -> 0.039 | S26: =IF(ISBLANK(CHOOSE(mySelectedAgeGroup,data!S26,data!S58,data!S90)),"",CHOOSE(mySelectedAgeGroup,data!S26,data!S58,data!S90)) -> 0.048 | T26: =IF(ISBLANK(CHOOSE(mySelectedAgeGroup,data!T26,data!T58,data!T90)),"",CHOOSE(mySelectedAgeGroup,data!T26,data!T58,data!T90)) -> 0.041 | U26: =IF(ISBLANK(CHOOSE(mySelectedAgeGroup,data!U26,data!U58,data!U90)),"",CHOOSE(mySelectedAgeGroup,data!U26,data!U58,data!U90)) -> 0.032 | V26: =IF(ISBLANK(CHOOSE(mySelectedAgeGroup,data!V26,data!V58,data!V90)),"",CHOOSE(mySelectedAgeGroup,data!V26,data!V58,data!V90)) -> 0.027 | W26: =IF(ISBLANK(CHOOSE(mySelectedAgeGroup,data!W26,data!W58,data!W90)),"",CHOOSE(mySelectedAgeGroup,data!W26,data!W58,data!W90)) -> 0.032 | X26: =IF(ISBLANK(CHOOSE(mySelectedAgeGroup,data!X26,data!X58,data!X90)),"",CHOOSE(mySelectedAgeGroup,data!X26,data!X58,data!X90)) -> 0.039 | Y26: =IF(ISBLANK(CHOOSE(mySelectedAgeGroup,data!Y26,data!Y58,data!Y90)),"",CHOOSE(mySelectedAgeGroup,data!Y26,data!Y58,data!Y90)) -> 0.04 | Z26: =IF(ISBLANK(CHOOSE(mySelectedAgeGroup,data!Z26,data!Z58,data!Z90)),"",CHOOSE(mySelectedAgeGroup,data!Z26,data!Z58,data!Z90)) -> 0.047 | AA26: =IF(ISBLANK(CHOOSE(mySelectedAgeGroup,data!AA26,data!AA58,data!AA90)),"",CHOOSE(mySelectedAgeGroup,data!AA26,data!AA58,data!AA90)) -> 0.061 | AB26: =IF(ISBLANK(CHOOSE(mySelectedAgeGroup,data!AB26,data!AB58,data!AB90)),"",CHOOSE(mySelectedAgeGroup,data!AB26,data!AB58,data!AB90)) -> 0.065 | AC26: =IF(ISBLANK(CHOOSE(mySelectedAgeGroup,data!AC26,data!AC58,data!AC90)),"",CHOOSE(mySelectedAgeGroup,data!AC26,data!AC58,data!AC90)) -> 0.061 | AD26: =IF(ISBLANK(CHOOSE(mySelectedAgeGroup,data!AD26,data!AD58,data!AD90)),"",CHOOSE(mySelectedAgeGroup,data!AD26,data!AD58,data!AD90)) -> 0.051 | AE26: =IF(ISBLANK(CHOOSE(mySelectedAgeGroup,data!AE26,data!AE58,data!AE90)),"",CHOOSE(mySelectedAgeGroup,data!AE26,data!AE58,data!AE90)) -> 0.041 | AF26: =IF(ISBLANK(CHOOSE(mySelectedAgeGroup,data!AF26,data!AF58,data!AF90)),"",CHOOSE(mySelectedAgeGroup,data!AF26,data!AF58,data!AF90)) -> 0.032 | AG26: =IF(ISBLANK(CHOOSE(mySelectedAgeGroup,data!AG26,data!AG58,data!AG90)),"",CHOOSE(mySelectedAgeGroup,data!AG26,data!AG58,data!AG90)) -> 0.028 | AH26: =IF(ISBLANK(CHOOSE(mySelectedAgeGroup,data!AH26,data!AH58,data!AH90)),"",CHOOSE(mySelectedAgeGroup,data!AH26,data!AH58,data!AH90)) -> 0.025
C27: =data!B27 -> Poland | D27: =IF(ISBLANK(CHOOSE(mySelectedAgeGroup,data!D27,data!D59,data!D91)),"",CHOOSE(mySelectedAgeGroup,data!D27,data!D59,data!D91)) ->  | E27: =IF(ISBLANK(CHOOSE(mySelectedAgeGroup,data!E27,data!E59,data!E91)),"",CHOOSE(mySelectedAgeGroup,data!E27,data!E59,data!E91)) ->  | F27: =IF(ISBLANK(CHOOSE(mySelectedAgeGroup,data!F27,data!F59,data!F91)),"",CHOOSE(mySelectedAgeGroup,data!F27,data!F59,data!F91)) ->  | G27: =IF(ISBLANK(CHOOSE(mySelectedAgeGroup,data!G27,data!G59,data!G91)),"",CHOOSE(mySelectedAgeGroup,data!G27,data!G59,data!G91)) ->  | H27: =IF(ISBLANK(CHOOSE(mySelectedAgeGroup,data!H27,data!H59,data!H91)),"",CHOOSE(mySelectedAgeGroup,data!H27,data!H59,data!H91)) ->  | I27: =IF(ISBLANK(CHOOSE(mySelectedAgeGroup,data!I27,data!I59,data!I91)),"",CHOOSE(mySelectedAgeGroup,data!I27,data!I59,data!I91)) ->  | J27: =IF(ISBLANK(CHOOSE(mySelectedAgeGroup,data!J27,data!J59,data!J91)),"",CHOOSE(mySelectedAgeGroup,data!J27,data!J59,data!J91)) ->  | K27: =IF(ISBLANK(CHOOSE(mySelectedAgeGroup,data!K27,data!K59,data!K91)),"",CHOOSE(mySelectedAgeGroup,data!K27,data!K59,data!K91)) ->  | L27: =IF(ISBLANK(CHOOSE(mySelectedAgeGroup,data!L27,data!L59,data!L91)),"",CHOOSE(mySelectedAgeGroup,data!L27,data!L59,data!L91)) -> 0.086 | M27: =IF(ISBLANK(CHOOSE(mySelectedAgeGroup,data!M27,data!M59,data!M91)),"",CHOOSE(mySelectedAgeGroup,data!M27,data!M59,data!M91)) -> 0.109 | N27: =IF(ISBLANK(CHOOSE(mySelectedAgeGroup,data!N27,data!N59,data!N91)),"",CHOOSE(mySelectedAgeGroup,data!N27,data!N59,data!N91)) -> 0.134 | O27: =IF(ISBLANK(CHOOSE(mySelectedAgeGroup,data!O27,data!O59,data!O91)),"",CHOOSE(mySelectedAgeGroup,data!O27,data!O59,data!O91)) -> 0.149 | P27: =IF(ISBLANK(CHOOSE(mySelectedAgeGroup,data!P27,data!P59,data!P91)),"",CHOOSE(mySelectedAgeGroup,data!P27,data!P59,data!P91)) -> 0.165 | Q27: =IF(ISBLANK(CHOOSE(mySelectedAgeGroup,data!Q27,data!Q59,data!Q91)),"",CHOOSE(mySelectedAgeGroup,data!Q27,data!Q59,data!Q91)) -> 0.163 | R27: =IF(ISBLANK(CHOOSE(mySelectedAgeGroup,data!R27,data!R59,data!R91)),"",CHOOSE(mySelectedAgeGroup,data!R27,data!R59,data!R91)) -> 0.161 | S27: =IF(ISBLANK(CHOOSE(mySelectedAgeGroup,data!S27,data!S59,data!S91)),"",CHOOSE(mySelectedAgeGroup,data!S27,data!S59,data!S91)) -> 0.151 | T27: =IF(ISBLANK(CHOOSE(mySelectedAgeGroup,data!T27,data!T59,data!T91)),"",CHOOSE(mySelectedAgeGroup,data!T27,data!T59,data!T91)) -> 0.118 | U27: =IF(ISBLANK(CHOOSE(mySelectedAgeGroup,data!U27,data!U59,data!U91)),"",CHOOSE(mySelectedAgeGroup,data!U27,data!U59,data!U91)) -> 0.081 | V27: =IF(ISBLANK(CHOOSE(mySelectedAgeGroup,data!V27,data!V59,data!V91)),"",CHOOSE(mySelectedAgeGroup,data!V27,data!V59,data!V91)) -> 0.059 | W27: =IF(ISBLANK(CHOOSE(mySelectedAgeGroup,data!W27,data!W59,data!W91)),"",CHOOSE(mySelectedAgeGroup,data!W27,data!W59,data!W91)) -> 0.068 | X27: =IF(ISBLANK(CHOOSE(mySelectedAgeGroup,data!X27,data!X59,data!X91)),"",CHOOSE(mySelectedAgeGroup,data!X27,data!X59,data!X91)) -> 0.081 | Y27: =IF(ISBLANK(CHOOSE(mySelectedAgeGroup,data!Y27,data!Y59,data!Y91)),"",CHOOSE(mySelectedAgeGroup,data!Y27,data!Y59,data!Y91)) -> 0.08 | Z27: =IF(ISBLANK(CHOOSE(mySelectedAgeGroup,data!Z27,data!Z59,data!Z91)),"",CHOOSE(mySelectedAgeGroup,data!Z27,data!Z59,data!Z91)) -> 0.085 | AA27: =IF(ISBLANK(CHOOSE(mySelectedAgeGroup,data!AA27,data!AA59,data!AA91)),"",CHOOSE(mySelectedAgeGroup,data!AA27,data!AA59,data!AA91)) -> 0.088 | AB27: =IF(ISBLANK(CHOOSE(mySelectedAgeGroup,data!AB27,data!AB59,data!AB91)),"",CHOOSE(mySelectedAgeGroup,data!AB27,data!AB59,data!AB91)) -> 0.077 | AC27: =IF(ISBLANK(CHOOSE(mySelectedAgeGroup,data!AC27,data!AC59,data!AC91)),"",CHOOSE(mySelectedAgeGroup,data!AC27,data!AC59,data!AC91)) -> 0.064 | AD27: =IF(ISBLANK(CHOOSE(mySelectedAgeGroup,data!AD27,data!AD59,data!AD91)),"",CHOOSE(mySelectedAgeGroup,data!AD27,data!AD59,data!AD91)) -> 0.052 | AE27: =IF(ISBLANK(CHOOSE(mySelectedAgeGroup,data!AE27,data!AE59,data!AE91)),"",CHOOSE(mySelectedAgeGroup,data!AE27,data!AE59,data!AE91)) -> 0.041 | AF27: =IF(ISBLANK(CHOOSE(mySelectedAgeGroup,data!AF27,data!AF59,data!AF91)),"",CHOOSE(mySelectedAgeGroup,data!AF27,data!AF59,data!AF91)) -> 0.032 | AG27: =IF(ISBLANK(CHOOSE(mySelectedAgeGroup,data!AG27,data!AG59,data!AG91)),"",CHOOSE(mySelectedAgeGroup,data!AG27,data!AG59,data!AG91)) -> 0.028 | AH27: =IF(ISBLANK(CHOOSE(mySelectedAgeGroup,data!AH27,data!AH59,data!AH91)),"",CHOOSE(mySelectedAgeGroup,data!AH27,data!AH59,data!AH91)) -> 0.028
C28: =data!B28 -> Portugal | D28: =IF(ISBLANK(CHOOSE(mySelectedAgeGroup,data!D28,data!D60,data!D92)),"",CHOOSE(mySelectedAgeGroup,data!D28,data!D60,data!D92)) -> 0.037 | E28: =IF(ISBLANK(CHOOSE(mySelectedAgeGroup,data!E28,data!E60,data!E92)),"",CHOOSE(mySelectedAgeGroup,data!E28,data!E60,data!E92)) -> 0.034 | F28: =IF(ISBLANK(CHOOSE(mySelectedAgeGroup,data!F28,data!F60,data!F92)),"",CHOOSE(mySelectedAgeGroup,data!F28,data!F60,data!F92)) -> 0.032 | G28: =IF(ISBLANK(CHOOSE(mySelectedAgeGroup,data!G28,data!G60,data!G92)),"",CHOOSE(mySelectedAgeGroup,data!G28,data!G60,data!G92)) -> 0.045 | H28: =IF(ISBLANK(CHOOSE(mySelectedAgeGroup,data!H28,data!H60,data!H92)),"",CHOOSE(mySelectedAgeGroup,data!H28,data!H60,data!H92)) -> 0.057 | I28: =IF(ISBLANK(CHOOSE(mySelectedAgeGroup,data!I28,data!I60,data!I92)),"",CHOOSE(mySelectedAgeGroup,data!I28,data!I60,data!I92)) -> 0.057 | J28: =IF(ISBLANK(CHOOSE(mySelectedAgeGroup,data!J28,data!J60,data!J92)),"",CHOOSE(mySelectedAgeGroup,data!J28,data!J60,data!J92)) -> 0.058 | K28: =IF(ISBLANK(CHOOSE(mySelectedAgeGroup,data!K28,data!K60,data!K92)),"",CHOOSE(mySelectedAgeGroup,data!K28,data!K60,data!K92)) -> 0.055 | L28: =IF(ISBLANK(CHOOSE(mySelectedAgeGroup,data!L28,data!L60,data!L92)),"",CHOOSE(mySelectedAgeGroup,data!L28,data!L60,data!L92)) -> 0.042 | M28: =IF(ISBLANK(CHOOSE(mySelectedAgeGroup,data!M28,data!M60,data!M92)),"",CHOOSE(mySelectedAgeGroup,data!M28,data!M60,data!M92)) -> 0.038 | N28: =IF(ISBLANK(CHOOSE(mySelectedAgeGroup,data!N28,data!N60,data!N92)),"",CHOOSE(mySelectedAgeGroup,data!N28,data!N60,data!N92)) -> 0.034 | O28: =IF(ISBLANK(CHOOSE(mySelectedAgeGroup,data!O28,data!O60,data!O92)),"",CHOOSE(mySelectedAgeGroup,data!O28,data!O60,data!O92)) -> 0.033 | P28: =IF(ISBLANK(CHOOSE(mySelectedAgeGroup,data!P28,data!P60,data!P92)),"",CHOOSE(mySelectedAgeGroup,data!P28,data!P60,data!P92)) -> 0.041 | Q28: =IF(ISBLANK(CHOOSE(mySelectedAgeGroup,data!Q28,data!Q60,data!Q92)),"",CHOOSE(mySelectedAgeGroup,data!Q28,data!Q60,data!Q92)) -> 0.053 | R28: =IF(ISBLANK(CHOOSE(mySelectedAgeGroup,data!R28,data!R60,data!R92)),"",CHOOSE(mySelectedAgeGroup,data!R28,data!R60,data!R92)) -> 0.057 | S28: =IF(ISBLANK(CHOOSE(mySelectedAgeGroup,data!S28,data!S60,data!S92)),"",CHOOSE(mySelectedAgeGroup,data!S28,data!S60,data!S92)) -> 0.067 | T28: =IF(ISBLANK(CHOOSE(mySelectedAgeGroup,data!T28,data!T60,data!T92)),"",CHOOSE(mySelectedAgeGroup,data!T28,data!T60,data!T92)) -> 0.068 | U28: =IF(ISBLANK(CHOOSE(mySelectedAgeGroup,data!U28,data!U60,data!U92)),"",CHOOSE(mySelectedAgeGroup,data!U28,data!U60,data!U92)) -> 0.072 | V28: =IF(ISBLANK(CHOOSE(mySelectedAgeGroup,data!V28,data!V60,data!V92)),"",CHOOSE(mySelectedAgeGroup,data!V28,data!V60,data!V92)) -> 0.068 | W28: =IF(ISBLANK(CHOOSE(mySelectedAgeGroup,data!W28,data!W60,data!W92)),"",CHOOSE(mySelectedAgeGroup,data!W28,data!W60,data!W92)) -> 0.086 | X28: =IF(ISBLANK(CHOOSE(mySelectedAgeGroup,data!X28,data!X60,data!X92)),"",CHOOSE(mySelectedAgeGroup,data!X28,data!X60,data!X92)) -> 0.1 | Y28: =IF(ISBLANK(CHOOSE(mySelectedAgeGroup,data!Y28,data!Y60,data!Y92)),"",CHOOSE(mySelectedAgeGroup,data!Y28,data!Y60,data!Y92)) -> 0.113 | Z28: =IF(ISBLANK(CHOOSE(mySelectedAgeGroup,data!Z28,data!Z60,data!Z92)),"",CHOOSE(mySelectedAgeGroup,data!Z28,data!Z60,data!Z92)) -> 0.139 | AA28: =IF(ISBLANK(CHOOSE(mySelectedAgeGroup,data!AA28,data!AA60,data!AA92)),"",CHOOSE(mySelectedAgeGroup,data!AA28,data!AA60,data!AA92)) -> 0.147 | AB28: =IF(ISBLANK(CHOOSE(mySelectedAgeGroup,data!AB28,data!AB60,data!AB92)),"",CHOOSE(mySelectedAgeGroup,data!AB28,data!AB60,data!AB92)) -> 0.125 | AC28: =IF(ISBLANK(CHOOSE(mySelectedAgeGroup,data!AC28,data!AC60,data!AC92)),"",CHOOSE(mySelectedAgeGroup,data!AC28,data!AC60,data!AC92)) -> 0.111 | AD28: =IF(ISBLANK(CHOOSE(mySelectedAgeGroup,data!AD28,data!AD60,data!AD92)),"",CHOOSE(mySelectedAgeGroup,data!AD28,data!AD60,data!AD92)) -> 0.099 | AE28: =IF(ISBLANK(CHOOSE(mySelectedAgeGroup,data!AE28,data!AE60,data!AE92)),"",CHOOSE(mySelectedAgeGroup,data!AE28,data!AE60,data!AE92)) -> 0.078 | AF28: =IF(ISBLANK(CHOOSE(mySelectedAgeGroup,data!AF28,data!AF60,data!AF92)),"",CHOOSE(mySelectedAgeGroup,data!AF28,data!AF60,data!AF92)) -> 0.061 | AG28: =IF(ISBLANK(CHOOSE(mySelectedAgeGroup,data!AG28,data!AG60,data!AG92)),"",CHOOSE(mySelectedAgeGroup,data!AG28,data!AG60,data!AG92)) -> 0.056 | AH28: =IF(ISBLANK(CHOOSE(mySelectedAgeGroup,data!AH28,data!AH60,data!AH92)),"",CHOOSE(mySelectedAgeGroup,data!AH28,data!AH60,data!AH92)) -> 0.058
C29: =data!B29 -> Romania | D29: =IF(ISBLANK(CHOOSE(mySelectedAgeGroup,data!D29,data!D61,data!D93)),"",CHOOSE(mySelectedAgeGroup,data!D29,data!D61,data!D93)) ->  | E29: =IF(ISBLANK(CHOOSE(mySelectedAgeGroup,data!E29,data!E61,data!E93)),"",CHOOSE(mySelectedAgeGroup,data!E29,data!E61,data!E93)) ->  | F29: =IF(ISBLANK(CHOOSE(mySelectedAgeGroup,data!F29,data!F61,data!F93)),"",CHOOSE(mySelectedAgeGroup,data!F29,data!F61,data!F93)) ->  | G29: =IF(ISBLANK(CHOOSE(mySelectedAgeGroup,data!G29,data!G61,data!G93)),"",CHOOSE(mySelectedAgeGroup,data!G29,data!G61,data!G93)) ->  | H29: =IF(ISBLANK(CHOOSE(mySelectedAgeGroup,data!H29,data!H61,data!H93)),"",CHOOSE(mySelectedAgeGroup,data!H29,data!H61,data!H93)) ->  | I29: =IF(ISBLANK(CHOOSE(mySelectedAgeGroup,data!I29,data!I61,data!I93)),"",CHOOSE(mySelectedAgeGroup,data!I29,data!I61,data!I93)) ->  | J29: =IF(ISBLANK(CHOOSE(mySelectedAgeGroup,data!J29,data!J61,data!J93)),"",CHOOSE(mySelectedAgeGroup,data!J29,data!J61,data!J93)) ->  | K29: =IF(ISBLANK(CHOOSE(mySelectedAgeGroup,data!K29,data!K61,data!K93)),"",CHOOSE(mySelectedAgeGroup,data!K29,data!K61,data!K93)) ->  | L29: =IF(ISBLANK(CHOOSE(mySelectedAgeGroup,data!L29,data!L61,data!L93)),"",CHOOSE(mySelectedAgeGroup,data!L29,data!L61,data!L93)) -> 0.043 | M29: =IF(ISBLANK(CHOOSE(mySelectedAgeGroup,data!M29,data!M61,data!M93)),"",CHOOSE(mySelectedAgeGroup,data!M29,data!M61,data!M93)) -> 0.05 | N29: =IF(ISBLANK(CHOOSE(mySelectedAgeGroup,data!N29,data!N61,data!N93)),"",CHOOSE(mySelectedAgeGroup,data!N29,data!N61,data!N93)) -> 0.054 | O29: =IF(ISBLANK(CHOOSE(mySelectedAgeGroup,data!O29,data!O61,data!O93)),"",CHOOSE(mySelectedAgeGroup,data!O29,data!O61,data!O93)) -> 0.05 | P29: =IF(ISBLANK(CHOOSE(mySelectedAgeGroup,data!P29,data!P61,data!P93)),"",CHOOSE(mySelectedAgeGroup,data!P29,data!P61,data!P93)) -> 0.065 | Q29: =IF(ISBLANK(CHOOSE(mySelectedAgeGroup,data!Q29,data!Q61,data!Q93)),"",CHOOSE(mySelectedAgeGroup,data!Q29,data!Q61,data!Q93)) -> 0.054 | R29: =IF(ISBLANK(CHOOSE(mySelectedAgeGroup,data!R29,data!R61,data!R93)),"",CHOOSE(mySelectedAgeGroup,data!R29,data!R61,data!R93)) -> 0.062 | S29: =IF(ISBLANK(CHOOSE(mySelectedAgeGroup,data!S29,data!S61,data!S93)),"",CHOOSE(mySelectedAgeGroup,data!S29,data!S61,data!S93)) -> 0.056 | T29: =IF(ISBLANK(CHOOSE(mySelectedAgeGroup,data!T29,data!T61,data!T93)),"",CHOOSE(mySelectedAgeGroup,data!T29,data!T61,data!T93)) -> 0.057 | U29: =IF(ISBLANK(CHOOSE(mySelectedAgeGroup,data!U29,data!U61,data!U93)),"",CHOOSE(mySelectedAgeGroup,data!U29,data!U61,data!U93)) -> 0.049 | V29: =IF(ISBLANK(CHOOSE(mySelectedAgeGroup,data!V29,data!V61,data!V93)),"",CHOOSE(mySelectedAgeGroup,data!V29,data!V61,data!V93)) -> 0.044 | W29: =IF(ISBLANK(CHOOSE(mySelectedAgeGroup,data!W29,data!W61,data!W93)),"",CHOOSE(mySelectedAgeGroup,data!W29,data!W61,data!W93)) -> 0.054 | X29: =IF(ISBLANK(CHOOSE(mySelectedAgeGroup,data!X29,data!X61,data!X93)),"",CHOOSE(mySelectedAgeGroup,data!X29,data!X61,data!X93)) -> 0.056 | Y29: =IF(ISBLANK(CHOOSE(mySelectedAgeGroup,data!Y29,data!Y61,data!Y93)),"",CHOOSE(mySelectedAgeGroup,data!Y29,data!Y61,data!Y93)) -> 0.057 | Z29: =IF(ISBLANK(CHOOSE(mySelectedAgeGroup,data!Z29,data!Z61,data!Z93)),"",CHOOSE(mySelectedAgeGroup,data!Z29,data!Z61,data!Z93)) -> 0.054 | AA29: =IF(ISBLANK(CHOOSE(mySelectedAgeGroup,data!AA29,data!AA61,data!AA93)),"",CHOOSE(mySelectedAgeGroup,data!AA29,data!AA61,data!AA93)) -> 0.057 | AB29: =IF(ISBLANK(CHOOSE(mySelectedAgeGroup,data!AB29,data!AB61,data!AB93)),"",CHOOSE(mySelectedAgeGroup,data!AB29,data!AB61,data!AB93)) -> 0.055 | AC29: =IF(ISBLANK(CHOOSE(mySelectedAgeGroup,data!AC29,data!AC61,data!AC93)),"",CHOOSE(mySelectedAgeGroup,data!AC29,data!AC61,data!AC93)) -> 0.056 | AD29: =IF(ISBLANK(CHOOSE(mySelectedAgeGroup,data!AD29,data!AD61,data!AD93)),"",CHOOSE(mySelectedAgeGroup,data!AD29,data!AD61,data!AD93)) -> 0.048 | AE29: =IF(ISBLANK(CHOOSE(mySelectedAgeGroup,data!AE29,data!AE61,data!AE93)),"",CHOOSE(mySelectedAgeGroup,data!AE29,data!AE61,data!AE93)) -> 0.039 | AF29: =IF(ISBLANK(CHOOSE(mySelectedAgeGroup,data!AF29,data!AF61,data!AF93)),"",CHOOSE(mySelectedAgeGroup,data!AF29,data!AF61,data!AF93)) -> 0.033 | AG29: =IF(ISBLANK(CHOOSE(mySelectedAgeGroup,data!AG29,data!AG61,data!AG93)),"",CHOOSE(mySelectedAgeGroup,data!AG29,data!AG61,data!AG93)) -> 0.03 | AH29: =IF(ISBLANK(CHOOSE(mySelectedAgeGroup,data!AH29,data!AH61,data!AH93)),"",CHOOSE(mySelectedAgeGroup,data!AH29,data!AH61,data!AH93)) -> 0.038
C30: =data!B30 -> Slovakia | D30: =IF(ISBLANK(CHOOSE(mySelectedAgeGroup,data!D30,data!D62,data!D94)),"",CHOOSE(mySelectedAgeGroup,data!D30,data!D62,data!D94)) ->  | E30: =IF(ISBLANK(CHOOSE(mySelectedAgeGroup,data!E30,data!E62,data!E94)),"",CHOOSE(mySelectedAgeGroup,data!E30,data!E62,data!E94)) ->  | F30: =IF(ISBLANK(CHOOSE(mySelectedAgeGroup,data!F30,data!F62,data!F94)),"",CHOOSE(mySelectedAgeGroup,data!F30,data!F62,data!F94)) ->  | G30: =IF(ISBLANK(CHOOSE(mySelectedAgeGroup,data!G30,data!G62,data!G94)),"",CHOOSE(mySelectedAgeGroup,data!G30,data!G62,data!G94)) ->  | H30: =IF(ISBLANK(CHOOSE(mySelectedAgeGroup,data!H30,data!H62,data!H94)),"",CHOOSE(mySelectedAgeGroup,data!H30,data!H62,data!H94)) ->  | I30: =IF(ISBLANK(CHOOSE(mySelectedAgeGroup,data!I30,data!I62,data!I94)),"",CHOOSE(mySelectedAgeGroup,data!I30,data!I62,data!I94)) ->  | J30: =IF(ISBLANK(CHOOSE(mySelectedAgeGroup,data!J30,data!J62,data!J94)),"",CHOOSE(mySelectedAgeGroup,data!J30,data!J62,data!J94)) ->  | K30: =IF(ISBLANK(CHOOSE(mySelectedAgeGroup,data!K30,data!K62,data!K94)),"",CHOOSE(mySelectedAgeGroup,data!K30,data!K62,data!K94)) -> 0.098 | L30: =IF(ISBLANK(CHOOSE(mySelectedAgeGroup,data!L30,data!L62,data!L94)),"",CHOOSE(mySelectedAgeGroup,data!L30,data!L62,data!L94)) -> 0.101 | M30: =IF(ISBLANK(CHOOSE(mySelectedAgeGroup,data!M30,data!M62,data!M94)),"",CHOOSE(mySelectedAgeGroup,data!M30,data!M62,data!M94)) -> 0.129 | N30: =IF(ISBLANK(CHOOSE(mySelectedAgeGroup,data!N30,data!N62,data!N94)),"",CHOOSE(mySelectedAgeGroup,data!N30,data!N62,data!N94)) -> 0.153 | O30: =IF(ISBLANK(CHOOSE(mySelectedAgeGroup,data!O30,data!O62,data!O94)),"",CHOOSE(mySelectedAgeGroup,data!O30,data!O62,data!O94)) -> 0.157 | P30: =IF(ISBLANK(CHOOSE(mySelectedAgeGroup,data!P30,data!P62,data!P94)),"",CHOOSE(mySelectedAgeGroup,data!P30,data!P62,data!P94)) -> 0.153 | Q30: =IF(ISBLANK(CHOOSE(mySelectedAgeGroup,data!Q30,data!Q62,data!Q94)),"",CHOOSE(mySelectedAgeGroup,data!Q30,data!Q62,data!Q94)) -> 0.149 | R30: =IF(ISBLANK(CHOOSE(mySelectedAgeGroup,data!R30,data!R62,data!R94)),"",CHOOSE(mySelectedAgeGroup,data!R30,data!R62,data!R94)) -> 0.16 | S30: =IF(ISBLANK(CHOOSE(mySelectedAgeGroup,data!S30,data!S62,data!S94)),"",CHOOSE(mySelectedAgeGroup,data!S30,data!S62,data!S94)) -> 0.144 | T30: =IF(ISBLANK(CHOOSE(mySelectedAgeGroup,data!T30,data!T62,data!T94)),"",CHOOSE(mySelectedAgeGroup,data!T30,data!T62,data!T94)) -> 0.117 | U30: =IF(ISBLANK(CHOOSE(mySelectedAgeGroup,data!U30,data!U62,data!U94)),"",CHOOSE(mySelectedAgeGroup,data!U30,data!U62,data!U94)) -> 0.1 | V30: =IF(ISBLANK(CHOOSE(mySelectedAgeGroup,data!V30,data!V62,data!V94)),"",CHOOSE(mySelectedAgeGroup,data!V30,data!V62,data!V94)) -> 0.084 | W30: =IF(ISBLANK(CHOOSE(mySelectedAgeGroup,data!W30,data!W62,data!W94)),"",CHOOSE(mySelectedAgeGroup,data!W30,data!W62,data!W94)) -> 0.104 | X30: =IF(ISBLANK(CHOOSE(mySelectedAgeGroup,data!X30,data!X62,data!X94)),"",CHOOSE(mySelectedAgeGroup,data!X30,data!X62,data!X94)) -> 0.125 | Y30: =IF(ISBLANK(CHOOSE(mySelectedAgeGroup,data!Y30,data!Y62,data!Y94)),"",CHOOSE(mySelectedAgeGroup,data!Y30,data!Y62,data!Y94)) -> 0.118 | Z30: =IF(ISBLANK(CHOOSE(mySelectedAgeGroup,data!Z30,data!Z62,data!Z94)),"",CHOOSE(mySelectedAgeGroup,data!Z30,data!Z62,data!Z94)) -> 0.122 | AA30: =IF(ISBLANK(CHOOSE(mySelectedAgeGroup,data!AA30,data!AA62,data!AA94)),"",CHOOSE(mySelectedAgeGroup,data!AA30,data!AA62,data!AA94)) -> 0.125 | AB30: =IF(ISBLANK(CHOOSE(mySelectedAgeGroup,data!AB30,data!AB62,data!AB94)),"",CHOOSE(mySelectedAgeGroup,data!AB30,data!AB62,data!AB94)) -> 0.118 | AC30: =IF(ISBLANK(CHOOSE(mySelectedAgeGroup,data!AC30,data!AC62,data!AC94)),"",CHOOSE(mySelectedAgeGroup,data!AC30,data!AC62,data!AC94)) -> 0.102 | AD30: =IF(ISBLANK(CHOOSE(mySelectedAgeGroup,data!AD30,data!AD62,data!AD94)),"",CHOOSE(mySelectedAgeGroup,data!AD30,data!AD62,data!AD94)) -> 0.087 | AE30: =IF(ISBLANK(CHOOSE(mySelectedAgeGroup,data!AE30,data!AE62,data!AE94)),"",CHOOSE(mySelectedAgeGroup,data!AE30,data!AE62,data!AE94)) -> 0.073 | AF30: =IF(ISBLANK(CHOOSE(mySelectedAgeGroup,data!AF30,data!AF62,data!AF94)),"",CHOOSE(mySelectedAgeGroup,data!AF30,data!AF62,data!AF94)) -> 0.059 | AG30: =IF(ISBLANK(CHOOSE(mySelectedAgeGroup,data!AG30,data!AG62,data!AG94)),"",CHOOSE(mySelectedAgeGroup,data!AG30,data!AG62,data!AG94)) -> 0.051 | AH30: =IF(ISBLANK(CHOOSE(mySelectedAgeGroup,data!AH30,data!AH62,data!AH94)),"",CHOOSE(mySelectedAgeGroup,data!AH30,data!AH62,data!AH94)) -> 0.049
C31: =data!B31 -> Slovenia | D31: =IF(ISBLANK(CHOOSE(mySelectedAgeGroup,data!D31,data!D63,data!D95)),"",CHOOSE(mySelectedAgeGroup,data!D31,data!D63,data!D95)) ->  | E31: =IF(ISBLANK(CHOOSE(mySelectedAgeGroup,data!E31,data!E63,data!E95)),"",CHOOSE(mySelectedAgeGroup,data!E31,data!E63,data!E95)) ->  | F31: =IF(ISBLANK(CHOOSE(mySelectedAgeGroup,data!F31,data!F63,data!F95)),"",CHOOSE(mySelectedAgeGroup,data!F31,data!F63,data!F95)) ->  | G31: =IF(ISBLANK(CHOOSE(mySelectedAgeGroup,data!G31,data!G63,data!G95)),"",CHOOSE(mySelectedAgeGroup,data!G31,data!G63,data!G95)) ->  | H31: =IF(ISBLANK(CHOOSE(mySelectedAgeGroup,data!H31,data!H63,data!H95)),"",CHOOSE(mySelectedAgeGroup,data!H31,data!H63,data!H95)) ->  | I31: =IF(ISBLANK(CHOOSE(mySelectedAgeGroup,data!I31,data!I63,data!I95)),"",CHOOSE(mySelectedAgeGroup,data!I31,data!I63,data!I95)) ->  | J31: =IF(ISBLANK(CHOOSE(mySelectedAgeGroup,data!J31,data!J63,data!J95)),"",CHOOSE(mySelectedAgeGroup,data!J31,data!J63,data!J95)) ->  | K31: =IF(ISBLANK(CHOOSE(mySelectedAgeGroup,data!K31,data!K63,data!K95)),"",CHOOSE(mySelectedAgeGroup,data!K31,data!K63,data!K95)) -> 0.052 | L31: =IF(ISBLANK(CHOOSE(mySelectedAgeGroup,data!L31,data!L63,data!L95)),"",CHOOSE(mySelectedAgeGroup,data!L31,data!L63,data!L95)) -> 0.058 | M31: =IF(ISBLANK(CHOOSE(mySelectedAgeGroup,data!M31,data!M63,data!M95)),"",CHOOSE(mySelectedAgeGroup,data!M31,data!M63,data!M95)) -> 0.059 | N31: =IF(ISBLANK(CHOOSE(mySelectedAgeGroup,data!N31,data!N63,data!N95)),"",CHOOSE(mySelectedAgeGroup,data!N31,data!N63,data!N95)) -> 0.055 | O31: =IF(ISBLANK(CHOOSE(mySelectedAgeGroup,data!O31,data!O63,data!O95)),"",CHOOSE(mySelectedAgeGroup,data!O31,data!O63,data!O95)) -> 0.048 | P31: =IF(ISBLANK(CHOOSE(mySelectedAgeGroup,data!P31,data!P63,data!P95)),"",CHOOSE(mySelectedAgeGroup,data!P31,data!P63,data!P95)) -> 0.051 | Q31: =IF(ISBLANK(CHOOSE(mySelectedAgeGroup,data!Q31,data!Q63,data!Q95)),"",CHOOSE(mySelectedAgeGroup,data!Q31,data!Q63,data!Q95)) -> 0.055 | R31: =IF(ISBLANK(CHOOSE(mySelectedAgeGroup,data!R31,data!R63,data!R95)),"",CHOOSE(mySelectedAgeGroup,data!R31,data!R63,data!R95)) -> 0.051 | S31: =IF(ISBLANK(CHOOSE(mySelectedAgeGroup,data!S31,data!S63,data!S95)),"",CHOOSE(mySelectedAgeGroup,data!S31,data!S63,data!S95)) -> 0.054 | T31: =IF(ISBLANK(CHOOSE(mySelectedAgeGroup,data!T31,data!T63,data!T95)),"",CHOOSE(mySelectedAgeGroup,data!T31,data!T63,data!T95)) -> 0.051 | U31: =IF(ISBLANK(CHOOSE(mySelectedAgeGroup,data!U31,data!U63,data!U95)),"",CHOOSE(mySelectedAgeGroup,data!U31,data!U63,data!U95)) -> 0.042 | V31: =IF(ISBLANK(CHOOSE(mySelectedAgeGroup,data!V31,data!V63,data!V95)),"",CHOOSE(mySelectedAgeGroup,data!V31,data!V63,data!V95)) -> 0.037 | W31: =IF(ISBLANK(CHOOSE(mySelectedAgeGroup,data!W31,data!W63,data!W95)),"",CHOOSE(mySelectedAgeGroup,data!W31,data!W63,data!W95)) -> 0.051 | X31: =IF(ISBLANK(CHOOSE(mySelectedAgeGroup,data!X31,data!X63,data!X95)),"",CHOOSE(mySelectedAgeGroup,data!X31,data!X63,data!X95)) -> 0.065 | Y31: =IF(ISBLANK(CHOOSE(mySelectedAgeGroup,data!Y31,data!Y63,data!Y95)),"",CHOOSE(mySelectedAgeGroup,data!Y31,data!Y63,data!Y95)) -> 0.075 | Z31: =IF(ISBLANK(CHOOSE(mySelectedAgeGroup,data!Z31,data!Z63,data!Z95)),"",CHOOSE(mySelectedAgeGroup,data!Z31,data!Z63,data!Z95)) -> 0.079 | AA31: =IF(ISBLANK(CHOOSE(mySelectedAgeGroup,data!AA31,data!AA63,data!AA95)),"",CHOOSE(mySelectedAgeGroup,data!AA31,data!AA63,data!AA95)) -> 0.092 | AB31: =IF(ISBLANK(CHOOSE(mySelectedAgeGroup,data!AB31,data!AB63,data!AB95)),"",CHOOSE(mySelectedAgeGroup,data!AB31,data!AB63,data!AB95)) -> 0.09 | AC31: =IF(ISBLANK(CHOOSE(mySelectedAgeGroup,data!AC31,data!AC63,data!AC95)),"",CHOOSE(mySelectedAgeGroup,data!AC31,data!AC63,data!AC95)) -> 0.084 | AD31: =IF(ISBLANK(CHOOSE(mySelectedAgeGroup,data!AD31,data!AD63,data!AD95)),"",CHOOSE(mySelectedAgeGroup,data!AD31,data!AD63,data!AD95)) -> 0.075 | AE31: =IF(ISBLANK(CHOOSE(mySelectedAgeGroup,data!AE31,data!AE63,data!AE95)),"",CHOOSE(mySelectedAgeGroup,data!AE31,data!AE63,data!AE95)) -> 0.062 | AF31: =IF(ISBLANK(CHOOSE(mySelectedAgeGroup,data!AF31,data!AF63,data!AF95)),"",CHOOSE(mySelectedAgeGroup,data!AF31,data!AF63,data!AF95)) -> 0.048 | AG31: =IF(ISBLANK(CHOOSE(mySelectedAgeGroup,data!AG31,data!AG63,data!AG95)),"",CHOOSE(mySelectedAgeGroup,data!AG31,data!AG63,data!AG95)) -> 0.042 | AH31: =IF(ISBLANK(CHOOSE(mySelectedAgeGroup,data!AH31,data!AH63,data!AH95)),"",CHOOSE(mySelectedAgeGroup,data!AH31,data!AH63,data!AH95)) -> 0.036
C32: =data!B32 -> Spain | D32: =IF(ISBLANK(CHOOSE(mySelectedAgeGroup,data!D32,data!D64,data!D96)),"",CHOOSE(mySelectedAgeGroup,data!D32,data!D64,data!D96)) -> 0.117 | E32: =IF(ISBLANK(CHOOSE(mySelectedAgeGroup,data!E32,data!E64,data!E96)),"",CHOOSE(mySelectedAgeGroup,data!E32,data!E64,data!E96)) -> 0.122 | F32: =IF(ISBLANK(CHOOSE(mySelectedAgeGroup,data!F32,data!F64,data!F96)),"",CHOOSE(mySelectedAgeGroup,data!F32,data!F64,data!F96)) -> 0.136 | G32: =IF(ISBLANK(CHOOSE(mySelectedAgeGroup,data!G32,data!G64,data!G96)),"",CHOOSE(mySelectedAgeGroup,data!G32,data!G64,data!G96)) -> 0.166 | H32: =IF(ISBLANK(CHOOSE(mySelectedAgeGroup,data!H32,data!H64,data!H96)),"",CHOOSE(mySelectedAgeGroup,data!H32,data!H64,data!H96)) -> 0.179 | I32: =IF(ISBLANK(CHOOSE(mySelectedAgeGroup,data!I32,data!I64,data!I96)),"",CHOOSE(mySelectedAgeGroup,data!I32,data!I64,data!I96)) -> 0.19 | J32: =IF(ISBLANK(CHOOSE(mySelectedAgeGroup,data!J32,data!J64,data!J96)),"",CHOOSE(mySelectedAgeGroup,data!J32,data!J64,data!J96)) -> 0.184 | K32: =IF(ISBLANK(CHOOSE(mySelectedAgeGroup,data!K32,data!K64,data!K96)),"",CHOOSE(mySelectedAgeGroup,data!K32,data!K64,data!K96)) -> 0.173 | L32: =IF(ISBLANK(CHOOSE(mySelectedAgeGroup,data!L32,data!L64,data!L96)),"",CHOOSE(mySelectedAgeGroup,data!L32,data!L64,data!L96)) -> 0.157 | M32: =IF(ISBLANK(CHOOSE(mySelectedAgeGroup,data!M32,data!M64,data!M96)),"",CHOOSE(mySelectedAgeGroup,data!M32,data!M64,data!M96)) -> 0.134 | N32: =IF(ISBLANK(CHOOSE(mySelectedAgeGroup,data!N32,data!N64,data!N96)),"",CHOOSE(mySelectedAgeGroup,data!N32,data!N64,data!N96)) -> 0.119 | O32: =IF(ISBLANK(CHOOSE(mySelectedAgeGroup,data!O32,data!O64,data!O96)),"",CHOOSE(mySelectedAgeGroup,data!O32,data!O64,data!O96)) -> 0.089 | P32: =IF(ISBLANK(CHOOSE(mySelectedAgeGroup,data!P32,data!P64,data!P96)),"",CHOOSE(mySelectedAgeGroup,data!P32,data!P64,data!P96)) -> 0.098 | Q32: =IF(ISBLANK(CHOOSE(mySelectedAgeGroup,data!Q32,data!Q64,data!Q96)),"",CHOOSE(mySelectedAgeGroup,data!Q32,data!Q64,data!Q96)) -> 0.099 | R32: =IF(ISBLANK(CHOOSE(mySelectedAgeGroup,data!R32,data!R64,data!R96)),"",CHOOSE(mySelectedAgeGroup,data!R32,data!R64,data!R96)) -> 0.095 | S32: =IF(ISBLANK(CHOOSE(mySelectedAgeGroup,data!S32,data!S64,data!S96)),"",CHOOSE(mySelectedAgeGroup,data!S32,data!S64,data!S96)) -> 0.077 | T32: =IF(ISBLANK(CHOOSE(mySelectedAgeGroup,data!T32,data!T64,data!T96)),"",CHOOSE(mySelectedAgeGroup,data!T32,data!T64,data!T96)) -> 0.072 | U32: =IF(ISBLANK(CHOOSE(mySelectedAgeGroup,data!U32,data!U64,data!U96)),"",CHOOSE(mySelectedAgeGroup,data!U32,data!U64,data!U96)) -> 0.07 | V32: =IF(ISBLANK(CHOOSE(mySelectedAgeGroup,data!V32,data!V64,data!V96)),"",CHOOSE(mySelectedAgeGroup,data!V32,data!V64,data!V96)) -> 0.097 | W32: =IF(ISBLANK(CHOOSE(mySelectedAgeGroup,data!W32,data!W64,data!W96)),"",CHOOSE(mySelectedAgeGroup,data!W32,data!W64,data!W96)) -> 0.157 | X32: =IF(ISBLANK(CHOOSE(mySelectedAgeGroup,data!X32,data!X64,data!X96)),"",CHOOSE(mySelectedAgeGroup,data!X32,data!X64,data!X96)) -> 0.178 | Y32: =IF(ISBLANK(CHOOSE(mySelectedAgeGroup,data!Y32,data!Y64,data!Y96)),"",CHOOSE(mySelectedAgeGroup,data!Y32,data!Y64,data!Y96)) -> 0.192 | Z32: =IF(ISBLANK(CHOOSE(mySelectedAgeGroup,data!Z32,data!Z64,data!Z96)),"",CHOOSE(mySelectedAgeGroup,data!Z32,data!Z64,data!Z96)) -> 0.225 | AA32: =IF(ISBLANK(CHOOSE(mySelectedAgeGroup,data!AA32,data!AA64,data!AA96)),"",CHOOSE(mySelectedAgeGroup,data!AA32,data!AA64,data!AA96)) -> 0.238 | AB32: =IF(ISBLANK(CHOOSE(mySelectedAgeGroup,data!AB32,data!AB64,data!AB96)),"",CHOOSE(mySelectedAgeGroup,data!AB32,data!AB64,data!AB96)) -> 0.223 | AC32: =IF(ISBLANK(CHOOSE(mySelectedAgeGroup,data!AC32,data!AC64,data!AC96)),"",CHOOSE(mySelectedAgeGroup,data!AC32,data!AC64,data!AC96)) -> 0.202 | AD32: =IF(ISBLANK(CHOOSE(mySelectedAgeGroup,data!AD32,data!AD64,data!AD96)),"",CHOOSE(mySelectedAgeGroup,data!AD32,data!AD64,data!AD96)) -> 0.179 | AE32: =IF(ISBLANK(CHOOSE(mySelectedAgeGroup,data!AE32,data!AE64,data!AE96)),"",CHOOSE(mySelectedAgeGroup,data!AE32,data!AE64,data!AE96)) -> 0.157 | AF32: =IF(ISBLANK(CHOOSE(mySelectedAgeGroup,data!AF32,data!AF64,data!AF96)),"",CHOOSE(mySelectedAgeGroup,data!AF32,data!AF64,data!AF96)) -> 0.139 | AG32: =IF(ISBLANK(CHOOSE(mySelectedAgeGroup,data!AG32,data!AG64,data!AG96)),"",CHOOSE(mySelectedAgeGroup,data!AG32,data!AG64,data!AG96)) -> 0.128 | AH32: =IF(ISBLANK(CHOOSE(mySelectedAgeGroup,data!AH32,data!AH64,data!AH96)),"",CHOOSE(mySelectedAgeGroup,data!AH32,data!AH64,data!AH96)) -> 0.136
C33: =data!B33 -> Sweden | D33: =IF(ISBLANK(CHOOSE(mySelectedAgeGroup,data!D33,data!D65,data!D97)),"",CHOOSE(mySelectedAgeGroup,data!D33,data!D65,data!D97)) -> 0.012 | E33: =IF(ISBLANK(CHOOSE(mySelectedAgeGroup,data!E33,data!E65,data!E97)),"",CHOOSE(mySelectedAgeGroup,data!E33,data!E65,data!E97)) -> 0.023 | F33: =IF(ISBLANK(CHOOSE(mySelectedAgeGroup,data!F33,data!F65,data!F97)),"",CHOOSE(mySelectedAgeGroup,data!F33,data!F65,data!F97)) -> 0.044 | G33: =IF(ISBLANK(CHOOSE(mySelectedAgeGroup,data!G33,data!G65,data!G97)),"",CHOOSE(mySelectedAgeGroup,data!G33,data!G65,data!G97)) -> 0.072 | H33: =IF(ISBLANK(CHOOSE(mySelectedAgeGroup,data!H33,data!H65,data!H97)),"",CHOOSE(mySelectedAgeGroup,data!H33,data!H65,data!H97)) -> 0.076 | I33: =IF(ISBLANK(CHOOSE(mySelectedAgeGroup,data!I33,data!I65,data!I97)),"",CHOOSE(mySelectedAgeGroup,data!I33,data!I65,data!I97)) ->  | J33: =IF(ISBLANK(CHOOSE(mySelectedAgeGroup,data!J33,data!J65,data!J97)),"",CHOOSE(mySelectedAgeGroup,data!J33,data!J65,data!J97)) -> 0.083 | K33: =IF(ISBLANK(CHOOSE(mySelectedAgeGroup,data!K33,data!K65,data!K97)),"",CHOOSE(mySelectedAgeGroup,data!K33,data!K65,data!K97)) -> 0.089 | L33: =IF(ISBLANK(CHOOSE(mySelectedAgeGroup,data!L33,data!L65,data!L97)),"",CHOOSE(mySelectedAgeGroup,data!L33,data!L65,data!L97)) -> 0.079 | M33: =IF(ISBLANK(CHOOSE(mySelectedAgeGroup,data!M33,data!M65,data!M97)),"",CHOOSE(mySelectedAgeGroup,data!M33,data!M65,data!M97)) -> 0.065 | N33: =IF(ISBLANK(CHOOSE(mySelectedAgeGroup,data!N33,data!N65,data!N97)),"",CHOOSE(mySelectedAgeGroup,data!N33,data!N65,data!N97)) -> 0.049 | O33: =IF(ISBLANK(CHOOSE(mySelectedAgeGroup,data!O33,data!O65,data!O97)),"",CHOOSE(mySelectedAgeGroup,data!O33,data!O65,data!O97)) -> 0.04 | P33: =IF(ISBLANK(CHOOSE(mySelectedAgeGroup,data!P33,data!P65,data!P97)),"",CHOOSE(mySelectedAgeGroup,data!P33,data!P65,data!P97)) -> 0.041 | Q33: =IF(ISBLANK(CHOOSE(mySelectedAgeGroup,data!Q33,data!Q65,data!Q97)),"",CHOOSE(mySelectedAgeGroup,data!Q33,data!Q65,data!Q97)) -> 0.047 | R33: =IF(ISBLANK(CHOOSE(mySelectedAgeGroup,data!R33,data!R65,data!R97)),"",CHOOSE(mySelectedAgeGroup,data!R33,data!R65,data!R97)) -> 0.052 | S33: =IF(ISBLANK(CHOOSE(mySelectedAgeGroup,data!S33,data!S65,data!S97)),"",CHOOSE(mySelectedAgeGroup,data!S33,data!S65,data!S97)) -> 0.056 | T33: =IF(ISBLANK(CHOOSE(mySelectedAgeGroup,data!T33,data!T65,data!T97)),"",CHOOSE(mySelectedAgeGroup,data!T33,data!T65,data!T97)) -> 0.05 | U33: =IF(ISBLANK(CHOOSE(mySelectedAgeGroup,data!U33,data!U65,data!U97)),"",CHOOSE(mySelectedAgeGroup,data!U33,data!U65,data!U97)) -> 0.043 | V33: =IF(ISBLANK(CHOOSE(mySelectedAgeGroup,data!V33,data!V65,data!V97)),"",CHOOSE(mySelectedAgeGroup,data!V33,data!V65,data!V97)) -> 0.041 | W33: =IF(ISBLANK(CHOOSE(mySelectedAgeGroup,data!W33,data!W65,data!W97)),"",CHOOSE(mySelectedAgeGroup,data!W33,data!W65,data!W97)) -> 0.059 | X33: =IF(ISBLANK(CHOOSE(mySelectedAgeGroup,data!X33,data!X65,data!X97)),"",CHOOSE(mySelectedAgeGroup,data!X33,data!X65,data!X97)) -> 0.062 | Y33: =IF(ISBLANK(CHOOSE(mySelectedAgeGroup,data!Y33,data!Y65,data!Y97)),"",CHOOSE(mySelectedAgeGroup,data!Y33,data!Y65,data!Y97)) -> 0.055 | Z33: =IF(ISBLANK(CHOOSE(mySelectedAgeGroup,data!Z33,data!Z65,data!Z97)),"",CHOOSE(mySelectedAgeGroup,data!Z33,data!Z65,data!Z97)) -> 0.057 | AA33: =IF(ISBLANK(CHOOSE(mySelectedAgeGroup,data!AA33,data!AA65,data!AA97)),"",CHOOSE(mySelectedAgeGroup,data!AA33,data!AA65,data!AA97)) -> 0.057 | AB33: =IF(ISBLANK(CHOOSE(mySelectedAgeGroup,data!AB33,data!AB65,data!AB97)),"",CHOOSE(mySelectedAgeGroup,data!AB33,data!AB65,data!AB97)) -> 0.057 | AC33: =IF(ISBLANK(CHOOSE(mySelectedAgeGroup,data!AC33,data!AC65,data!AC97)),"",CHOOSE(mySelectedAgeGroup,data!AC33,data!AC65,data!AC97)) -> 0.056 | AD33: =IF(ISBLANK(CHOOSE(mySelectedAgeGroup,data!AD33,data!AD65,data!AD97)),"",CHOOSE(mySelectedAgeGroup,data!AD33,data!AD65,data!AD97)) -> 0.053 | AE33: =IF(ISBLANK(CHOOSE(mySelectedAgeGroup,data!AE33,data!AE65,data!AE97)),"",CHOOSE(mySelectedAgeGroup,data!AE33,data!AE65,data!AE97)) -> 0.052 | AF33: =IF(ISBLANK(CHOOSE(mySelectedAgeGroup,data!AF33,data!AF65,data!AF97)),"",CHOOSE(mySelectedAgeGroup,data!AF33,data!AF65,data!AF97)) -> 0.049 | AG33: =IF(ISBLANK(CHOOSE(mySelectedAgeGroup,data!AG33,data!AG65,data!AG97)),"",CHOOSE(mySelectedAgeGroup,data!AG33,data!AG65,data!AG97)) -> 0.051 | AH33: =IF(ISBLANK(CHOOSE(mySelectedAgeGroup,data!AH33,data!AH65,data!AH97)),"",CHOOSE(mySelectedAgeGroup,data!AH33,data!AH65,data!AH97)) -> 0.054
C34: =data!B34 -> United Kingdom | D34: =IF(ISBLANK(CHOOSE(mySelectedAgeGroup,data!D34,data!D66,data!D98)),"",CHOOSE(mySelectedAgeGroup,data!D34,data!D66,data!D98)) -> 0.06 | E34: =IF(ISBLANK(CHOOSE(mySelectedAgeGroup,data!E34,data!E66,data!E98)),"",CHOOSE(mySelectedAgeGroup,data!E34,data!E66,data!E98)) -> 0.073 | F34: =IF(ISBLANK(CHOOSE(mySelectedAgeGroup,data!F34,data!F66,data!F98)),"",CHOOSE(mySelectedAgeGroup,data!F34,data!F66,data!F98)) -> 0.083 | G34: =IF(ISBLANK(CHOOSE(mySelectedAgeGroup,data!G34,data!G66,data!G98)),"",CHOOSE(mySelectedAgeGroup,data!G34,data!G66,data!G98)) -> 0.086 | H34: =IF(ISBLANK(CHOOSE(mySelectedAgeGroup,data!H34,data!H66,data!H98)),"",CHOOSE(mySelectedAgeGroup,data!H34,data!H66,data!H98)) -> 0.079 | I34: =IF(ISBLANK(CHOOSE(mySelectedAgeGroup,data!I34,data!I66,data!I98)),"",CHOOSE(mySelectedAgeGroup,data!I34,data!I66,data!I98)) -> 0.073 | J34: =IF(ISBLANK(CHOOSE(mySelectedAgeGroup,data!J34,data!J66,data!J98)),"",CHOOSE(mySelectedAgeGroup,data!J34,data!J66,data!J98)) -> 0.067 | K34: =IF(ISBLANK(CHOOSE(mySelectedAgeGroup,data!K34,data!K66,data!K98)),"",CHOOSE(mySelectedAgeGroup,data!K34,data!K66,data!K98)) -> 0.058 | L34: =IF(ISBLANK(CHOOSE(mySelectedAgeGroup,data!L34,data!L66,data!L98)),"",CHOOSE(mySelectedAgeGroup,data!L34,data!L66,data!L98)) -> 0.051 | M34: =IF(ISBLANK(CHOOSE(mySelectedAgeGroup,data!M34,data!M66,data!M98)),"",CHOOSE(mySelectedAgeGroup,data!M34,data!M66,data!M98)) -> 0.048 | N34: =IF(ISBLANK(CHOOSE(mySelectedAgeGroup,data!N34,data!N66,data!N98)),"",CHOOSE(mySelectedAgeGroup,data!N34,data!N66,data!N98)) -> 0.043 | O34: =IF(ISBLANK(CHOOSE(mySelectedAgeGroup,data!O34,data!O66,data!O98)),"",CHOOSE(mySelectedAgeGroup,data!O34,data!O66,data!O98)) -> 0.038 | P34: =IF(ISBLANK(CHOOSE(mySelectedAgeGroup,data!P34,data!P66,data!P98)),"",CHOOSE(mySelectedAgeGroup,data!P34,data!P66,data!P98)) -> 0.039 | Q34: =IF(ISBLANK(CHOOSE(mySelectedAgeGroup,data!Q34,data!Q66,data!Q98)),"",CHOOSE(mySelectedAgeGroup,data!Q34,data!Q66,data!Q98)) -> 0.037 | R34: =IF(ISBLANK(CHOOSE(mySelectedAgeGroup,data!R34,data!R66,data!R98)),"",CHOOSE(mySelectedAgeGroup,data!R34,data!R66,data!R98)) -> 0.034 | S34: =IF(ISBLANK(CHOOSE(mySelectedAgeGroup,data!S34,data!S66,data!S98)),"",CHOOSE(mySelectedAgeGroup,data!S34,data!S66,data!S98)) -> 0.033 | T34: =IF(ISBLANK(CHOOSE(mySelectedAgeGroup,data!T34,data!T66,data!T98)),"",CHOOSE(mySelectedAgeGroup,data!T34,data!T66,data!T98)) -> 0.038 | U34: =IF(ISBLANK(CHOOSE(mySelectedAgeGroup,data!U34,data!U66,data!U98)),"",CHOOSE(mySelectedAgeGroup,data!U34,data!U66,data!U98)) -> 0.036 | V34: =IF(ISBLANK(CHOOSE(mySelectedAgeGroup,data!V34,data!V66,data!V98)),"",CHOOSE(mySelectedAgeGroup,data!V34,data!V66,data!V98)) -> 0.039 | W34: =IF(ISBLANK(CHOOSE(mySelectedAgeGroup,data!W34,data!W66,data!W98)),"",CHOOSE(mySelectedAgeGroup,data!W34,data!W66,data!W98)) -> 0.056 | X34: =IF(ISBLANK(CHOOSE(mySelectedAgeGroup,data!X34,data!X66,data!X98)),"",CHOOSE(mySelectedAgeGroup,data!X34,data!X66,data!X98)) -> 0.058 | Y34: =IF(ISBLANK(CHOOSE(mySelectedAgeGroup,data!Y34,data!Y66,data!Y98)),"",CHOOSE(mySelectedAgeGroup,data!Y34,data!Y66,data!Y98)) -> 0.058 | Z34: =IF(ISBLANK(CHOOSE(mySelectedAgeGroup,data!Z34,data!Z66,data!Z98)),"",CHOOSE(mySelectedAgeGroup,data!Z34,data!Z66,data!Z98)) -> 0.057 | AA34: =IF(ISBLANK(CHOOSE(mySelectedAgeGroup,data!AA34,data!AA66,data!AA98)),"",CHOOSE(mySelectedAgeGroup,data!AA34,data!AA66,data!AA98)) -> 0.054 | AB34: =IF(ISBLANK(CHOOSE(mySelectedAgeGroup,data!AB34,data!AB66,data!AB98)),"",CHOOSE(mySelectedAgeGroup,data!AB34,data!AB66,data!AB98)) -> 0.044 | AC34: =IF(ISBLANK(CHOOSE(mySelectedAgeGroup,data!AC34,data!AC66,data!AC98)),"",CHOOSE(mySelectedAgeGroup,data!AC34,data!AC66,data!AC98)) -> 0.038 | AD34: =IF(ISBLANK(CHOOSE(mySelectedAgeGroup,data!AD34,data!AD66,data!AD98)),"",CHOOSE(mySelectedAgeGroup,data!AD34,data!AD66,data!AD98)) -> 0.036 | AE34: =IF(ISBLANK(CHOOSE(mySelectedAgeGroup,data!AE34,data!AE66,data!AE98)),"",CHOOSE(mySelectedAgeGroup,data!AE34,data!AE66,data!AE98)) -> 0.032 | AF34: =IF(ISBLANK(CHOOSE(mySelectedAgeGroup,data!AF34,data!AF66,data!AF98)),"",CHOOSE(mySelectedAgeGroup,data!AF34,data!AF66,data!AF98)) -> 0.03 | AG34: =IF(ISBLANK(CHOOSE(mySelectedAgeGroup,data!AG34,data!AG66,data!AG98)),"",CHOOSE(mySelectedAgeGroup,data!AG34,data!AG66,data!AG98)) -> 0.027 | AH34: =IF(ISBLANK(CHOOSE(mySelectedAgeGroup,data!AH34,data!AH66,data!AH98)),"",CHOOSE(mySelectedAgeGroup,data!AH34,data!AH66,data!AH98)) -> 0.028
B36: Current selections
C38: Selected country | D38: =INDEX($C$7:$C$34,control!$C$9,1) -> Spain
C39: Shape name | D39: =INDEX(myShapeNames,control!$C$9,1) -> S_ESP
C40: Selected year | D40: =INDEX($D$6:$AH$6,1,mySelectedYear) -> 2019-01-01
B42: Sorted Bar Chart
B44: # | C44: Country | D44: =$D$40 -> 2019-01-01 | E44: =$D$40 -> 2019-01-01 | F44: Sort Dummy | G44: Sort Pos | H44: Sort Country | I44: Sort Value | J44: Selected | K44: Others
B45: 1 | C45: =C7 -> Austria | D45: =INDEX($D7:$AH7,1,mySelectedYear) -> 0.04 | E45: =IF(D45="",0,D45) -> 0.04 | F45: =E45+B45/100000000 -> 0.04000001 | G45: =MATCH(LARGE($F$45:$F$72,B45),$F$45:$F$72,0) -> 12 | H45: =INDEX($C$45:$C$72,$G45,1) -> Greece | I45: =INDEX($E$45:$E$72,$G45,1) -> 0.164 | J45: =IF($H45=$D$38,$I45,0) -> 0 | K45: =IF($H45<>$D$38,$I45,0) -> 0.164
B46: 2 | C46: Belgium | D46: 0.046 | E46: =IF(D46="",0,D46) -> 0.046 | F46: 0.04600002 | G46: 26 | H46: =INDEX($C$45:$C$72,G46,1) -> Spain | I46: 0.128 | J46: 0.128 | K46: 0
B47: 3 | C47: Bulgaria | D47: 0.04 | E47: 0.04 | F47: 0.04000003 | G47: 15 | H47: Italy | I47: 0.088 | J47: 0 | K47: 0.088
B48: 4 | C48: Croatia | D48: 0.057 | E48: 0.057 | F48: 0.05700004 | G48: 10 | H48: France | I48: 0.073 | J48: 0 | K48: 0.073
B49: 5 | C49: Cyprus | D49: 0.063 | E49: 0.063 | F49: 0.06300005 | G49: 5 | H49: Cyprus | I49: 0.063 | J49: 0 | K49: 0.063
B50: 6 | C50: Czech Republic | D50: 0.018 | E50: 0.018 | F50: 0.01800006 | G50: 16 | H50: Latvia | I50: 0.059 | J50: 0 | K50: 0.059
B51: 7 | C51: Denmark | D51: 0.042 | E51: 0.042 | F51: 0.04200007 | G51: 17 | H51: Lithuania | I51: 0.058 | J51: 0 | K51: 0.058
B52: 8 | C52: Estonia | D52: 0.039 | E52: 0.039 | F52: 0.03900008 | G52: 4 | H52: Croatia | I52: 0.057 | J52: 0 | K52: 0.057
B53: 9 | C53: Finland | D53: 0.053 | E53: 0.053 | F53: 0.05300009 | G53: 22 | H53: Portugal | I53: 0.056 | J53: 0 | K53: 0.056
B54: 10 | C54: France | D54: 0.073 | E54: 0.073 | F54: 0.0730001 | G54: 9 | H54: Finland | I54: 0.053 | J54: 0 | K54: 0.053
B55: 11 | C55: Germany | D55: 0.029 | E55: 0.029 | F55: 0.02900011 | G55: 27 | H55: Sweden | I55: 0.051 | J55: 0 | K55: 0.051
B56: 12 | C56: Greece | D56: 0.164 | E56: 0.164 | F56: 0.16400012 | G56: 24 | H56: Slovakia | I56: 0.051 | J56: 0 | K56: 0.051
B57: 13 | C57: Hungary | D57: 0.028 | E57: 0.028 | F57: 0.02800013 | G57: 18 | H57: Luxembourg | I57: 0.046 | J57: 0 | K57: 0.046
B58: 14 | C58: Ireland | D58: 0.04 | E58: 0.04 | F58: 0.04000014 | G58: 2 | H58: Belgium | I58: 0.046 | J58: 0 | K58: 0.046
B59: 15 | C59: Italy | D59: 0.088 | E59: 0.088 | F59: 0.08800015 | G59: 25 | H59: Slovenia | I59: 0.042 | J59: 0 | K59: 0.042
B60: 16 | C60: Latvia | D60: 0.059 | E60: 0.059 | F60: 0.05900016 | G60: 7 | H60: Denmark | I60: 0.042 | J60: 0 | K60: 0.042
B61: 17 | C61: Lithuania | D61: 0.058 | E61: 0.058 | F61: 0.05800017 | G61: 14 | H61: Ireland | I61: 0.04 | J61: 0 | K61: 0.04
B62: 18 | C62: Luxembourg | D62: 0.046 | E62: 0.046 | F62: 0.04600018 | G62: 3 | H62: Bulgaria | I62: 0.04 | J62: 0 | K62: 0.04
B63: 19 | C63: Malta | D63: 0.026 | E63: 0.026 | F63: 0.02600019 | G63: 1 | H63: Austria | I63: 0.04 | J63: 0 | K63: 0.04
B64: 20 | C64: Netherlands | D64: 0.028 | E64: 0.028 | F64: 0.0280002 | G64: 8 | H64: Estonia | I64: 0.039 | J64: 0 | K64: 0.039
B65: 21 | C65: Poland | D65: 0.028 | E65: 0.028 | F65: 0.02800021 | G65: 23 | H65: Romania | I65: 0.03 | J65: 0 | K65: 0.03
B66: 22 | C66: Portugal | D66: 0.056 | E66: 0.056 | F66: 0.05600022 | G66: 11 | H66: Germany | I66: 0.029 | J66: 0 | K66: 0.029
B67: 23 | C67: Romania | D67: 0.03 | E67: 0.03 | F67: 0.03000023 | G67: 21 | H67: Poland | I67: 0.028 | J67: 0 | K67: 0.028
B68: 24 | C68: Slovakia | D68: 0.051 | E68: 0.051 | F68: 0.05100024 | G68: 20 | H68: Netherlands | I68: 0.028 | J68: 0 | K68: 0.028
B69: 25 | C69: Slovenia | D69: 0.042 | E69: 0.042 | F69: 0.04200025 | G69: 13 | H69: Hungary | I69: 0.028 | J69: 0 | K69: 0.028
B70: 26 | C70: Spain | D70: 0.128 | E70: 0.128 | F70: 0.12800026 | G70: 28 | H70: United Kingdom | I70: 0.027 | J70: 0 | K70: 0.027
B71: 27 | C71: Sweden | D71: 0.051 | E71: 0.051 | F71: 0.05100027 | G71: 19 | H71: Malta | I71: 0.026 | J71: 0 | K71: 0.026
B72: 28 | C72: United Kingdom | D72: 0.027 | E72: 0.027 | F72: 0.02700028 | G72: 6 | H72: Czech Republic | I72: 0.018 | J72: 0 | K72: 0.018
B74: Band Chart
C76: Country | D76: =D6 -> 1990-01-01 | E76: 1991-01-01 | F76: 1992-01-01 | G76: 1993-01-01 | H76: 1994-01-01 | I76: 1995-01-01 | J76: 1996-01-01 | K76: 1997-01-01 | L76: 1998-01-01 | M76: 1999-01-01 | N76: 2000-01-01 | O76: 2001-01-01 | P76: 2002-01-01 | Q76: 2003-01-01 | R76: 2004-01-01 | S76: 2005-01-01 | T76: 2006-01-01 | U76: 2007-01-01 | V76: 2008-01-01 | W76: 2009-01-01 | X76: 2010-01-01 | Y76: 2011-01-01 | Z76: 2012-01-01 | AA76: 2013-01-01 | AB76: 2014-01-01 | AC76: =AC6 -> 2015-01-01 | AD76: 2016-01-01 | AE76: 2017-01-01 | AF76: 2018-01-01 | AG76: 2019-01-01 | AH76: 2020-01-01
C77: =$D$38 -> Spain | D77: =IF(INDEX(D$7:D$34,mySelectedCountry,1)="",NA(),INDEX(D$7:D$34,mySelectedCountry,1)) -> 0.117 | E77: 0.122 | F77: 0.136 | G77: 0.166 | H77: 0.179 | I77: 0.19 | J77: 0.184 | K77: 0.173 | L77: 0.157 | M77: 0.134 | N77: 0.119 | O77: 0.089 | P77: 0.098 | Q77: 0.099 | R77: 0.095 | S77: 0.077 | T77: 0.072 | U77: 0.07 | V77: 0.097 | W77: 0.157 | X77: 0.178 | Y77: 0.192 | Z77: 0.225 | AA77: 0.238 | AB77: 0.223 | AC77: 0.202 | AD77: 0.179 | AE77: 0.157 | AF77: 0.139 | AG77: 0.128 | AH77: 0.136
C78: Min | D78: =MIN(D$7:D$34) -> 0.012 | E78: =MIN(E$7:E$34) -> 0.014 | F78: 0.018 | G78: 0.022 | H78: 0.026 | I78: 0.023 | J78: 0.023 | K78: 0.02 | L78: 0.021 | M78: 0.019 | N78: 0.019 | O78: 0.018 | P78: 0.023 | Q78: 0.031 | R78: 0.034 | S78: 0.033 | T78: 0.032 | U78: 0.032 | V78: 0.026 | W78: 0.032 | X78: 0.037 | Y78: 0.039 | Z78: 0.042 | AA78: 0.047 | AB78: 0.044 | AC78: 0.038 | AD78: 0.035 | AE78: 0.026 | AF78: 0.02 | AG78: 0.018 | AH78: 0.017
C79: Max | D79: =MAX(D$7:D$34) -> 0.117 | E79: =MAX(E$7:E$34) -> 0.126 | F79: 0.136 | G79: 0.166 | H79: 0.179 | I79: 0.19 | J79: 0.184 | K79: 0.173 | L79: 0.157 | M79: 0.134 | N79: 0.153 | O79: 0.179 | P79: 0.165 | Q79: 0.163 | R79: 0.161 | S79: 0.151 | T79: 0.118 | U79: 0.1 | V79: 0.097 | W79: 0.157 | X79: 0.178 | Y79: 0.192 | Z79: 0.225 | AA79: 0.254 | AB79: 0.248 | AC79: 0.234 | AD79: 0.222 | AE79: 0.202 | AF79: 0.182 | AG79: 0.164 | AH79: 0.16
C80: Average (unweighted) | D80: =IFERROR(AVERAGE(D$7:D$34),NA()) -> 0.05454545455 | E80: =IFERROR(AVERAGE(E$7:E$34),NA()) -> 0.06041666667 | F80: 0.06976923077 | G80: 0.07985714286 | H80: 0.07946666667 | I80: 0.077 | J80: 0.07978571429 | K80: 0.078 | L80: 0.07304 | M80: 0.07312 | N80: 0.07740740741 | O80: 0.07485185185 | P80: 0.07448148148 | Q80: 0.07314285714 | R80: 0.07428571429 | S80: 0.07035714286 | T80: 0.06253571429 | U80: 0.05457142857 | V80: 0.05292857143 | W80: 0.07514285714 | X80: 0.08682142857 | Y80: 0.08675 | Z80: 0.09342857143 | AA80: 0.09703571429 | AB80: 0.09185714286 | AC80: 0.08478571429 | AD80: 0.07621428571 | AE80: 0.06667857143 | AF80: 0.05753571429 | AG80: 0.05178571429 | AH80: 0.05417857143
C81: Range | D81: =IF(INDEX(D$7:D$34,mySelectedCountry,1)="",NA(),D79-D78) -> 0.105 | E81: 0.112 | F81: 0.118 | G81: 0.144 | H81: 0.153 | I81: 0.167 | J81: 0.161 | K81: 0.153 | L81: 0.136 | M81: 0.115 | N81: 0.134 | O81: 0.161 | P81: 0.142 | Q81: 0.132 | R81: 0.127 | S81: 0.118 | T81: 0.086 | U81: 0.068 | V81: 0.071 | W81: 0.125 | X81: 0.141 | Y81: 0.153 | Z81: 0.183 | AA81: 0.207 | AB81: 0.204 | AC81: 0.196 | AD81: 0.187 | AE81: 0.176 | AF81: 0.162 | AG81: 0.146 | AH81: 0.143
C82: Selected Year | D82: =IF(D76=$D$40,$D$83,NA()) ->  | AC82: =IF(AC76=$D$40,$D$83,NA()) ->  | AG82: 0.254
C83: Max | D83: =MAX(D79:AB79) -> 0.254
B85: Line Chart
C87: Country | D87: =D6 -> 1990-01-01 | E87: 1991-01-01 | F87: 1992-01-01 | G87: 1993-01-01 | H87: 1994-01-01 | I87: 1995-01-01 | J87: 1996-01-01 | K87: 1997-01-01 | L87: 1998-01-01 | M87: 1999-01-01 | N87: 2000-01-01 | O87: 2001-01-01 | P87: 2002-01-01 | Q87: 2003-01-01 | R87: 2004-01-01 | S87: 2005-01-01 | T87: 2006-01-01 | U87: 2007-01-01 | V87: 2008-01-01 | W87: 2009-01-01 | X87: 2010-01-01 | Y87: 2011-01-01 | Z87: 2012-01-01 | AA87: 2013-01-01 | AB87: 2014-01-01 | AC87: =AC6 -> 2015-01-01 | AD87: 2016-01-01 | AE87: 2017-01-01 | AF87: 2018-01-01 | AG87: 2019-01-01 | AH87: 2020-01-01
C88: =C7 -> Austria | D88: =IF(OR($C88=$D$38,D7=""),NA(),D7) ->  | H88: 0.035 | I88: 0.039 | J88: 0.043 | K88: 0.042 | L88: 0.041 | M88: 0.035 | N88: 0.033 | O88: 0.033 | P88: 0.036 | Q88: 0.039 | R88: 0.047 | S88: 0.047 | T88: 0.045 | U88: 0.041 | V88: 0.034 | W88: 0.044 | X88: 0.041 | Y88: 0.039 | Z88: 0.042 | AA88: 0.047 | AB88: 0.049 | AC88: =IF(OR($C88=$D$38,AC7=""),NA(),AC7) -> 0.05 | AD88: 0.053 | AE88: 0.049 | AF88: 0.043 | AG88: 0.04 | AH88: 0.045
C89: Belgium | D89: =IF(OR($C89=$D$38,D8=""),NA(),D8) -> 0.054 | E89: 0.054 | F89: 0.06 | G89: 0.071 | H89: 0.081 | I89: 0.081 | J89: 0.082 | K89: 0.079 | L89: 0.08 | M89: 0.072 | N89: 0.059 | O89: 0.054 | P89: 0.064 | Q89: 0.067 | R89: 0.07 | S89: 0.071 | T89: 0.07 | U89: 0.063 | V89: 0.059 | W89: 0.066 | X89: 0.07 | Y89: 0.06 | Z89: 0.064 | AA89: 0.071 | AB89: 0.073 | AC89: =IF(OR($C89=$D$38,AC8=""),NA(),AC8) -> 0.073 | AD89: 0.068 | AE89: 0.061 | AF89: 0.052 | AG89: 0.046 | AH89: 0.045
C90: Bulgaria | D90: =IF(OR($C90=$D$38,D9=""),NA(),D9) ->  | N90: 0.148 | O90: 0.179 | P90: 0.161 | Q90: 0.122 | R90: 0.107 | S90: 0.089 | T90: 0.079 | U90: 0.061 | V90: 0.05 | W90: 0.06 | X90: 0.092 | Y90: 0.101 | Z90: 0.11 | AA90: 0.118 | AB90: 0.107 | AC90: =IF(OR($C90=$D$38,AC9=""),NA(),AC9) -> 0.084 | AD90: 0.071 | AE90: 0.058 | AF90: 0.049 | AG90: 0.04 | AH90: 0.044
C91: Croatia | D91: =IF(OR($C91=$D$38,D10=""),NA(),D10) ->  | N91: 0.125 | O91: 0.128 | P91: 0.119 | Q91: 0.113 | R91: 0.111 | S91: 0.103 | T91: 0.092 | U91: 0.082 | V91: 0.069 | W91: 0.075 | X91: 0.095 | Y91: 0.116 | Z91: 0.137 | AA91: 0.144 | AB91: 0.146 | AC91: =IF(OR($C91=$D$38,AC10=""),NA(),AC10) -> 0.138 | AD91: 0.112 | AE91: 0.096 | AF91: 0.07 | AG91: 0.057 | AH91: 0.063
C92: Cyprus | D92: =IF(OR($C92=$D$38,D11=""),NA(),D11) ->  | K92: 0.042 | L92: 0.043 | M92: 0.045 | N92: 0.042 | O92: 0.034 | P92: 0.031 | Q92: 0.037 | R92: 0.041 | S92: 0.043 | T92: 0.039 | U92: 0.033 | V92: 0.031 | W92: 0.044 | X92: 0.051 | Y92: 0.064 | Z92: 0.102 | AA92: 0.136 | AB92: 0.14 | AC92: =IF(OR($C92=$D$38,AC11=""),NA(),AC11) -> 0.132 | AD92: 0.115 | AE92: 0.099 | AF92: 0.073 | AG92: 0.063 | AH92: 0.066
C93: Czech Republic | D93: =IF(OR($C93=$D$38,D12=""),NA(),D12) ->  | G93: 0.035 | H93: 0.034 | L93: 0.053 | M93: 0.072 | N93: 0.074 | O93: 0.069 | P93: 0.062 | Q93: 0.066 | R93: 0.07 | S93: 0.068 | T93: 0.062 | U93: 0.048 | V93: 0.039 | W93: 0.058 | X93: 0.064 | Y93: 0.059 | Z93: 0.06 | AA93: 0.061 | AB93: 0.054 | AC93: =IF(OR($C93=$D$38,AC12=""),NA(),AC12) -> 0.045 | AD93: 0.035 | AE93: 0.026 | AF93: 0.02 | AG93: 0.018 | AH93: 0.017
C94: Denmark | D94: =IF(OR($C94=$D$38,D13=""),NA(),D13) -> 0.064 | E94: 0.072 | F94: 0.079 | G94: 0.089 | H94: 0.072 | I94: 0.066 | J94: 0.061 | K94: 0.051 | L94: 0.049 | M94: 0.049 | N94: 0.043 | O94: 0.04 | P94: 0.041 | Q94: 0.048 | R94: 0.051 | S94: 0.042 | T94: 0.032 | U94: 0.032 | V94: 0.026 | W94: 0.051 | X94: 0.064 | Y94: 0.062 | Z94: 0.064 | AA94: 0.061 | AB94: 0.057 | AC94: =IF(OR($C94=$D$38,AC13=""),NA(),AC13) -> 0.053 | AD94: 0.049 | AE94: 0.047 | AF94: 0.042 | AG94: 0.042 | AH94: 0.04
C95: Estonia | D95: =IF(OR($C95=$D$38,D14=""),NA(),D14) ->  | K95: 0.092 | L95: 0.092 | M95: 0.113 | N95: 0.134 | O95: 0.119 | P95: 0.105 | Q95: 0.09 | R95: 0.084 | S95: 0.072 | T95: 0.052 | U95: 0.039 | V95: 0.046 | W95: 0.119 | X95: 0.149 | Y95: 0.112 | Z95: 0.089 | AA95: 0.076 | AB95: 0.067 | AC95: =IF(OR($C95=$D$38,AC14=""),NA(),AC14) -> 0.056 | AD95: 0.062 | AE95: 0.052 | AF95: 0.048 | AG95: 0.039 | AH95: 0.046
C96: Finland | D96: =IF(OR($C96=$D$38,D15=""),NA(),D15) -> 0.021 | E96: 0.051 | F96: 0.096 | G96: 0.141 | H96: 0.145 | J96: 0.12 | K96: 0.115 | L96: 0.098 | M96: 0.086 | N96: 0.081 | O96: 0.076 | P96: 0.074 | Q96: 0.072 | R96: 0.072 | S96: 0.068 | T96: 0.062 | U96: 0.054 | V96: 0.049 | W96: 0.064 | X96: 0.066 | Y96: 0.061 | Z96: 0.061 | AA96: 0.065 | AB96: 0.07 | AC96: =IF(OR($C96=$D$38,AC15=""),NA(),AC15) -> 0.076 | AD96: 0.073 | AE96: 0.071 | AF96: 0.061 | AG96: 0.053 | AH96: 0.05
C97: France | D97: =IF(OR($C97=$D$38,D16=""),NA(),D16) -> 0.052 | E97: 0.052 | F97: 0.057 | G97: 0.061 | H97: 0.063 | Q97: 0.073 | R97: 0.075 | S97: 0.075 | T97: 0.073 | U97: 0.067 | V97: 0.061 | W97: 0.074 | X97: 0.077 | Y97: 0.077 | Z97: 0.082 | AA97: 0.088 | AB97: 0.089 | AC97: =IF(OR($C97=$D$38,AC16=""),NA(),AC16) -> 0.089 | AD97: 0.085 | AE97: 0.081 | AF97: 0.078 | AG97: 0.073 | AH97: 0.073
C98: Germany | D98: =IF(OR($C98=$D$38,D17=""),NA(),D17) ->  | E98: 0.055 | F98: 0.066 | G98: 0.077 | H98: 0.084 | I98: 0.083 | J98: 0.09 | K98: 0.098 | L98: 0.096 | M98: 0.087 | N98: 0.078 | O98: 0.08 | P98: 0.086 | Q98: 0.097 | R98: 0.105 | S98: 0.106 | T98: 0.098 | U98: 0.082 | V98: 0.071 | W98: 0.073 | X98: 0.066 | Y98: 0.055 | Z98: 0.051 | AA98: 0.049 | AB98: 0.047 | AC98: =IF(OR($C98=$D$38,AC17=""),NA(),AC17) -> 0.044 | AD98: 0.038 | AE98: 0.034 | AF98: 0.031 | AG98: 0.029 | AH98: 0.036
C99: Greece | D99: =IF(OR($C99=$D$38,D18=""),NA(),D18) ->  | I99: 0.067 | J99: 0.069 | K99: 0.073 | L99: 0.083 | M99: 0.093 | N99: 0.089 | O99: 0.086 | P99: 0.084 | Q99: 0.079 | R99: 0.088 | S99: 0.084 | T99: 0.075 | U99: 0.072 | V99: 0.066 | W99: 0.084 | X99: 0.112 | Y99: 0.159 | Z99: 0.223 | AA99: 0.254 | AB99: 0.248 | AC99: =IF(OR($C99=$D$38,AC18=""),NA(),AC18) -> 0.234 | AD99: 0.222 | AE99: 0.202 | AF99: 0.182 | AG99: 0.164 | AH99: 0.16
C100: Hungary | D100: =IF(OR($C100=$D$38,D19=""),NA(),D19) ->  | K100: 0.077 | L100: 0.073 | M100: 0.06 | N100: 0.054 | O100: 0.05 | P100: 0.05 | Q100: 0.05 | R100: 0.052 | S100: 0.061 | T100: 0.065 | U100: 0.065 | V100: 0.069 | W100: 0.088 | X100: 0.1 | Y100: 0.099 | Z100: 0.097 | AA100: 0.089 | AB100: 0.067 | AC100: =IF(OR($C100=$D$38,AC19=""),NA(),AC19) -> 0.06 | AD100: 0.045 | AE100: 0.036 | AF100: 0.032 | AG100: 0.028 | AH100: 0.032
C101: Ireland | D101: =IF(OR($C101=$D$38,D20=""),NA(),D20) -> 0.117 | E101: 0.126 | F101: 0.13 | G101: 0.131 | H101: 0.122 | I101: 0.104 | J101: 0.1 | K101: 0.086 | L101: 0.067 | M101: 0.05 | N101: 0.038 | O101: 0.033 | P101: 0.037 | Q101: 0.038 | R101: 0.037 | S101: 0.037 | T101: 0.038 | U101: 0.04 | V101: 0.053 | W101: 0.103 | X101: 0.123 | Y101: 0.132 | Z101: 0.132 | AA101: 0.119 | AB101: 0.103 | AC101: =IF(OR($C101=$D$38,AC20=""),NA(),AC20) -> 0.086 | AD101: 0.072 | AE101: 0.057 | AF101: 0.047 | AG101: 0.04 | AH101: 0.041
C102: Italy | D102: =IF(OR($C102=$D$38,D21=""),NA(),D21) ->  | F102: 0.055 | G102: 0.066 | H102: 0.075 | I102: 0.08 | J102: 0.083 | K102: 0.086 | L102: 0.088 | M102: 0.087 | N102: 0.081 | O102: 0.075 | P102: 0.071 | Q102: 0.068 | R102: 0.065 | S102: 0.063 | T102: 0.055 | U102: 0.049 | V102: 0.056 | W102: 0.064 | X102: 0.069 | Y102: 0.069 | Z102: 0.089 | AA102: 0.103 | AB102: 0.107 | AC102: =IF(OR($C102=$D$38,AC21=""),NA(),AC21) -> 0.101 | AD102: 0.1 | AE102: 0.098 | AF102: 0.093 | AG102: 0.088 | AH102: 0.087
C103: Latvia | D103: =IF(OR($C103=$D$38,D22=""),NA(),D22) ->  | K103: 0.124 | L103: 0.123 | M103: 0.125 | N103: 0.132 | O103: 0.125 | P103: 0.114 | Q103: 0.106 | R103: 0.106 | S103: 0.093 | T103: 0.061 | U103: 0.054 | V103: 0.069 | W103: 0.154 | X103: 0.174 | Y103: 0.146 | Z103: 0.136 | AA103: 0.107 | AB103: 0.1 | AC103: =IF(OR($C103=$D$38,AC22=""),NA(),AC22) -> 0.093 | AD103: 0.09 | AE103: 0.081 | AF103: 0.071 | AG103: 0.059 | AH103: 0.07
C104: Lithuania | D104: =IF(OR($C104=$D$38,D23=""),NA(),D23) ->  | K104: 0.113 | L104: 0.119 | M104: 0.127 | N104: 0.148 | O104: 0.157 | P104: 0.128 | Q104: 0.111 | R104: 0.099 | S104: 0.077 | T104: 0.054 | U104: 0.039 | V104: 0.05 | W104: 0.122 | X104: 0.161 | Y104: 0.139 | Z104: 0.122 | AA104: 0.109 | AB104: 0.099 | AC104: =IF(OR($C104=$D$38,AC23=""),NA(),AC23) -> 0.085 | AD104: 0.073 | AE104: 0.066 | AF104: 0.058 | AG104: 0.058 | AH104: 0.07
C105: Luxembourg | D105: =IF(OR($C105=$D$38,D24=""),NA(),D24) -> 0.013 | E105: 0.014 | F105: 0.018 | G105: 0.022 | H105: 0.026 | I105: 0.023 | J105: 0.023 | K105: 0.02 | L105: 0.021 | M105: 0.019 | N105: 0.019 | O105: 0.018 | P105: 0.024 | Q105: 0.031 | R105: 0.042 | S105: 0.038 | T105: 0.039 | U105: 0.033 | V105: 0.04 | W105: 0.041 | X105: 0.037 | Y105: 0.041 | Z105: 0.042 | AA105: 0.052 | AB105: 0.048 | AC105: =IF(OR($C105=$D$38,AC24=""),NA(),AC24) -> 0.057 | AD105: 0.053 | AE105: 0.047 | AF105: 0.049 | AG105: 0.046 | AH105: 0.053
C106: Malta | D106: =IF(OR($C106=$D$38,D25=""),NA(),D25) ->  | K106: 0.047 | L106: 0.047 | M106: 0.047 | N106: 0.047 | O106: 0.043 | P106: 0.048 | Q106: 0.052 | R106: 0.047 | S106: 0.047 | T106: 0.048 | U106: 0.049 | V106: 0.048 | W106: 0.053 | X106: 0.056 | Y106: 0.05 | Z106: 0.048 | AA106: 0.049 | AB106: 0.047 | AC106: =IF(OR($C106=$D$38,AC25=""),NA(),AC25) -> 0.044 | AD106: 0.038 | AE106: 0.031 | AF106: 0.029 | AG106: 0.026 | AH106: 0.027
C107: Netherlands | D107: =IF(OR($C107=$D$38,D26=""),NA(),D26) -> 0.053 | E107: 0.049 | F107: 0.051 | G107: 0.056 | H107: 0.064 | I107: 0.061 | J107: 0.054 | K107: 0.046 | L107: 0.036 | M107: 0.029 | N107: 0.024 | O107: 0.018 | P107: 0.023 | Q107: 0.032 | R107: 0.039 | S107: 0.048 | T107: 0.041 | U107: 0.032 | V107: 0.027 | W107: 0.032 | X107: 0.039 | Y107: 0.04 | Z107: 0.047 | AA107: 0.061 | AB107: 0.065 | AC107: =IF(OR($C107=$D$38,AC26=""),NA(),AC26) -> 0.061 | AD107: 0.051 | AE107: 0.041 | AF107: 0.032 | AG107: 0.028 | AH107: 0.025
C108: Poland | D108: =IF(OR($C108=$D$38,D27=""),NA(),D27) ->  | L108: 0.086 | M108: 0.109 | N108: 0.134 | O108: 0.149 | P108: 0.165 | Q108: 0.163 | R108: 0.161 | S108: 0.151 | T108: 0.118 | U108: 0.081 | V108: 0.059 | W108: 0.068 | X108: 0.081 | Y108: 0.08 | Z108: 0.085 | AA108: 0.088 | AB108: 0.077 | AC108: =IF(OR($C108=$D$38,AC27=""),NA(),AC27) -> 0.064 | AD108: 0.052 | AE108: 0.041 | AF108: 0.032 | AG108: 0.028 | AH108: 0.028
C109: Portugal | D109: =IF(OR($C109=$D$38,D28=""),NA(),D28) -> 0.037 | E109: 0.034 | F109: 0.032 | G109: 0.045 | H109: 0.057 | I109: 0.057 | J109: 0.058 | K109: 0.055 | L109: 0.042 | M109: 0.038 | N109: 0.034 | O109: 0.033 | P109: 0.041 | Q109: 0.053 | R109: 0.057 | S109: 0.067 | T109: 0.068 | U109: 0.072 | V109: 0.068 | W109: 0.086 | X109: 0.1 | Y109: 0.113 | Z109: 0.139 | AA109: 0.147 | AB109: 0.125 | AC109: =IF(OR($C109=$D$38,AC28=""),NA(),AC28) -> 0.111 | AD109: 0.099 | AE109: 0.078 | AF109: 0.061 | AG109: 0.056 | AH109: 0.058
C110: Romania | D110: =IF(OR($C110=$D$38,D29=""),NA(),D29) ->  | L110: 0.043 | M110: 0.05 | N110: 0.054 | O110: 0.05 | P110: 0.065 | Q110: 0.054 | R110: 0.062 | S110: 0.056 | T110: 0.057 | U110: 0.049 | V110: 0.044 | W110: 0.054 | X110: 0.056 | Y110: 0.057 | Z110: 0.054 | AA110: 0.057 | AB110: 0.055 | AC110: =IF(OR($C110=$D$38,AC29=""),NA(),AC29) -> 0.056 | AD110: 0.048 | AE110: 0.039 | AF110: 0.033 | AG110: 0.03 | AH110: 0.038
C111: Slovakia | D111: =IF(OR($C111=$D$38,D30=""),NA(),D30) ->  | K111: 0.098 | L111: 0.101 | M111: 0.129 | N111: 0.153 | O111: 0.157 | P111: 0.153 | Q111: 0.149 | R111: 0.16 | S111: 0.144 | T111: 0.117 | U111: 0.1 | V111: 0.084 | W111: 0.104 | X111: 0.125 | Y111: 0.118 | Z111: 0.122 | AA111: 0.125 | AB111: 0.118 | AC111: =IF(OR($C111=$D$38,AC30=""),NA(),AC30) -> 0.102 | AD111: 0.087 | AE111: 0.073 | AF111: 0.059 | AG111: 0.051 | AH111: 0.049
C112: Slovenia | D112: =IF(OR($C112=$D$38,D31=""),NA(),D31) ->  | K112: 0.052 | L112: 0.058 | M112: 0.059 | N112: 0.055 | O112: 0.048 | P112: 0.051 | Q112: 0.055 | R112: 0.051 | S112: 0.054 | T112: 0.051 | U112: 0.042 | V112: 0.037 | W112: 0.051 | X112: 0.065 | Y112: 0.075 | Z112: 0.079 | AA112: 0.092 | AB112: 0.09 | AC112: =IF(OR($C112=$D$38,AC31=""),NA(),AC31) -> 0.084 | AD112: 0.075 | AE112: 0.062 | AF112: 0.048 | AG112: 0.042 | AH112: 0.036
C113: Spain | D113: =IF(OR($C113=$D$38,D32=""),NA(),D32) ->  | AC113: =IF(OR($C113=$D$38,AC32=""),NA(),AC32) -> 
C114: Sweden | D114: =IF(OR($C114=$D$38,D33=""),NA(),D33) -> 0.012 | E114: 0.023 | F114: 0.044 | G114: 0.072 | H114: 0.076 | J114: 0.083 | K114: 0.089 | L114: 0.079 | M114: 0.065 | N114: 0.049 | O114: 0.04 | P114: 0.041 | Q114: 0.047 | R114: 0.052 | S114: 0.056 | T114: 0.05 | U114: 0.043 | V114: 0.041 | W114: 0.059 | X114: 0.062 | Y114: 0.055 | Z114: 0.057 | AA114: 0.057 | AB114: 0.057 | AC114: =IF(OR($C114=$D$38,AC33=""),NA(),AC33) -> 0.056 | AD114: 0.053 | AE114: 0.052 | AF114: 0.049 | AG114: 0.051 | AH114: 0.054
C115: United Kingdom | D115: =IF(OR($C115=$D$38,D34=""),NA(),D34) -> 0.06 | E115: 0.073 | F115: 0.083 | G115: 0.086 | H115: 0.079 | I115: 0.073 | J115: 0.067 | K115: 0.058 | L115: 0.051 | M115: 0.048 | N115: 0.043 | O115: 0.038 | P115: 0.039 | Q115: 0.037 | R115: 0.034 | S115: 0.033 | T115: 0.038 | U115: 0.036 | V115: 0.039 | W115: 0.056 | X115: 0.058 | Y115: 0.058 | Z115: 0.057 | AA115: 0.054 | AB115: 0.044 | AC115: =IF(OR($C115=$D$38,AC34=""),NA(),AC34) -> 0.038 | AD115: 0.036 | AE115: 0.032 | AF115: 0.03 | AG115: 0.027 | AH115: 0.028
C117: Average (unweighted) | D117: =IFERROR(AVERAGE(D7:D34),NA()) -> 0.05454545455 | E117: =IFERROR(AVERAGE(E7:E34),NA()) -> 0.06041666667 | F117: 0.06976923077 | G117: 0.07985714286 | H117: 0.07946666667 | I117: 0.077 | J117: 0.07978571429 | K117: 0.078 | L117: 0.07304 | M117: 0.07312 | N117: 0.07740740741 | O117: 0.07485185185 | P117: 0.07448148148 | Q117: 0.07314285714 | R117: 0.07428571429 | S117: 0.07035714286 | T117: 0.06253571429 | U117: 0.05457142857 | V117: 0.05292857143 | W117: 0.07514285714 | X117: 0.08682142857 | Y117: 0.08675 | Z117: 0.09342857143 | AA117: 0.09703571429 | AB117: 0.09185714286 | AC117: 0.08478571429 | AD117: 0.07621428571 | AE117: 0.06667857143 | AF117: 0.05753571429 | AG117: 0.05178571429 | AH117: 0.05417857143
C118: =$D$38 -> Spain | D118: =IF(INDEX(D$7:D$34,mySelectedCountry,1)="",NA(),INDEX(D$7:D$34,mySelectedCountry,1)) -> 0.117 | E118: 0.122 | F118: 0.136 | G118: 0.166 | H118: 0.179 | I118: 0.19 | J118: 0.184 | K118: 0.173 | L118: 0.157 | M118: 0.134 | N118: 0.119 | O118: 0.089 | P118: 0.098 | Q118: 0.099 | R118: 0.095 | S118: 0.077 | T118: 0.072 | U118: 0.07 | V118: 0.097 | W118: 0.157 | X118: 0.178 | Y118: 0.192 | Z118: 0.225 | AA118: 0.238 | AB118: 0.223 | AC118: 0.202 | AD118: 0.179 | AE118: 0.157 | AF118: 0.139 | AG118: 0.128 | AH118: 0.136
B120: Scrollable Table
D122: =control!$C$46+1 -> 22 | E122: =D122+1 -> 23 | F122: =E122+1 -> 24 | G122: 25 | H122: 26 | I122: =H122+1 -> 27 | J122: =I122+1 -> 28 | K122: =J122+1 -> 29 | L122: =K122+1 -> 30 | M122: 31
B123: Ndx | C123: Country | D123: =INDEX($D$6:$AH$6,1,D122) -> 2011-01-01 | E123: =INDEX($D$6:$AH$6,1,E122) -> 2012-01-01 | F123: 2013-01-01 | G123: 2014-01-01 | H123: 2015-01-01 | I123: 2016-01-01 | J123: 2017-01-01 | K123: 2018-01-01 | L123: 2019-01-01 | M123: 2020-01-01 | O123: Pos
B124: =control!$C$47+1 -> 19 | C124: =INDEX($C$7:$C$34,$B124,1) -> Malta | D124: =IF(ISBLANK(INDEX($D$7:$AH$34,$B124,D$122)),"",INDEX($D$7:$AH$34,$B124,D$122)) -> 0.05 | E124: =IF(ISBLANK(INDEX($D$7:$AH$34,$B124,E$122)),"",INDEX($D$7:$AH$34,$B124,E$122)) -> 0.048 | F124: 0.049 | G124: 0.047 | H124: 0.044 | I124: 0.038 | J124: 0.031 | K124: 0.029 | L124: 0.026 | M124: 0.027 | O124: =MATCH(C124,myCountryList,0) -> 19
B125: =B124+1 -> 20 | C125: Netherlands | D125: =IF(ISBLANK(INDEX($D$7:$AH$34,$B125,D$122)),"",INDEX($D$7:$AH$34,$B125,D$122)) -> 0.04 | E125: 0.047 | F125: 0.061 | G125: 0.065 | H125: 0.061 | I125: 0.051 | J125: 0.041 | K125: 0.032 | L125: 0.028 | M125: 0.025 | O125: 20
B126: =B125+1 -> 21 | C126: Poland | D126: 0.08 | E126: 0.085 | F126: 0.088 | G126: 0.077 | H126: 0.064 | I126: 0.052 | J126: 0.041 | K126: 0.032 | L126: 0.028 | M126: 0.028 | O126: 21
B127: 22 | C127: Portugal | D127: 0.113 | E127: 0.139 | F127: 0.147 | G127: 0.125 | H127: 0.111 | I127: 0.099 | J127: 0.078 | K127: 0.061 | L127: 0.056 | M127: 0.058 | O127: 22
B128: 23 | C128: Romania | D128: 0.057 | E128: 0.054 | F128: 0.057 | G128: 0.055 | H128: 0.056 | I128: 0.048 | J128: 0.039 | K128: 0.033 | L128: 0.03 | M128: 0.038 | O128: 23
B129: 24 | C129: Slovakia | D129: 0.118 | E129: 0.122 | F129: 0.125 | G129: 0.118 | H129: 0.102 | I129: 0.087 | J129: 0.073 | K129: 0.059 | L129: 0.051 | M129: 0.049 | O129: 24
B130: 25 | C130: Slovenia | D130: 0.075 | E130: 0.079 | F130: 0.092 | G130: 0.09 | H130: 0.084 | I130: 0.075 | J130: 0.062 | K130: 0.048 | L130: 0.042 | M130: 0.036 | O130: 25
B131: 26 | C131: Spain | D131: 0.192 | E131: 0.225 | F131: 0.238 | G131: 0.223 | H131: 0.202 | I131: 0.179 | J131: 0.157 | K131: 0.139 | L131: 0.128 | M131: 0.136 | O131: 26
B132: 27 | C132: Sweden | D132: 0.055 | E132: 0.057 | F132: 0.057 | G132: 0.057 | H132: 0.056 | I132: 0.053 | J132: 0.052 | K132: 0.049 | L132: 0.051 | M132: 0.054 | O132: 27
B133: 28 | C133: United Kingdom | D133: 0.058 | E133: 0.057 | F133: 0.054 | G133: 0.044 | H133: 0.038 | I133: 0.036 | J133: 0.032 | K133: 0.03 | L133: 0.027 | M133: 0.028 | O133: 28
B135: Choropleth Map
B137: # | C137: Country Name | D137: Value | E137: Shape Name | F137: Shape Index
B138: 1 | C138: =C7 -> Austria | D138: =IF(ISBLANK(INDEX($D7:$AH7,1,mySelectedYear)),"",INDEX($D7:$AH7,1,mySelectedYear)) -> 0.04 | E138: S_AUT | F138: 1
B139: 2 | C139: =C8 -> Belgium | D139: 0.046 | E139: S_BEL | F139: 2
B140: 3 | C140: Bulgaria | D140: 0.04 | E140: S_BGR | F140: 3
B141: 4 | C141: Croatia | D141: 0.057 | E141: S_HRV | F141: 4
B142: 5 | C142: Cyprus | D142: 0.063 | E142: S_CYP | F142: 5
B143: 6 | C143: Czech Republic | D143: 0.018 | E143: S_CZE | F143: 6
B144: 7 | C144: Denmark | D144: 0.042 | E144: S_DNK | F144: 7
B145: 8 | C145: Estonia | D145: 0.039 | E145: S_EST | F145: 8
B146: 9 | C146: Finland | D146: 0.053 | E146: S_FIN | F146: 9
B147: 10 | C147: France | D147: 0.073 | E147: S_FRA | F147: 10
B148: 11 | C148: Germany | D148: 0.029 | E148: S_DEU | F148: 11
B149: 12 | C149: Greece | D149: 0.164 | E149: S_GRC | F149: 12
B150: 13 | C150: Hungary | D150: 0.028 | E150: S_HUN | F150: 13
B151: 14 | C151: Ireland | D151: 0.04 | E151: S_IRL | F151: 14
B152: 15 | C152: Italy | D152: 0.088 | E152: S_ITA | F152: 15
B153: 16 | C153: Latvia | D153: 0.059 | E153: S_LVA | F153: 16
B154: 17 | C154: Lithuania | D154: 0.058 | E154: S_LTU | F154: 17
B155: 18 | C155: Luxembourg | D155: 0.046 | E155: S_LUX | F155: 18
B156: 19 | C156: Malta | D156: 0.026 | E156: S_MLT | F156: 19
B157: 20 | C157: Netherlands | D157: 0.028 | E157: S_NLD | F157: 20
B158: 21 | C158: Poland | D158: 0.028 | E158: S_POL | F158: 21
B159: 22 | C159: Portugal | D159: 0.056 | E159: S_PRT | F159: 22
B160: 23 | C160: Romania | D160: 0.03 | E160: S_ROU | F160: 23
B161: 24 | C161: Slovakia | D161: 0.051 | E161: S_SVK | F161: 24
B162: 25 | C162: Slovenia | D162: 0.042 | E162: S_SVN | F162: 25
B163: 26 | C163: Spain | D163: 0.128 | E163: S_ESP | F163: 26
B164: 27 | C164: Sweden | D164: 0.051 | E164: S_SWE | F164: 27
B165: 28 | C165: United Kingdom | D165: 0.027 | E165: S_GBR | F165: 28
B167: Map legend calculations
C169: Maximum value | D169: =MAX($E$45:$E$72) -> 0.164
C170: Step Size | D170: =ROUND(D169/$D$181,2) -> 0.02
C171: Current country bin | D171: =IFERROR(VLOOKUP(INDEX($D$45:$D$72,mySelectedCountry,1),$E$173:$G$181,3,TRUE),control!$E$54) -> 12% to 14%
D173: 1 | E173: 0 | F173: =$D$170 -> 0.02 | G173: =TEXT(E173,"0%")&" to "&TEXT(F173,"0%") -> 0% to 2%
D174: 2 | E174: =F173 -> 0.02 | F174: =F173+$D$170 -> 0.04 | G174: =TEXT(E174,"0%")&" to "&TEXT(F174,"0%") -> 2% to 4%
D175: 3 | E175: =F174 -> 0.04 | F175: 0.06 | G175: 4% to 6%
D176: 4 | E176: 0.06 | F176: 0.08 | G176: 6% to 8%
D177: 5 | E177: 0.08 | F177: 0.1 | G177: 8% to 10%
D178: 6 | E178: 0.1 | F178: 0.12 | G178: 10% to 12%
D179: 7 | E179: 0.12 | F179: 0.14 | G179: 12% to 14%
D180: 8 | E180: 0.14 | F180: 0.16 | G180: 14% to 16%
D181: 9 | E181: 0.16 | F181: 1 | G181: =TEXT(E181,"0%")&" or more" -> 16% or more

Sheet charts
B2: Line and Band Chart

Sheet map icon
B2: Map "Icon"
